Workbook

Sheet 問題作成_説明中心_1
B1: ITパスポート試験 用語確認問題
B2: 年 組 席 名前
A4: 1 | B4: =IF(ISERROR(VLOOKUP(A4,用語表!$C$3:$E$310,3,0)),"",VLOOKUP(A4,用語表!$C$3:$E$310,3,0)) -> ５大装置 | D4: =A31+1 -> 29 | E4: =IF(ISERROR(VLOOKUP(D4,用語表!$C$3:$E$310,3,0)),"",VLOOKUP(D4,用語表!$C$3:$E$310,3,0)) -> ＳＳＤ | G4: =D31+1 -> 57 | H4: =IF(ISERROR(VLOOKUP(G4,用語表!$C$3:$E$310,3,0)),"",VLOOKUP(G4,用語表!$C$3:$E$310,3,0)) -> ターンアラウンドタイム | J4: =G31+1 -> 85 | K4: =IF(ISERROR(VLOOKUP(J4,用語表!$C$3:$E$310,3,0)),"",VLOOKUP(J4,用語表!$C$3:$E$310,3,0)) -> ＩＴＦ
A5: =A4+1 -> 2 | B5: =IF(ISERROR(VLOOKUP(A5,用語表!$C$3:$E$310,3,0)),"",VLOOKUP(A5,用語表!$C$3:$E$310,3,0)) -> ＣＰＵ | D5: =D4+1 -> 30 | E5: =IF(ISERROR(VLOOKUP(D5,用語表!$C$3:$E$310,3,0)),"",VLOOKUP(D5,用語表!$C$3:$E$310,3,0)) -> シリアルインターフェース | G5: =G4+1 -> 58 | H5: =IF(ISERROR(VLOOKUP(G5,用語表!$C$3:$E$310,3,0)),"",VLOOKUP(G5,用語表!$C$3:$E$310,3,0)) -> ベンチマークテスト | J5: =J4+1 -> 86 | K5: =IF(ISERROR(VLOOKUP(J5,用語表!$C$3:$E$310,3,0)),"",VLOOKUP(J5,用語表!$C$3:$E$310,3,0)) -> インタプリタ
A6: =A5+1 -> 3 | B6: =IF(ISERROR(VLOOKUP(A6,用語表!$C$3:$E$310,3,0)),"",VLOOKUP(A6,用語表!$C$3:$E$310,3,0)) -> マイクロプロセッサ | D6: =D5+1 -> 31 | E6: =IF(ISERROR(VLOOKUP(D6,用語表!$C$3:$E$310,3,0)),"",VLOOKUP(D6,用語表!$C$3:$E$310,3,0)) -> パラレルインターフェース | G6: =G5+1 -> 59 | H6: =IF(ISERROR(VLOOKUP(G6,用語表!$C$3:$E$310,3,0)),"",VLOOKUP(G6,用語表!$C$3:$E$310,3,0)) -> ＲＡＳＩＳ | J6: =J5+1 -> 87 | K6: =IF(ISERROR(VLOOKUP(J6,用語表!$C$3:$E$310,3,0)),"",VLOOKUP(J6,用語表!$C$3:$E$310,3,0)) -> ｄｐｉ
A7: 4 | B7: =IF(ISERROR(VLOOKUP(A7,用語表!$C$3:$E$310,3,0)),"",VLOOKUP(A7,用語表!$C$3:$E$310,3,0)) -> プログラム内蔵方式 | D7: 32 | E7: =IF(ISERROR(VLOOKUP(D7,用語表!$C$3:$E$310,3,0)),"",VLOOKUP(D7,用語表!$C$3:$E$310,3,0)) -> ＰＤＡ | G7: 60 | H7: =IF(ISERROR(VLOOKUP(G7,用語表!$C$3:$E$310,3,0)),"",VLOOKUP(G7,用語表!$C$3:$E$310,3,0)) -> 稼働率 | J7: 88 | K7: =IF(ISERROR(VLOOKUP(J7,用語表!$C$3:$E$310,3,0)),"",VLOOKUP(J7,用語表!$C$3:$E$310,3,0)) -> ｐｐｍ
A8: 5 | B8: =IF(ISERROR(VLOOKUP(A8,用語表!$C$3:$E$310,3,0)),"",VLOOKUP(A8,用語表!$C$3:$E$310,3,0)) -> 逐次制御方式 | D8: 33 | E8: =IF(ISERROR(VLOOKUP(D8,用語表!$C$3:$E$310,3,0)),"",VLOOKUP(D8,用語表!$C$3:$E$310,3,0)) -> ＩｒＤＡ | G8: 61 | H8: =IF(ISERROR(VLOOKUP(G8,用語表!$C$3:$E$310,3,0)),"",VLOOKUP(G8,用語表!$C$3:$E$310,3,0)) -> 平均故障間隔（MTBF) | J8: 89 | K8: =IF(ISERROR(VLOOKUP(J8,用語表!$C$3:$E$310,3,0)),"",VLOOKUP(J8,用語表!$C$3:$E$310,3,0)) -> ハイバネーション(休止状態)
A9: 6 | B9: =IF(ISERROR(VLOOKUP(A9,用語表!$C$3:$E$310,3,0)),"",VLOOKUP(A9,用語表!$C$3:$E$310,3,0)) -> クロック | D9: 34 | E9: =IF(ISERROR(VLOOKUP(D9,用語表!$C$3:$E$310,3,0)),"",VLOOKUP(D9,用語表!$C$3:$E$310,3,0)) -> Ｂｌｕｅｔｏｏｔｈ | G9: 62 | H9: =IF(ISERROR(VLOOKUP(G9,用語表!$C$3:$E$310,3,0)),"",VLOOKUP(G9,用語表!$C$3:$E$310,3,0)) -> 平均修復時間（MTTR) | J9: 90 | K9: =IF(ISERROR(VLOOKUP(J9,用語表!$C$3:$E$310,3,0)),"",VLOOKUP(J9,用語表!$C$3:$E$310,3,0)) -> スタンバイ
A10: 7 | B10: =IF(ISERROR(VLOOKUP(A10,用語表!$C$3:$E$310,3,0)),"",VLOOKUP(A10,用語表!$C$3:$E$310,3,0)) -> MIPS | D10: 35 | E10: =IF(ISERROR(VLOOKUP(D10,用語表!$C$3:$E$310,3,0)),"",VLOOKUP(D10,用語表!$C$3:$E$310,3,0)) -> ＡＴＡ | G10: 63 | H10: =IF(ISERROR(VLOOKUP(G10,用語表!$C$3:$E$310,3,0)),"",VLOOKUP(G10,用語表!$C$3:$E$310,3,0)) -> バスタブ曲線 | J10: 91 | K10: =IF(ISERROR(VLOOKUP(J10,用語表!$C$3:$E$310,3,0)),"",VLOOKUP(J10,用語表!$C$3:$E$310,3,0)) -> ＧＵＩ
A11: 8 | B11: =IF(ISERROR(VLOOKUP(A11,用語表!$C$3:$E$310,3,0)),"",VLOOKUP(A11,用語表!$C$3:$E$310,3,0)) -> ＣＰＩ | D11: 36 | E11: =IF(ISERROR(VLOOKUP(D11,用語表!$C$3:$E$310,3,0)),"",VLOOKUP(D11,用語表!$C$3:$E$310,3,0)) -> バスパワー | G11: 64 | H11: =IF(ISERROR(VLOOKUP(G11,用語表!$C$3:$E$310,3,0)),"",VLOOKUP(G11,用語表!$C$3:$E$310,3,0)) -> フォールトトレランス | J11: 92 | K11: =IF(ISERROR(VLOOKUP(J11,用語表!$C$3:$E$310,3,0)),"",VLOOKUP(J11,用語表!$C$3:$E$310,3,0)) -> CUI
A12: 9 | B12: =IF(ISERROR(VLOOKUP(A12,用語表!$C$3:$E$310,3,0)),"",VLOOKUP(A12,用語表!$C$3:$E$310,3,0)) -> バス | D12: 37 | E12: =IF(ISERROR(VLOOKUP(D12,用語表!$C$3:$E$310,3,0)),"",VLOOKUP(D12,用語表!$C$3:$E$310,3,0)) -> ホットプラグ | G12: 65 | H12: =IF(ISERROR(VLOOKUP(G12,用語表!$C$3:$E$310,3,0)),"",VLOOKUP(G12,用語表!$C$3:$E$310,3,0)) -> フェールセーフ | J12: 93 | K12: =IF(ISERROR(VLOOKUP(J12,用語表!$C$3:$E$310,3,0)),"",VLOOKUP(J12,用語表!$C$3:$E$310,3,0)) -> フォーマットチェック
A13: 10 | B13: =IF(ISERROR(VLOOKUP(A13,用語表!$C$3:$E$310,3,0)),"",VLOOKUP(A13,用語表!$C$3:$E$310,3,0)) -> ＲＡＭ | D13: 38 | E13: =IF(ISERROR(VLOOKUP(D13,用語表!$C$3:$E$310,3,0)),"",VLOOKUP(D13,用語表!$C$3:$E$310,3,0)) -> デバイスドライバ | G13: 66 | H13: =IF(ISERROR(VLOOKUP(G13,用語表!$C$3:$E$310,3,0)),"",VLOOKUP(G13,用語表!$C$3:$E$310,3,0)) -> フェールソフト | J13: 94 | K13: =IF(ISERROR(VLOOKUP(J13,用語表!$C$3:$E$310,3,0)),"",VLOOKUP(J13,用語表!$C$3:$E$310,3,0)) -> ニューメリックチェック
A14: 11 | B14: =IF(ISERROR(VLOOKUP(A14,用語表!$C$3:$E$310,3,0)),"",VLOOKUP(A14,用語表!$C$3:$E$310,3,0)) -> レジスタ | D14: 39 | E14: =IF(ISERROR(VLOOKUP(D14,用語表!$C$3:$E$310,3,0)),"",VLOOKUP(D14,用語表!$C$3:$E$310,3,0)) -> プラグアンドプレイ | G14: 67 | H14: =IF(ISERROR(VLOOKUP(G14,用語表!$C$3:$E$310,3,0)),"",VLOOKUP(G14,用語表!$C$3:$E$310,3,0)) -> フールプルーフ | J14: 95 | K14: =IF(ISERROR(VLOOKUP(J14,用語表!$C$3:$E$310,3,0)),"",VLOOKUP(J14,用語表!$C$3:$E$310,3,0)) -> リミットチェック
A15: 12 | B15: =IF(ISERROR(VLOOKUP(A15,用語表!$C$3:$E$310,3,0)),"",VLOOKUP(A15,用語表!$C$3:$E$310,3,0)) -> ＲＯＭ | D15: 40 | E15: =IF(ISERROR(VLOOKUP(D15,用語表!$C$3:$E$310,3,0)),"",VLOOKUP(D15,用語表!$C$3:$E$310,3,0)) -> 集中処理システム | G15: 68 | H15: =IF(ISERROR(VLOOKUP(G15,用語表!$C$3:$E$310,3,0)),"",VLOOKUP(G15,用語表!$C$3:$E$310,3,0)) -> ＴＣＯ | J15: 96 | K15: =IF(ISERROR(VLOOKUP(J15,用語表!$C$3:$E$310,3,0)),"",VLOOKUP(J15,用語表!$C$3:$E$310,3,0)) -> シーケンスチェック
A16: 13 | B16: =IF(ISERROR(VLOOKUP(A16,用語表!$C$3:$E$310,3,0)),"",VLOOKUP(A16,用語表!$C$3:$E$310,3,0)) -> フラッシュメモリ | D16: 41 | E16: =IF(ISERROR(VLOOKUP(D16,用語表!$C$3:$E$310,3,0)),"",VLOOKUP(D16,用語表!$C$3:$E$310,3,0)) -> 分散処理システム | G16: 69 | H16: =IF(ISERROR(VLOOKUP(G16,用語表!$C$3:$E$310,3,0)),"",VLOOKUP(G16,用語表!$C$3:$E$310,3,0)) -> コストパフォーマンス | J16: 97 | K16: =IF(ISERROR(VLOOKUP(J16,用語表!$C$3:$E$310,3,0)),"",VLOOKUP(J16,用語表!$C$3:$E$310,3,0)) -> チェックディジット
A17: 14 | B17: =IF(ISERROR(VLOOKUP(A17,用語表!$C$3:$E$310,3,0)),"",VLOOKUP(A17,用語表!$C$3:$E$310,3,0)) -> ＢＩＯＳ | D17: 42 | E17: =IF(ISERROR(VLOOKUP(D17,用語表!$C$3:$E$310,3,0)),"",VLOOKUP(D17,用語表!$C$3:$E$310,3,0)) -> バッチ処理 | G17: 70 | H17: =IF(ISERROR(VLOOKUP(G17,用語表!$C$3:$E$310,3,0)),"",VLOOKUP(G17,用語表!$C$3:$E$310,3,0)) -> ユーティリティプログラム | J17: 98 | K17: =IF(ISERROR(VLOOKUP(J17,用語表!$C$3:$E$310,3,0)),"",VLOOKUP(J17,用語表!$C$3:$E$310,3,0)) -> ユーザビリティ
A18: 15 | B18: =IF(ISERROR(VLOOKUP(A18,用語表!$C$3:$E$310,3,0)),"",VLOOKUP(A18,用語表!$C$3:$E$310,3,0)) -> スロットイン | D18: 43 | E18: =IF(ISERROR(VLOOKUP(D18,用語表!$C$3:$E$310,3,0)),"",VLOOKUP(D18,用語表!$C$3:$E$310,3,0)) -> リアルタイム処理 | G18: 71 | H18: =IF(ISERROR(VLOOKUP(G18,用語表!$C$3:$E$310,3,0)),"",VLOOKUP(G18,用語表!$C$3:$E$310,3,0)) -> グループウェア | J18: 99 | K18: =IF(ISERROR(VLOOKUP(J18,用語表!$C$3:$E$310,3,0)),"",VLOOKUP(J18,用語表!$C$3:$E$310,3,0)) -> ユニバーサルデザイン
A19: 16 | B19: =IF(ISERROR(VLOOKUP(A19,用語表!$C$3:$E$310,3,0)),"",VLOOKUP(A19,用語表!$C$3:$E$310,3,0)) -> ＶＲＡＭ | D19: 44 | E19: =IF(ISERROR(VLOOKUP(D19,用語表!$C$3:$E$310,3,0)),"",VLOOKUP(D19,用語表!$C$3:$E$310,3,0)) -> クライアントサーバシステム | G19: 72 | H19: =IF(ISERROR(VLOOKUP(G19,用語表!$C$3:$E$310,3,0)),"",VLOOKUP(G19,用語表!$C$3:$E$310,3,0)) -> ミドルウェア | J19: 100 | K19: =IF(ISERROR(VLOOKUP(J19,用語表!$C$3:$E$310,3,0)),"",VLOOKUP(J19,用語表!$C$3:$E$310,3,0)) -> 情報リテラシ
A20: 17 | B20: =IF(ISERROR(VLOOKUP(A20,用語表!$C$3:$E$310,3,0)),"",VLOOKUP(A20,用語表!$C$3:$E$310,3,0)) -> ＩＰＬ | D20: 45 | E20: =IF(ISERROR(VLOOKUP(D20,用語表!$C$3:$E$310,3,0)),"",VLOOKUP(D20,用語表!$C$3:$E$310,3,0)) -> ファイルサーバ | G20: 73 | H20: =IF(ISERROR(VLOOKUP(G20,用語表!$C$3:$E$310,3,0)),"",VLOOKUP(G20,用語表!$C$3:$E$310,3,0)) -> スワッピング | J20: 101 | K20: =IF(ISERROR(VLOOKUP(J20,用語表!$C$3:$E$310,3,0)),"",VLOOKUP(J20,用語表!$C$3:$E$310,3,0)) -> Webアクセシビリティ
A21: 18 | B21: =IF(ISERROR(VLOOKUP(A21,用語表!$C$3:$E$310,3,0)),"",VLOOKUP(A21,用語表!$C$3:$E$310,3,0)) -> キャッシュメモリ | D21: 46 | E21: =IF(ISERROR(VLOOKUP(D21,用語表!$C$3:$E$310,3,0)),"",VLOOKUP(D21,用語表!$C$3:$E$310,3,0)) -> データベースサーバ | G21: 74 | H21: =IF(ISERROR(VLOOKUP(G21,用語表!$C$3:$E$310,3,0)),"",VLOOKUP(G21,用語表!$C$3:$E$310,3,0)) -> 仮想記憶方式 | J21: 102 | K21: =IF(ISERROR(VLOOKUP(J21,用語表!$C$3:$E$310,3,0)),"",VLOOKUP(J21,用語表!$C$3:$E$310,3,0)) -> 可逆圧縮方式
A22: 19 | B22: =IF(ISERROR(VLOOKUP(A22,用語表!$C$3:$E$310,3,0)),"",VLOOKUP(A22,用語表!$C$3:$E$310,3,0)) -> ディスクキャッシュ | D22: 47 | E22: =IF(ISERROR(VLOOKUP(D22,用語表!$C$3:$E$310,3,0)),"",VLOOKUP(D22,用語表!$C$3:$E$310,3,0)) -> プリントサーバ | G22: 75 | H22: =IF(ISERROR(VLOOKUP(G22,用語表!$C$3:$E$310,3,0)),"",VLOOKUP(G22,用語表!$C$3:$E$310,3,0)) -> コンフリクト | J22: 103 | K22: =IF(ISERROR(VLOOKUP(J22,用語表!$C$3:$E$310,3,0)),"",VLOOKUP(J22,用語表!$C$3:$E$310,3,0)) -> 非可逆圧縮方式
A23: 20 | B23: =IF(ISERROR(VLOOKUP(A23,用語表!$C$3:$E$310,3,0)),"",VLOOKUP(A23,用語表!$C$3:$E$310,3,0)) -> ｒｐｍ | D23: 48 | E23: =IF(ISERROR(VLOOKUP(D23,用語表!$C$3:$E$310,3,0)),"",VLOOKUP(D23,用語表!$C$3:$E$310,3,0)) -> サーバの仮想化技術 | G23: 76 | H23: =IF(ISERROR(VLOOKUP(G23,用語表!$C$3:$E$310,3,0)),"",VLOOKUP(G23,用語表!$C$3:$E$310,3,0)) -> スプーリング | J23: 104 | K23: =IF(ISERROR(VLOOKUP(J23,用語表!$C$3:$E$310,3,0)),"",VLOOKUP(J23,用語表!$C$3:$E$310,3,0)) -> ＪＰＥＧ
A24: 21 | B24: =IF(ISERROR(VLOOKUP(A24,用語表!$C$3:$E$310,3,0)),"",VLOOKUP(A24,用語表!$C$3:$E$310,3,0)) -> ヒット率 | D24: 49 | E24: =IF(ISERROR(VLOOKUP(D24,用語表!$C$3:$E$310,3,0)),"",VLOOKUP(D24,用語表!$C$3:$E$310,3,0)) -> ３層アーキテクチャ | G24: 77 | H24: =IF(ISERROR(VLOOKUP(G24,用語表!$C$3:$E$310,3,0)),"",VLOOKUP(G24,用語表!$C$3:$E$310,3,0)) -> イントラネット | J24: 105 | K24: =IF(ISERROR(VLOOKUP(J24,用語表!$C$3:$E$310,3,0)),"",VLOOKUP(J24,用語表!$C$3:$E$310,3,0)) -> ＧＩＦ
A25: 22 | B25: =IF(ISERROR(VLOOKUP(A25,用語表!$C$3:$E$310,3,0)),"",VLOOKUP(A25,用語表!$C$3:$E$310,3,0)) -> デフラグメンテーション | D25: 50 | E25: =IF(ISERROR(VLOOKUP(D25,用語表!$C$3:$E$310,3,0)),"",VLOOKUP(D25,用語表!$C$3:$E$310,3,0)) -> オンラインストレージ | G25: 78 | H25: =IF(ISERROR(VLOOKUP(G25,用語表!$C$3:$E$310,3,0)),"",VLOOKUP(G25,用語表!$C$3:$E$310,3,0)) -> ＰＤＦ | J25: 106 | K25: =IF(ISERROR(VLOOKUP(J25,用語表!$C$3:$E$310,3,0)),"",VLOOKUP(J25,用語表!$C$3:$E$310,3,0)) -> ＢＭＰ
A26: 23 | B26: =IF(ISERROR(VLOOKUP(A26,用語表!$C$3:$E$310,3,0)),"",VLOOKUP(A26,用語表!$C$3:$E$310,3,0)) -> アクセス時間 | D26: 51 | E26: =IF(ISERROR(VLOOKUP(D26,用語表!$C$3:$E$310,3,0)),"",VLOOKUP(D26,用語表!$C$3:$E$310,3,0)) -> グリッドコンピューティング | G26: 79 | H26: =IF(ISERROR(VLOOKUP(G26,用語表!$C$3:$E$310,3,0)),"",VLOOKUP(G26,用語表!$C$3:$E$310,3,0)) -> オーサリングソフト | J26: 107 | K26: =IF(ISERROR(VLOOKUP(J26,用語表!$C$3:$E$310,3,0)),"",VLOOKUP(J26,用語表!$C$3:$E$310,3,0)) -> ＰＮＧ
A27: 24 | B27: =IF(ISERROR(VLOOKUP(A27,用語表!$C$3:$E$310,3,0)),"",VLOOKUP(A27,用語表!$C$3:$E$310,3,0)) -> ＲＡＩＤ | D27: 52 | E27: =IF(ISERROR(VLOOKUP(D27,用語表!$C$3:$E$310,3,0)),"",VLOOKUP(D27,用語表!$C$3:$E$310,3,0)) -> シンクライアントシステム | G27: 80 | H27: =IF(ISERROR(VLOOKUP(G27,用語表!$C$3:$E$310,3,0)),"",VLOOKUP(G27,用語表!$C$3:$E$310,3,0)) -> ｆｐｓ | J27: 108 | K27: =IF(ISERROR(VLOOKUP(J27,用語表!$C$3:$E$310,3,0)),"",VLOOKUP(J27,用語表!$C$3:$E$310,3,0)) -> ＭＰ３
A28: 25 | B28: =IF(ISERROR(VLOOKUP(A28,用語表!$C$3:$E$310,3,0)),"",VLOOKUP(A28,用語表!$C$3:$E$310,3,0)) -> ストライピング | D28: 53 | E28: =IF(ISERROR(VLOOKUP(D28,用語表!$C$3:$E$310,3,0)),"",VLOOKUP(D28,用語表!$C$3:$E$310,3,0)) -> デュアルシステム | G28: 81 | H28: =IF(ISERROR(VLOOKUP(G28,用語表!$C$3:$E$310,3,0)),"",VLOOKUP(G28,用語表!$C$3:$E$310,3,0)) -> プラグイン | J28: 109 | K28: =IF(ISERROR(VLOOKUP(J28,用語表!$C$3:$E$310,3,0)),"",VLOOKUP(J28,用語表!$C$3:$E$310,3,0)) -> ＭＰＥＧ
A29: 26 | B29: =IF(ISERROR(VLOOKUP(A29,用語表!$C$3:$E$310,3,0)),"",VLOOKUP(A29,用語表!$C$3:$E$310,3,0)) -> ミラーリング | D29: 54 | E29: =IF(ISERROR(VLOOKUP(D29,用語表!$C$3:$E$310,3,0)),"",VLOOKUP(D29,用語表!$C$3:$E$310,3,0)) -> デュプレックスシステム | G29: 82 | H29: =IF(ISERROR(VLOOKUP(G29,用語表!$C$3:$E$310,3,0)),"",VLOOKUP(G29,用語表!$C$3:$E$310,3,0)) -> オートコンプリート | J29: 110 | K29: =IF(ISERROR(VLOOKUP(J29,用語表!$C$3:$E$310,3,0)),"",VLOOKUP(J29,用語表!$C$3:$E$310,3,0)) -> AVI
A30: 27 | B30: =IF(ISERROR(VLOOKUP(A30,用語表!$C$3:$E$310,3,0)),"",VLOOKUP(A30,用語表!$C$3:$E$310,3,0)) -> RAID5 | D30: 55 | E30: =IF(ISERROR(VLOOKUP(D30,用語表!$C$3:$E$310,3,0)),"",VLOOKUP(D30,用語表!$C$3:$E$310,3,0)) -> スループット | G30: 83 | H30: =IF(ISERROR(VLOOKUP(G30,用語表!$C$3:$E$310,3,0)),"",VLOOKUP(G30,用語表!$C$3:$E$310,3,0)) -> オープンソースソフトウェア | J30: 111 | K30: =IF(ISERROR(VLOOKUP(J30,用語表!$C$3:$E$310,3,0)),"",VLOOKUP(J30,用語表!$C$3:$E$310,3,0)) -> QuickTime
A31: 28 | B31: =IF(ISERROR(VLOOKUP(A31,用語表!$C$3:$E$310,3,0)),"",VLOOKUP(A31,用語表!$C$3:$E$310,3,0)) -> パリティ | D31: 56 | E31: =IF(ISERROR(VLOOKUP(D31,用語表!$C$3:$E$310,3,0)),"",VLOOKUP(D31,用語表!$C$3:$E$310,3,0)) -> レスポンスタイム | G31: 84 | H31: =IF(ISERROR(VLOOKUP(G31,用語表!$C$3:$E$310,3,0)),"",VLOOKUP(G31,用語表!$C$3:$E$310,3,0)) -> ＪＡＮコード | J31: 112 | K31: =IF(ISERROR(VLOOKUP(J31,用語表!$C$3:$E$310,3,0)),"",VLOOKUP(J31,用語表!$C$3:$E$310,3,0)) -> SWF
B33: ="出題範囲="&C45&":"&C46 -> 出題範囲=1:108 | E33: ="印刷範囲="&C49&":"&C50 -> 印刷範囲=101:110 | J33: 3
A34: 1 | B34: =IF(ISERROR(VLOOKUP(J34,用語表!$C$3:$E$310,2)),"",VLOOKUP(J34,用語表!$C$3:$E$310,2)) -> 制御装置と演算装置をまとめたもの | J34: 2 | M34: =J34 -> 2 | N34: =IFERROR(VLOOKUP(J34,用語表!$C$3:$E$310,3,0),"")&" "&VLOOKUP(J34,用語表!$C$3:$F$310,4,0) -> ＣＰＵ Central Processing Unit
A35: 2 | B35: =IF(ISERROR(VLOOKUP(J35,用語表!$C$3:$E$310,2)),"",VLOOKUP(J35,用語表!$C$3:$E$310,2)) -> 分割したデータと誤り訂正のためのパリティ情報を3台以上のハードディスクに分散して書き込むことによって，データの可用性を高め，かつ，書込み動作を高速化する方法。 | J35: 27 | M35: 27 | N35: =IFERROR(VLOOKUP(J35,用語表!$C$3:$E$310,3,0),"")&" "&VLOOKUP(J35,用語表!$C$3:$F$310,4,0) -> RAID5
A36: 3 | B36: =IF(ISERROR(VLOOKUP(J36,用語表!$C$3:$E$310,2)),"",VLOOKUP(J36,用語表!$C$3:$E$310,2)) -> 入力データが定められた書式に従っているかチェックする方法 | J36: 93 | M36: 93 | N36: =IFERROR(VLOOKUP(J36,用語表!$C$3:$E$310,3,0),"")&" "&VLOOKUP(J36,用語表!$C$3:$F$310,4,0) -> フォーマットチェック
A37: 4 | B37: =IF(ISERROR(VLOOKUP(J37,用語表!$C$3:$E$310,2)),"",VLOOKUP(J37,用語表!$C$3:$E$310,2)) -> Adobe Systems社によって開発された、電子文書のためのフォーマット。レイアウトソフトなどで作成した文書を電子的に配布することができ、相手のコンピュータの機種や環境によらず、オリジナルのイメージをかなりの程度正確に再生することができる。 | J37: 78 | M37: 78 | N37: =IFERROR(VLOOKUP(J37,用語表!$C$3:$E$310,3,0),"")&" "&VLOOKUP(J37,用語表!$C$3:$F$310,4,0) -> ＰＤＦ
A38: 5 | B38: =IF(ISERROR(VLOOKUP(J38,用語表!$C$3:$E$310,2)),"",VLOOKUP(J38,用語表!$C$3:$E$310,2)) -> 画面上のアイコンやボタンをマウスでクリックして操作する、コンピュータの入出力方式。 | J38: 91 | M38: 91 | N38: =IFERROR(VLOOKUP(J38,用語表!$C$3:$E$310,3,0),"")&" "&VLOOKUP(J38,用語表!$C$3:$F$310,4,0) -> ＧＵＩ Graphical User Interface
A39: 6 | B39: =IF(ISERROR(VLOOKUP(J39,用語表!$C$3:$E$310,2)),"",VLOOKUP(J39,用語表!$C$3:$E$310,2)) -> ＣＰＵがメモリから命令を１つずつ取り出して解釈し、演算を実行したり各装置に指令を送ったりする方式 | J39: 5 | M39: 5 | N39: =IFERROR(VLOOKUP(J39,用語表!$C$3:$E$310,3,0),"")&" "&VLOOKUP(J39,用語表!$C$3:$F$310,4,0) -> 逐次制御方式
A40: 7 | B40: =IF(ISERROR(VLOOKUP(J40,用語表!$C$3:$E$310,2)),"",VLOOKUP(J40,用語表!$C$3:$E$310,2)) -> CDやDVDなどの光学メディアをコンピュータに出し入れする際、トレイがなく、挿入口に直接メディアを挿入する方式のこと。 | J40: 15 | M40: 15 | N40: =IFERROR(VLOOKUP(J40,用語表!$C$3:$E$310,3,0),"")&" "&VLOOKUP(J40,用語表!$C$3:$F$310,4,0) -> スロットイン
A41: 8 | B41: =IF(ISERROR(VLOOKUP(J41,用語表!$C$3:$E$310,2)),"",VLOOKUP(J41,用語表!$C$3:$E$310,2)) -> 情報システムの信頼性を高める手法の一つで、システムを2系統用意して、普段は片方で処理を行い、もう片方は障害発生に備えて待機させておく方式。平常時に処理を行なうシステムを主系または本番系などと呼び、主系に障害が生じたとき肩代わりするシステムを従系または待機系、予備系などと呼ぶ。待機や切り替えの仕方により、ホットスタンバイ、ウォームスタンバイ、コールドスタンバイなどの種類がある。 | J41: 54 | M41: 54 | N41: =IFERROR(VLOOKUP(J41,用語表!$C$3:$E$310,3,0),"")&" "&VLOOKUP(J41,用語表!$C$3:$F$310,4,0) -> デュプレックスシステム duplex System
A42: 9 | B42: =IF(ISERROR(VLOOKUP(J42,用語表!$C$3:$E$310,2)),"",VLOOKUP(J42,用語表!$C$3:$E$310,2)) -> インターネットに接続されているサーバ上のディスクスペースを，ファイル保管用に貸し出すサービスであり，自宅や外出先などから利用者がデータを読み書きできるものはどれか。 | J42: 50 | M42: 50 | N42: =IFERROR(VLOOKUP(J42,用語表!$C$3:$E$310,3,0),"")&" "&VLOOKUP(J42,用語表!$C$3:$F$310,4,0) -> オンラインストレージ
A43: 10 | B43: =IF(ISERROR(VLOOKUP(J43,用語表!$C$3:$E$310,2)),"",VLOOKUP(J43,用語表!$C$3:$E$310,2)) -> システムの障害発生時における修復時間の平均。この時間が短いほど保守性に優れている。 | J43: 62 | M43: 62 | N43: =IFERROR(VLOOKUP(J43,用語表!$C$3:$E$310,3,0),"")&" "&VLOOKUP(J43,用語表!$C$3:$F$310,4,0) -> 平均修復時間（MTTR) Mean Time To Repair
B45: 開始問題番号 | C45: 1 | N45: ０ 「開始問題番号」と「終了問題番号」を入力する。
B46: 終了問題番号 | C46: 108 | N46: 1～１１１までの問題番号
B47: 問題数 | C47: =C46-C45+1 -> 108
B48: 問題印刷枚数 | C48: 15 | N48: １ 問題数の行分の乱数を設定する。
B49: E列 印刷開始問題番号 | C49: 101 | N49: 例 問題数が３８の場合は、行５４から行９１まで
B50: E列 印刷終了問題番号 | C50: 110
N51: ２ 問題番号を値複写する。
A53: 問題数 | B53: 乱数＆問題番号 | E53: 値複写（作成する問題番号） | H53: 重複の確認（ソート後） | K53: 重複の確認（"重複"の表示） | N53: ３ 「印刷開始問題番号」を入力して「問題の作成」ボタンを押す。
A54: 1 | B54: =RAND() -> 0.7008918457 | C54: =RANK(B54,$B$54:$B$161)+$C$45-1 -> 26 | E54: 102 | H54: 1 | K54: =IF(COUNTIF($E$54:E122,E54)>1,"重複","") -> 
A55: 2 | B55: 0.2481281936 | C55: =RANK(B55,$B$54:$B$161)+$C$45-1 -> 77 | E55: 33 | H55: 2 | K55: =IF(COUNTIF($E$54:E123,E55)>1,"重複","") ->  | N55: ４ 「問題印刷枚数」を入力して「問題の印刷」を押す。
A56: 3 | B56: 0.1367486123 | C56: 90 | E56: 11 | H56: 3 | K56: =IF(COUNTIF($E$54:E124,E56)>1,"重複","") -> 
A57: 4 | B57: 0.6009336328 | C57: 38 | E57: 24 | H57: 4 | K57: =IF(COUNTIF($E$54:E125,E57)>1,"重複","") ->  | N57: ５ 「解答の印刷」を押す。
A58: 5 | B58: 0.6875758306 | C58: 30 | E58: 80 | H58: 5 | K58: =IF(COUNTIF($E$54:E126,E58)>1,"重複","") -> 
A59: 6 | B59: 0.2234640664 | C59: 80 | E59: 64 | H59: 6 | K59: =IF(COUNTIF($E$54:E127,E59)>1,"重複","") -> 
A60: 7 | B60: 0.5194698959 | C60: 49 | E60: 30 | H60: 7 | K60: =IF(COUNTIF($E$54:E128,E60)>1,"重複","") -> 
A61: 8 | B61: 0.3750328976 | C61: 68 | E61: 9 | H61: 8 | K61: =IF(COUNTIF($E$54:E129,E61)>1,"重複","") -> 
A62: 9 | B62: 0.2804078719 | C62: 73 | E62: 103 | H62: 9 | K62: =IF(COUNTIF($E$54:E130,E62)>1,"重複","") -> 
A63: 10 | B63: 0.5259282721 | C63: 45 | E63: 48 | H63: 10 | K63: =IF(COUNTIF($E$54:E131,E63)>1,"重複","") -> 
A64: 11 | B64: 0.4570976408 | C64: 58 | E64: 74 | H64: 11 | K64: =IF(COUNTIF($E$54:E132,E64)>1,"重複","") -> 
A65: 12 | B65: 0.657532413 | C65: 35 | E65: 90 | H65: 12 | K65: =IF(COUNTIF($E$54:E133,E65)>1,"重複","") -> 
A66: 13 | B66: 0.3901948109 | C66: 66 | E66: 94 | H66: 13 | K66: =IF(COUNTIF($E$54:E134,E66)>1,"重複","") -> 
A67: 14 | B67: 0.03436425263 | C67: 105 | E67: 55 | H67: 14 | K67: =IF(COUNTIF($E$54:E135,E67)>1,"重複","") -> 
A68: 15 | B68: 0.9936851548 | C68: 1 | E68: 28 | H68: 15 | K68: =IF(COUNTIF($E$54:E136,E68)>1,"重複","") -> 
A69: 16 | B69: 0.9525917106 | C69: 4 | E69: 12 | H69: 16 | K69: =IF(COUNTIF($E$54:E137,E69)>1,"重複","") -> 
A70: 17 | B70: 0.01575428579 | C70: 106 | E70: 10 | H70: 17 | K70: =IF(COUNTIF($E$54:E138,E70)>1,"重複","") -> 
A71: 18 | B71: 0.9228185371 | C71: 9 | E71: 37 | H71: 18 | K71: =IF(COUNTIF($E$54:E139,E71)>1,"重複","") -> 
A72: 19 | B72: 0.5178109532 | C72: 50 | E72: 96 | H72: 19 | K72: =IF(COUNTIF($E$54:E140,E72)>1,"重複","") -> 
A73: 20 | B73: 0.3524602461 | C73: 70 | E73: 38 | H73: 20 | K73: =IF(COUNTIF($E$54:E141,E73)>1,"重複","") -> 
A74: 21 | B74: 0.7185516592 | C74: 23 | E74: 51 | H74: 21 | K74: =IF(COUNTIF($E$54:E142,E74)>1,"重複","") -> 
A75: 22 | B75: 0.1082085615 | C75: 92 | E75: 83 | H75: 22 | K75: =IF(COUNTIF($E$54:E143,E75)>1,"重複","") -> 
A76: 23 | B76: 0.1770358649 | C76: 85 | E76: 76 | H76: 23 | K76: =IF(COUNTIF($E$54:E144,E76)>1,"重複","") -> 
A77: 24 | B77: 0.8752857626 | C77: 13 | E77: 88 | H77: 24 | K77: =IF(COUNTIF($E$54:E145,E77)>1,"重複","") -> 
A78: 25 | B78: 0.233996489 | C78: 79 | E78: 42 | H78: 25 | K78: =IF(COUNTIF($E$54:E146,E78)>1,"重複","") -> 
A79: 26 | B79: 0.9487017769 | C79: 6 | E79: 63 | H79: 26 | K79: =IF(COUNTIF($E$54:E147,E79)>1,"重複","") -> 
A80: 27 | B80: 0.6858884887 | C80: 31 | E80: 49 | H80: 27 | K80: =IF(COUNTIF($E$54:E148,E80)>1,"重複","") -> 
A81: 28 | B81: 0.1079247254 | C81: 93 | E81: 67 | H81: 28 | K81: =IF(COUNTIF($E$54:E149,E81)>1,"重複","") -> 
A82: 29 | B82: 0.3770281711 | C82: 67 | E82: 95 | H82: 29 | K82: =IF(COUNTIF($E$54:E150,E82)>1,"重複","") -> 
A83: 30 | B83: 0.0717641763 | C83: 100 | E83: 52 | H83: 30 | K83: =IF(COUNTIF($E$54:E151,E83)>1,"重複","") -> 
A84: 31 | B84: 0.4055199605 | C84: 64 | E84: 68 | H84: 31 | K84: =IF(COUNTIF($E$54:E152,E84)>1,"重複","") -> 
A85: 32 | B85: 0.05640280805 | C85: 103 | E85: 77 | H85: 32 | K85: =IF(COUNTIF($E$54:E153,E85)>1,"重複","") -> 
A86: 33 | B86: 0.06191004427 | C86: 102 | E86: 25 | H86: 33 | K86: =IF(COUNTIF($E$54:E154,E86)>1,"重複","") -> 
A87: 34 | B87: 0.4509305976 | C87: 59 | E87: 61 | H87: 34 | K87: =IF(COUNTIF($E$54:E155,E87)>1,"重複","") -> 
A88: 35 | B88: 0.5224996254 | C88: 48 | E88: 69 | H88: 35 | K88: =IF(COUNTIF($E$54:E156,E88)>1,"重複","") -> 
A89: 36 | B89: 0.3700471424 | C89: 69 | E89: 39 | H89: 36 | K89: =IF(COUNTIF($E$54:E157,E89)>1,"重複","") -> 
A90: 37 | B90: 0.26126863 | C90: 75 | E90: 81 | H90: 37 | K90: =IF(COUNTIF($E$54:E158,E90)>1,"重複","") -> 
A91: 38 | B91: 0.09616584213 | C91: 94 | E91: 85 | H91: 38 | K91: =IF(COUNTIF($E$54:E159,E91)>1,"重複","") -> 
A92: 39 | B92: 0.4492163998 | C92: 60 | E92: 40 | H92: 39 | K92: =IF(COUNTIF($E$54:E160,E92)>1,"重複","") -> 
A93: 40 | B93: 0.8956804917 | C93: 11 | E93: 82 | H93: 40 | K93: =IF(COUNTIF($E$54:E161,E93)>1,"重複","") -> 
A94: 41 | B94: 0.442049304 | C94: 61 | E94: 35 | H94: 41 | K94: =IF(COUNTIF($E$54:E162,E94)>1,"重複","") -> 
A95: 42 | B95: 0.007830741344 | C95: 107 | E95: 16 | H95: 42 | K95: =IF(COUNTIF($E$54:E163,E95)>1,"重複","") -> 
A96: 43 | B96: 0.5983886059 | C96: 39 | E96: 71 | H96: 43 | K96: =IF(COUNTIF($E$54:E164,E96)>1,"重複","") -> 
A97: 44 | B97: 0.08050065954 | C97: 96 | E97: 97 | H97: 44 | K97: =IF(COUNTIF($E$54:E165,E97)>1,"重複","") -> 
A98: 45 | B98: 0.6984570859 | C98: 28 | E98: 98 | H98: 45 | K98: =IF(COUNTIF($E$54:E166,E98)>1,"重複","") -> 
A99: 46 | B99: 0.03784335722 | C99: 104 | E99: 75 | H99: 46 | K99: =IF(COUNTIF($E$54:E167,E99)>1,"重複","") -> 
A100: 47 | B100: 0.7289667411 | C100: 22 | E100: 60 | H100: 47 | K100: =IF(COUNTIF($E$54:E168,E100)>1,"重複","") -> 
A101: 48 | B101: 0.7352858574 | C101: 20 | E101: 105 | H101: 48 | K101: =IF(COUNTIF($E$54:E169,E101)>1,"重複","") -> 
A102: 49 | B102: 0.07793694684 | C102: 98 | E102: 100 | H102: 49 | K102: =IF(COUNTIF($E$54:E170,E102)>1,"重複","") -> 
A103: 50 | B103: 0.8764311756 | C103: 12 | E103: 22 | H103: 50 | K103: =IF(COUNTIF($E$54:E171,E103)>1,"重複","") -> 
A104: 51 | B104: 0.06591065054 | C104: 101 | E104: 6 | H104: 51 | K104: =IF(COUNTIF($E$54:E172,E104)>1,"重複","") -> 
A105: 52 | B105: 0.2174026108 | C105: 82 | E105: 20 | H105: 52 | K105: =IF(COUNTIF($E$54:E173,E105)>1,"重複","") -> 
A106: 53 | B106: 0.08925939663 | C106: 95 | E106: 47 | H106: 53 | K106: =IF(COUNTIF($E$54:E174,E106)>1,"重複","") -> 
A107: 54 | B107: 0.1924118789 | C107: 84 | E107: 44 | H107: 54 | K107: =IF(COUNTIF($E$54:E175,E107)>1,"重複","") -> 
A108: 55 | B108: 0.1499341815 | C108: 89 | E108: 56 | H108: 55 | K108: =IF(COUNTIF($E$54:E176,E108)>1,"重複","") -> 
A109: 56 | B109: 0.1701354797 | C109: 86 | E109: 19 | H109: 56 | K109: =IF(COUNTIF($E$54:E177,E109)>1,"重複","") -> 
A110: 57 | B110: 0.285834962 | C110: 71 | E110: 3 | H110: 57 | K110: =IF(COUNTIF($E$54:E178,E110)>1,"重複","") -> 
A111: 58 | B111: 0.952662011 | C111: 3 | E111: 99 | H111: 58 | K111: =IF(COUNTIF($E$54:E179,E111)>1,"重複","") -> 
A112: 59 | B112: 0.6968854102 | C112: 29 | E112: 84 | H112: 59 | K112: =IF(COUNTIF($E$54:E180,E112)>1,"重複","") -> 
A113: 60 | B113: 0.539099274 | C113: 43 | E113: 29 | H113: 60 | K113: =IF(COUNTIF($E$54:E181,E113)>1,"重複","") -> 
A114: 61 | B114: 0.5251842838 | C114: 46 | E114: 87 | H114: 61 | K114: =IF(COUNTIF($E$54:E182,E114)>1,"重複","") -> 
A115: 62 | B115: 0.4827902141 | C115: 54 | E115: 108 | H115: 62 | K115: =IF(COUNTIF($E$54:E183,E115)>1,"重複","") -> 
A116: 63 | B116: 0.5282064994 | C116: 44 | E116: 106 | H116: 63 | K116: =IF(COUNTIF($E$54:E184,E116)>1,"重複","") -> 
A117: 64 | B117: 0.8412853525 | C117: 17 | E117: 13 | K117: =IF(COUNTIF($E$54:E185,E117)>1,"重複","") -> 
A118: 65 | B118: =RAND() -> 0.7295771655 | C118: 21 | E118: 107 | K118: =IF(COUNTIF($E$54:E186,E118)>1,"重複","") -> 
A119: 66 | B119: 0.5864539137 | C119: =RANK(B119,$B$54:$B$161)+$C$45-1 -> 40 | E119: 86 | K119: =IF(COUNTIF($E$54:E187,E119)>1,"重複","") -> 
A120: 67 | B120: 0.8593878217 | C120: 15 | E120: 26 | K120: =IF(COUNTIF($E$54:E188,E120)>1,"重複","") -> 
A121: 68 | B121: 0.47660181 | C121: 56 | E121: 79 | K121: =IF(COUNTIF($E$54:E189,E121)>1,"重複","") -> 
A122: 69 | B122: 0.9488043957 | C122: 5 | E122: 14 | K122: =IF(COUNTIF($E$54:E190,E122)>1,"重複","") -> 
A123: 70 | B123: 0.6579584231 | C123: 34 | E123: 101
A124: 71 | B124: 0.2177478467 | C124: 81 | E124: 21
A125: 72 | B125: 0.4158605379 | C125: 62 | E125: 18
A126: 73 | B126: 0.9232359375 | C126: 8 | E126: 43
A127: 74 | B127: 0.5034480677 | C127: 53 | E127: 7
A128: 75 | B128: 0.2854936042 | C128: 72 | E128: 45
A129: 76 | B129: 0.5238759956 | C129: 47 | E129: 73
A130: 77 | B130: 0.6251160647 | C130: 36 | E130: 70
A131: 78 | B131: 0.9392582567 | C131: 7 | E131: 92
A132: 79 | B132: 0.1934356536 | C132: 83 | E132: 57
A133: 80 | B133: 0.8567901875 | C133: 16 | E133: 31
A134: 81 | B134: 0.459784766 | C134: 57 | E134: 23
A135: 82 | B135: 0.5071124587 | C135: 52 | E135: 58
A136: 83 | B136: 0.6709117554 | C136: 32 | E136: 1
A137: 84 | B137: 0.2781361824 | C137: 74 | E137: 53
A138: 85 | B138: 0.8979512308 | C138: 10 | E138: 4
A139: 86 | B139: 0.158477839 | C139: 87 | E139: 8
A140: 87 | B140: 0.3944975209 | C140: 65 | E140: 36
A141: 88 | B141: 0.5125313973 | C141: 51 | E141: 17
A142: 89 | B142: 0.1275932877 | C142: 91 | E142: 66
A143: 90 | B143: 0.66924658 | C143: 33 | E143: 59
A144: 91 | B144: 0.2513360324 | C144: 76 | E144: 41
A145: 92 | B145: 0.1560502943 | C145: 88 | E145: 65
A146: 93 | B146: 0.6996064285 | C146: 27 | E146: 50
A147: 94 | B147: 0.7984457421 | C147: 18 | E147: 62
A148: 95 | B148: 0.002187208183 | C148: 108 | E148: 104
A149: 96 | B149: 0.5713105639 | C149: 41 | E149: 46
A150: 97 | B150: 0.07859810571 | C150: 97 | E150: 72
A151: 98 | B151: 0.4771667068 | C151: 55 | E151: 34
A152: 99 | B152: 0.6188382686 | C152: 37 | E152: 89
A153: 100 | B153: 0.7944366391 | C153: 19 | E153: 32
A154: 101 | B154: 0.7168951783 | C154: 24 | E154: 2
A155: 102 | B155: 0.9831438929 | C155: 2 | E155: 27
A156: 103 | B156: 0.8675281844 | C156: 14 | E156: 93
A157: 104 | B157: 0.5395902575 | C157: 42 | E157: 78
A158: 105 | B158: 0.4088657016 | C158: 63 | E158: 91
A159: 106 | B159: 0.2462932063 | C159: 78 | E159: 5
A160: 107 | B160: 0.7023903805 | C160: 25 | E160: 15
A161: 108 | B161: 0.07662775635 | C161: 99 | E161: 54
E162: 50
E163: 62

Sheet 問題作成_説明中心_2
B1: ITパスポート試験 用語確認問題
B2: 年 組 席 名前
A4: 113 | B4: =IF(ISERROR(VLOOKUP(A4,用語表!$C$3:$E$310,3,0)),"",VLOOKUP(A4,用語表!$C$3:$E$310,3,0)) -> VRML | D4: =A31+1 -> 141 | E4: =IF(ISERROR(VLOOKUP(D4,用語表!$C$3:$E$310,3,0)),"",VLOOKUP(D4,用語表!$C$3:$E$310,3,0)) -> 結合 | G4: =D31+1 -> 169 | H4: =IF(ISERROR(VLOOKUP(G4,用語表!$C$3:$E$310,3,0)),"",VLOOKUP(G4,用語表!$C$3:$E$310,3,0)) -> HTTP | J4: =G31+1 -> 197 | K4: =IF(ISERROR(VLOOKUP(J4,用語表!$C$3:$E$464,3,0)),"",VLOOKUP(J4,用語表!$C$3:$E$464,3,0)) -> クロスサイトスクリプティング
A5: =A4+1 -> 114 | B5: =IF(ISERROR(VLOOKUP(A5,用語表!$C$3:$E$310,3,0)),"",VLOOKUP(A5,用語表!$C$3:$E$310,3,0)) -> ＭＩＤＩ | D5: =D4+1 -> 142 | E5: =IF(ISERROR(VLOOKUP(D5,用語表!$C$3:$E$310,3,0)),"",VLOOKUP(D5,用語表!$C$3:$E$310,3,0)) -> ロールバック | G5: =G4+1 -> 170 | H5: =IF(ISERROR(VLOOKUP(G5,用語表!$C$3:$E$310,3,0)),"",VLOOKUP(G5,用語表!$C$3:$E$310,3,0)) -> FTP | J5: =J4+1 -> 198 | K5: =IF(ISERROR(VLOOKUP(J5,用語表!$C$3:$E$464,3,0)),"",VLOOKUP(J5,用語表!$C$3:$E$464,3,0)) -> セッションハイジャック
A6: =A5+1 -> 115 | B6: =IF(ISERROR(VLOOKUP(A6,用語表!$C$3:$E$310,3,0)),"",VLOOKUP(A6,用語表!$C$3:$E$310,3,0)) -> キャプチャカード | D6: =D5+1 -> 143 | E6: =IF(ISERROR(VLOOKUP(D6,用語表!$C$3:$E$310,3,0)),"",VLOOKUP(D6,用語表!$C$3:$E$310,3,0)) -> ロールフォワード | G6: =G5+1 -> 171 | H6: =IF(ISERROR(VLOOKUP(G6,用語表!$C$3:$E$310,3,0)),"",VLOOKUP(G6,用語表!$C$3:$E$310,3,0)) -> IPアドレス | J6: 199 | K6: =IF(ISERROR(VLOOKUP(J6,用語表!$C$3:$E$464,3,0)),"",VLOOKUP(J6,用語表!$C$3:$E$464,3,0)) -> SQLインジェクション
A7: 116 | B7: =IF(ISERROR(VLOOKUP(A7,用語表!$C$3:$E$310,3,0)),"",VLOOKUP(A7,用語表!$C$3:$E$310,3,0)) -> DTMソフト | D7: 144 | E7: =IF(ISERROR(VLOOKUP(D7,用語表!$C$3:$E$310,3,0)),"",VLOOKUP(D7,用語表!$C$3:$E$310,3,0)) -> データウェアハウス | G7: 172 | H7: =IF(ISERROR(VLOOKUP(G7,用語表!$C$3:$E$310,3,0)),"",VLOOKUP(G7,用語表!$C$3:$E$310,3,0)) -> プライベートIPアドレス | J7: 200 | K7: =IF(ISERROR(VLOOKUP(J7,用語表!$C$3:$E$464,3,0)),"",VLOOKUP(J7,用語表!$C$3:$E$464,3,0)) -> フィッシング
A8: 117 | B8: =IF(ISERROR(VLOOKUP(A8,用語表!$C$3:$E$310,3,0)),"",VLOOKUP(A8,用語表!$C$3:$E$310,3,0)) -> エージェントソフトウェア | D8: 145 | E8: =IF(ISERROR(VLOOKUP(D8,用語表!$C$3:$E$310,3,0)),"",VLOOKUP(D8,用語表!$C$3:$E$310,3,0)) -> データマート | G8: 173 | H8: =IF(ISERROR(VLOOKUP(G8,用語表!$C$3:$E$310,3,0)),"",VLOOKUP(G8,用語表!$C$3:$E$310,3,0)) -> グローバルIPアドレス | J8: 201 | K8: =IF(ISERROR(VLOOKUP(J8,用語表!$C$3:$E$464,3,0)),"",VLOOKUP(J8,用語表!$C$3:$E$464,3,0)) -> コンテンツフィルタリング
A9: 118 | B9: =IF(ISERROR(VLOOKUP(A9,用語表!$C$3:$E$310,3,0)),"",VLOOKUP(A9,用語表!$C$3:$E$310,3,0)) -> ノンリニア編集 | D9: 146 | E9: =IF(ISERROR(VLOOKUP(D9,用語表!$C$3:$E$310,3,0)),"",VLOOKUP(D9,用語表!$C$3:$E$310,3,0)) -> データマイニング | G9: 174 | H9: =IF(ISERROR(VLOOKUP(G9,用語表!$C$3:$E$310,3,0)),"",VLOOKUP(G9,用語表!$C$3:$E$310,3,0)) -> サブネットマスク | J9: 202 | K9: =IF(ISERROR(VLOOKUP(J9,用語表!$C$3:$E$464,3,0)),"",VLOOKUP(J9,用語表!$C$3:$E$464,3,0)) -> 脆弱性
A10: 119 | B10: =IF(ISERROR(VLOOKUP(A10,用語表!$C$3:$E$310,3,0)),"",VLOOKUP(A10,用語表!$C$3:$E$310,3,0)) -> リレーショナルデータベース | D10: 147 | E10: =IF(ISERROR(VLOOKUP(D10,用語表!$C$3:$E$310,3,0)),"",VLOOKUP(D10,用語表!$C$3:$E$310,3,0)) -> リポジトリ | G10: 175 | H10: =IF(ISERROR(VLOOKUP(G10,用語表!$C$3:$E$310,3,0)),"",VLOOKUP(G10,用語表!$C$3:$E$310,3,0)) -> ネットワークアドレス | J10: 203 | K10: =IF(ISERROR(VLOOKUP(J10,用語表!$C$3:$E$464,3,0)),"",VLOOKUP(J10,用語表!$C$3:$E$464,3,0)) -> セキュリティポリシ
A11: 120 | B11: =IF(ISERROR(VLOOKUP(A11,用語表!$C$3:$E$310,3,0)),"",VLOOKUP(A11,用語表!$C$3:$E$310,3,0)) -> Ｅ－Ｒ図 | D11: 148 | E11: =IF(ISERROR(VLOOKUP(D11,用語表!$C$3:$E$310,3,0)),"",VLOOKUP(D11,用語表!$C$3:$E$310,3,0)) -> ＷＡＮ | G11: 176 | H11: =IF(ISERROR(VLOOKUP(G11,用語表!$C$3:$E$310,3,0)),"",VLOOKUP(G11,用語表!$C$3:$E$310,3,0)) -> ホストアドレス | J11: 204 | K11: =IF(ISERROR(VLOOKUP(J11,用語表!$C$3:$E$464,3,0)),"",VLOOKUP(J11,用語表!$C$3:$E$464,3,0)) -> ディジタル署名
A12: 121 | B12: =IF(ISERROR(VLOOKUP(A12,用語表!$C$3:$E$310,3,0)),"",VLOOKUP(A12,用語表!$C$3:$E$310,3,0)) -> エンティティ（実体） | D12: 149 | E12: =IF(ISERROR(VLOOKUP(D12,用語表!$C$3:$E$310,3,0)),"",VLOOKUP(D12,用語表!$C$3:$E$310,3,0)) -> トポロジ | G12: 177 | H12: =IF(ISERROR(VLOOKUP(G12,用語表!$C$3:$E$310,3,0)),"",VLOOKUP(G12,用語表!$C$3:$E$310,3,0)) -> URL | J12: 205 | K12: =IF(ISERROR(VLOOKUP(J12,用語表!$C$3:$E$464,3,0)),"",VLOOKUP(J12,用語表!$C$3:$E$464,3,0)) -> トロイの木馬
A13: 122 | B13: =IF(ISERROR(VLOOKUP(A13,用語表!$C$3:$E$310,3,0)),"",VLOOKUP(A13,用語表!$C$3:$E$310,3,0)) -> アトリビュート（属性） | D13: 150 | E13: =IF(ISERROR(VLOOKUP(D13,用語表!$C$3:$E$310,3,0)),"",VLOOKUP(D13,用語表!$C$3:$E$310,3,0)) -> ノード | G13: 178 | H13: =IF(ISERROR(VLOOKUP(G13,用語表!$C$3:$E$310,3,0)),"",VLOOKUP(G13,用語表!$C$3:$E$310,3,0)) -> DNSサーバ | J13: 206 | K13: =IF(ISERROR(VLOOKUP(J13,用語表!$C$3:$E$464,3,0)),"",VLOOKUP(J13,用語表!$C$3:$E$464,3,0)) -> 認証局（CA)
A14: 123 | B14: =IF(ISERROR(VLOOKUP(A14,用語表!$C$3:$E$310,3,0)),"",VLOOKUP(A14,用語表!$C$3:$E$310,3,0)) -> リレーションシップ（関係） | D14: 151 | E14: =IF(ISERROR(VLOOKUP(D14,用語表!$C$3:$E$310,3,0)),"",VLOOKUP(D14,用語表!$C$3:$E$310,3,0)) -> ＣＳＭＡ／ＣＤ方式 | G14: 179 | H14: =IF(ISERROR(VLOOKUP(G14,用語表!$C$3:$E$310,3,0)),"",VLOOKUP(G14,用語表!$C$3:$E$310,3,0)) -> POPサーバ | J14: 207 | K14: =IF(ISERROR(VLOOKUP(J14,用語表!$C$3:$E$464,3,0)),"",VLOOKUP(J14,用語表!$C$3:$E$464,3,0)) -> バイオメトリクス認証
A15: 124 | B15: =IF(ISERROR(VLOOKUP(A15,用語表!$C$3:$E$310,3,0)),"",VLOOKUP(A15,用語表!$C$3:$E$310,3,0)) -> 主キー | D15: 152 | E15: =IF(ISERROR(VLOOKUP(D15,用語表!$C$3:$E$310,3,0)),"",VLOOKUP(D15,用語表!$C$3:$E$310,3,0)) -> FDDI | G15: 180 | H15: =IF(ISERROR(VLOOKUP(G15,用語表!$C$3:$E$310,3,0)),"",VLOOKUP(G15,用語表!$C$3:$E$310,3,0)) -> SMTPサーバ | J15: 208 | K15: =IF(ISERROR(VLOOKUP(J15,用語表!$C$3:$E$464,3,0)),"",VLOOKUP(J15,用語表!$C$3:$E$464,3,0)) -> パケットフィルタリング
A16: 125 | B16: =IF(ISERROR(VLOOKUP(A16,用語表!$C$3:$E$310,3,0)),"",VLOOKUP(A16,用語表!$C$3:$E$310,3,0)) -> 整合性制約（参照整合性） | D16: 153 | E16: =IF(ISERROR(VLOOKUP(D16,用語表!$C$3:$E$310,3,0)),"",VLOOKUP(D16,用語表!$C$3:$E$310,3,0)) -> ESSID(ESS-ID) | G16: 181 | H16: =IF(ISERROR(VLOOKUP(G16,用語表!$C$3:$E$310,3,0)),"",VLOOKUP(G16,用語表!$C$3:$E$310,3,0)) -> DHCPサーバ | J16: 209 | K16: =IF(ISERROR(VLOOKUP(J16,用語表!$C$3:$E$464,3,0)),"",VLOOKUP(J16,用語表!$C$3:$E$464,3,0)) -> パターンファイル(ウィルス定義ファイル）
A17: 126 | B17: =IF(ISERROR(VLOOKUP(A17,用語表!$C$3:$E$310,3,0)),"",VLOOKUP(A17,用語表!$C$3:$E$310,3,0)) -> 排他制御 | D17: 154 | E17: =IF(ISERROR(VLOOKUP(D17,用語表!$C$3:$E$310,3,0)),"",VLOOKUP(D17,用語表!$C$3:$E$310,3,0)) -> ツイストペアケーブル | G17: 182 | H17: =IF(ISERROR(VLOOKUP(G17,用語表!$C$3:$E$310,3,0)),"",VLOOKUP(G17,用語表!$C$3:$E$310,3,0)) -> プロキシサーバ | J17: 210 | K17: =IF(ISERROR(VLOOKUP(J17,用語表!$C$3:$E$464,3,0)),"",VLOOKUP(J17,用語表!$C$3:$E$464,3,0)) -> ファイアウォール
A18: 127 | B18: =IF(ISERROR(VLOOKUP(A18,用語表!$C$3:$E$310,3,0)),"",VLOOKUP(A18,用語表!$C$3:$E$310,3,0)) -> ２相ロック | D18: 155 | E18: =IF(ISERROR(VLOOKUP(D18,用語表!$C$3:$E$310,3,0)),"",VLOOKUP(D18,用語表!$C$3:$E$310,3,0)) -> ハブ | G18: 183 | H18: =IF(ISERROR(VLOOKUP(G18,用語表!$C$3:$E$310,3,0)),"",VLOOKUP(G18,用語表!$C$3:$E$310,3,0)) -> アクセスログ | J18: 211 | K18: =IF(ISERROR(VLOOKUP(J18,用語表!$C$3:$E$464,3,0)),"",VLOOKUP(J18,用語表!$C$3:$E$464,3,0)) -> マクロ
A19: 128 | B19: =IF(ISERROR(VLOOKUP(A19,用語表!$C$3:$E$310,3,0)),"",VLOOKUP(A19,用語表!$C$3:$E$310,3,0)) -> デッドロック | D19: 156 | E19: =IF(ISERROR(VLOOKUP(D19,用語表!$C$3:$E$310,3,0)),"",VLOOKUP(D19,用語表!$C$3:$E$310,3,0)) -> ルータ | G19: 184 | H19: =IF(ISERROR(VLOOKUP(G19,用語表!$C$3:$E$310,3,0)),"",VLOOKUP(G19,用語表!$C$3:$E$310,3,0)) -> ｂｐｓ | J19: 212 | K19: =IF(ISERROR(VLOOKUP(J19,用語表!$C$3:$E$464,3,0)),"",VLOOKUP(J19,用語表!$C$3:$E$464,3,0)) -> マクロウィルス
A20: 129 | B20: =IF(ISERROR(VLOOKUP(A20,用語表!$C$3:$E$310,3,0)),"",VLOOKUP(A20,用語表!$C$3:$E$310,3,0)) -> トランザクションスケジューリング | D20: 157 | E20: =IF(ISERROR(VLOOKUP(D20,用語表!$C$3:$E$310,3,0)),"",VLOOKUP(D20,用語表!$C$3:$E$310,3,0)) -> カスケード接続 | G20: 185 | H20: =IF(ISERROR(VLOOKUP(G20,用語表!$C$3:$E$310,3,0)),"",VLOOKUP(G20,用語表!$C$3:$E$310,3,0)) -> パケット | J20: 213 | K20: =IF(ISERROR(VLOOKUP(J20,用語表!$C$3:$E$464,3,0)),"",VLOOKUP(J20,用語表!$C$3:$E$464,3,0)) -> マルウェア
A21: 130 | B21: =IF(ISERROR(VLOOKUP(A21,用語表!$C$3:$E$310,3,0)),"",VLOOKUP(A21,用語表!$C$3:$E$310,3,0)) -> 副問合せ | D21: 158 | E21: =IF(ISERROR(VLOOKUP(D21,用語表!$C$3:$E$310,3,0)),"",VLOOKUP(D21,用語表!$C$3:$E$310,3,0)) -> リピータ | G21: 186 | H21: =IF(ISERROR(VLOOKUP(G21,用語表!$C$3:$E$310,3,0)),"",VLOOKUP(G21,用語表!$C$3:$E$310,3,0)) -> ＡＲＰ | J21: 214 | K21: =IF(ISERROR(VLOOKUP(J21,用語表!$C$3:$E$464,3,0)),"",VLOOKUP(J21,用語表!$C$3:$E$464,3,0)) -> スパイウェア
A22: 131 | B22: =IF(ISERROR(VLOOKUP(A22,用語表!$C$3:$E$310,3,0)),"",VLOOKUP(A22,用語表!$C$3:$E$310,3,0)) -> 概念設計 | D22: 159 | E22: =IF(ISERROR(VLOOKUP(D22,用語表!$C$3:$E$310,3,0)),"",VLOOKUP(D22,用語表!$C$3:$E$310,3,0)) -> ブリッジ | G22: 187 | H22: =IF(ISERROR(VLOOKUP(G22,用語表!$C$3:$E$310,3,0)),"",VLOOKUP(G22,用語表!$C$3:$E$310,3,0)) -> ＮＡＴ | J22: 215 | K22: =IF(ISERROR(VLOOKUP(J22,用語表!$C$3:$E$464,3,0)),"",VLOOKUP(J22,用語表!$C$3:$E$464,3,0)) -> ワーム
A23: 132 | B23: =IF(ISERROR(VLOOKUP(A23,用語表!$C$3:$E$310,3,0)),"",VLOOKUP(A23,用語表!$C$3:$E$310,3,0)) -> 論理設計 | D23: 160 | E23: =IF(ISERROR(VLOOKUP(D23,用語表!$C$3:$E$310,3,0)),"",VLOOKUP(D23,用語表!$C$3:$E$310,3,0)) -> ゲートウェイ | G23: 188 | H23: =IF(ISERROR(VLOOKUP(G23,用語表!$C$3:$E$310,3,0)),"",VLOOKUP(G23,用語表!$C$3:$E$310,3,0)) -> ＩＰマスカレード | J23: 216 | K23: =IF(ISERROR(VLOOKUP(J23,用語表!$C$3:$E$464,3,0)),"",VLOOKUP(J23,用語表!$C$3:$E$464,3,0)) -> キーロガー
A24: 133 | B24: =IF(ISERROR(VLOOKUP(A24,用語表!$C$3:$E$310,3,0)),"",VLOOKUP(A24,用語表!$C$3:$E$310,3,0)) -> 物理設計 | D24: 161 | E24: =IF(ISERROR(VLOOKUP(D24,用語表!$C$3:$E$310,3,0)),"",VLOOKUP(D24,用語表!$C$3:$E$310,3,0)) -> ＦＴＴＨ | G24: 189 | H24: =IF(ISERROR(VLOOKUP(G24,用語表!$C$3:$E$310,3,0)),"",VLOOKUP(G24,用語表!$C$3:$E$310,3,0)) -> ＩＰルーティング | J24: 217 | K24: =IF(ISERROR(VLOOKUP(J24,用語表!$C$3:$E$464,3,0)),"",VLOOKUP(J24,用語表!$C$3:$E$464,3,0)) -> war driving
A25: 134 | B25: =IF(ISERROR(VLOOKUP(A25,用語表!$C$3:$E$310,3,0)),"",VLOOKUP(A25,用語表!$C$3:$E$310,3,0)) -> データの冗長性 | D25: 162 | E25: =IF(ISERROR(VLOOKUP(D25,用語表!$C$3:$E$310,3,0)),"",VLOOKUP(D25,用語表!$C$3:$E$310,3,0)) -> ＡＤＳＬ | G25: 190 | H25: =IF(ISERROR(VLOOKUP(G25,用語表!$C$3:$E$310,3,0)),"",VLOOKUP(G25,用語表!$C$3:$E$310,3,0)) -> ＭＩＭＥ | J25: 218 | K25: =IF(ISERROR(VLOOKUP(J25,用語表!$C$3:$E$464,3,0)),"",VLOOKUP(J25,用語表!$C$3:$E$464,3,0)) -> ハニーポット
A26: 135 | B26: =IF(ISERROR(VLOOKUP(A26,用語表!$C$3:$E$310,3,0)),"",VLOOKUP(A26,用語表!$C$3:$E$310,3,0)) -> データの正規化 | D26: 163 | E26: =IF(ISERROR(VLOOKUP(D26,用語表!$C$3:$E$310,3,0)),"",VLOOKUP(D26,用語表!$C$3:$E$310,3,0)) -> PLCモデム | G26: 191 | H26: =IF(ISERROR(VLOOKUP(G26,用語表!$C$3:$E$310,3,0)),"",VLOOKUP(G26,用語表!$C$3:$E$310,3,0)) -> ストリーミング | J26: 219 | K26: =IF(ISERROR(VLOOKUP(J26,用語表!$C$3:$E$464,3,0)),"",VLOOKUP(J26,用語表!$C$3:$E$464,3,0)) -> インシデント
A27: 136 | B27: =IF(ISERROR(VLOOKUP(A27,用語表!$C$3:$E$310,3,0)),"",VLOOKUP(A27,用語表!$C$3:$E$310,3,0)) -> 第１正規化 | D27: 164 | E27: =IF(ISERROR(VLOOKUP(D27,用語表!$C$3:$E$310,3,0)),"",VLOOKUP(D27,用語表!$C$3:$E$310,3,0)) -> MACアドレス | G27: 192 | H27: =IF(ISERROR(VLOOKUP(G27,用語表!$C$3:$E$310,3,0)),"",VLOOKUP(G27,用語表!$C$3:$E$310,3,0)) -> IP電話、VoIP | J27: 220 | K27: =IF(ISERROR(VLOOKUP(J27,用語表!$C$3:$E$464,3,0)),"",VLOOKUP(J27,用語表!$C$3:$E$464,3,0)) -> クッキー
A28: 137 | B28: =IF(ISERROR(VLOOKUP(A28,用語表!$C$3:$E$310,3,0)),"",VLOOKUP(A28,用語表!$C$3:$E$310,3,0)) -> 第２正規化 | D28: 165 | E28: =IF(ISERROR(VLOOKUP(D28,用語表!$C$3:$E$310,3,0)),"",VLOOKUP(D28,用語表!$C$3:$E$310,3,0)) -> Wi-Fi | G28: 193 | H28: =IF(ISERROR(VLOOKUP(G28,用語表!$C$3:$E$310,3,0)),"",VLOOKUP(G28,用語表!$C$3:$E$310,3,0)) -> クラッキング | J28: 221 | K28: =IF(ISERROR(VLOOKUP(J28,用語表!$C$3:$E$464,3,0)),"",VLOOKUP(J28,用語表!$C$3:$E$464,3,0)) -> ＤＭＺ
A29: 138 | B29: =IF(ISERROR(VLOOKUP(A29,用語表!$C$3:$E$310,3,0)),"",VLOOKUP(A29,用語表!$C$3:$E$310,3,0)) -> 第３正規化 | D29: 166 | E29: =IF(ISERROR(VLOOKUP(D29,用語表!$C$3:$E$310,3,0)),"",VLOOKUP(D29,用語表!$C$3:$E$310,3,0)) -> TCP/IP | G29: 194 | H29: =IF(ISERROR(VLOOKUP(G29,用語表!$C$3:$E$310,3,0)),"",VLOOKUP(G29,用語表!$C$3:$E$310,3,0)) -> ソーシャルエンジニアリング | J29: 222 | K29: =IF(ISERROR(VLOOKUP(J29,用語表!$C$3:$E$464,3,0)),"",VLOOKUP(J29,用語表!$C$3:$E$464,3,0)) -> 個人情報保護方針(プライバシーポリシー)
A30: 139 | B30: =IF(ISERROR(VLOOKUP(A30,用語表!$C$3:$E$310,3,0)),"",VLOOKUP(A30,用語表!$C$3:$E$310,3,0)) -> 選択 | D30: 167 | E30: =IF(ISERROR(VLOOKUP(D30,用語表!$C$3:$E$310,3,0)),"",VLOOKUP(D30,用語表!$C$3:$E$310,3,0)) -> プロトコル | G30: 195 | H30: =IF(ISERROR(VLOOKUP(G30,用語表!$C$3:$E$310,3,0)),"",VLOOKUP(G30,用語表!$C$3:$E$310,3,0)) -> Ｄoｓ攻撃 | J30: 223 | K30: =IF(ISERROR(VLOOKUP(J30,用語表!$C$3:$E$464,3,0)),"",VLOOKUP(J30,用語表!$C$3:$E$464,3,0)) -> 秘密鍵
A31: 140 | B31: =IF(ISERROR(VLOOKUP(A31,用語表!$C$3:$E$310,3,0)),"",VLOOKUP(A31,用語表!$C$3:$E$310,3,0)) -> 射影 | D31: =D30+1 -> 168 | E31: =IF(ISERROR(VLOOKUP(D31,用語表!$C$3:$E$310,3,0)),"",VLOOKUP(D31,用語表!$C$3:$E$310,3,0)) -> NTP | G31: 196 | H31: =IF(ISERROR(VLOOKUP(G31,用語表!$C$3:$E$310,3,0)),"",VLOOKUP(G31,用語表!$C$3:$E$310,3,0)) -> バッファオーバーフロー攻撃 | J31: 224 | K31: =IF(ISERROR(VLOOKUP(J31,用語表!$C$3:$E$464,3,0)),"",VLOOKUP(J31,用語表!$C$3:$E$464,3,0)) -> 公開鍵
B33: ="出題範囲="&C45&":"&C46 -> 出題範囲=90:187 | E33: ="印刷範囲="&C49&":"&C50 -> 印刷範囲=91:100 | J33: 7
A34: 1 | B34: =IF(ISERROR(VLOOKUP(J34,用語表!$C$3:$E$310,2)),"",VLOOKUP(J34,用語表!$C$3:$E$310,2)) -> スター型ネットワークで使われる集線装置のこと。各機器に接続されたケーブルはいったんここに接続され、これを介して相互に通信する。 | J34: 155 | M34: =J34 -> 155 | N34: =IF(ISERROR(VLOOKUP(J34,用語表!$C$3:$E$513,3,0)),"",VLOOKUP(J34,用語表!$C$3:$E$513,3,0)&" "&VLOOKUP(J34,用語表!$C$3:$F$513,4,0)) -> ハブ
A35: 2 | B35: =IF(ISERROR(VLOOKUP(J35,用語表!$C$3:$E$310,2)),"",VLOOKUP(J35,用語表!$C$3:$E$310,2)) -> 論理設計の結果を用いて、利用するデータベース管理システムに応じた設計を行う作業。 | J35: 133 | M35: 133 | N35: =IF(ISERROR(VLOOKUP(J35,用語表!$C$3:$E$513,3,0)),"",VLOOKUP(J35,用語表!$C$3:$E$513,3,0)&" "&VLOOKUP(J35,用語表!$C$3:$F$513,4,0)) -> 物理設計
A36: 3 | B36: =IF(ISERROR(VLOOKUP(J36,用語表!$C$3:$E$310,2)),"",VLOOKUP(J36,用語表!$C$3:$E$310,2)) -> 利用するデータベース管理システムに合わせて、データベースの論理的な構造として表と索引を設計する作業。 | J36: 132 | M36: 132 | N36: =IF(ISERROR(VLOOKUP(J36,用語表!$C$3:$E$513,3,0)),"",VLOOKUP(J36,用語表!$C$3:$E$513,3,0)&" "&VLOOKUP(J36,用語表!$C$3:$F$513,4,0)) -> 論理設計
A37: 4 | B37: =IF(ISERROR(VLOOKUP(J37,用語表!$C$3:$E$310,2)),"",VLOOKUP(J37,用語表!$C$3:$E$310,2)) -> 電子メールを送信するためのサーバのこと。ユーザから送信されたメールを受け取り、送信先を探して、そこに送信する。 | J37: 180 | M37: 180 | N37: =IF(ISERROR(VLOOKUP(J37,用語表!$C$3:$E$513,3,0)),"",VLOOKUP(J37,用語表!$C$3:$E$513,3,0)&" "&VLOOKUP(J37,用語表!$C$3:$F$513,4,0)) -> SMTPサーバ
A38: 5 | B38: =IF(ISERROR(VLOOKUP(J38,用語表!$C$3:$E$310,2)),"",VLOOKUP(J38,用語表!$C$3:$E$310,2)) -> 「広域通信網」の略。電話回線や専用線を使って、本社－支社間など地理的に離れた地点にあるコンピュータ同士を接続し、データをやり取りすることを言う。 | J38: 148 | M38: 148 | N38: =IF(ISERROR(VLOOKUP(J38,用語表!$C$3:$E$513,3,0)),"",VLOOKUP(J38,用語表!$C$3:$E$513,3,0)&" "&VLOOKUP(J38,用語表!$C$3:$F$513,4,0)) -> ＷＡＮ Wide Area Network
A39: 6 | B39: =IF(ISERROR(VLOOKUP(J39,用語表!$C$3:$E$310,2)),"",VLOOKUP(J39,用語表!$C$3:$E$310,2)) -> 高齢者や障がい者などを含めて、Webサイトが誰もが利用できるかどうかということ | J39: 101 | M39: 101 | N39: =IF(ISERROR(VLOOKUP(J39,用語表!$C$3:$E$513,3,0)),"",VLOOKUP(J39,用語表!$C$3:$E$513,3,0)&" "&VLOOKUP(J39,用語表!$C$3:$F$513,4,0)) -> Webアクセシビリティ
A40: 7 | B40: =IF(ISERROR(VLOOKUP(J40,用語表!$C$3:$E$310,2)),"",VLOOKUP(J40,用語表!$C$3:$E$310,2)) -> ＮＴＴのＢフレッツなど、光ファイバーによる家庭向けのデータ通信サービス。 | J40: 161 | M40: 161 | N40: =IF(ISERROR(VLOOKUP(J40,用語表!$C$3:$E$513,3,0)),"",VLOOKUP(J40,用語表!$C$3:$E$513,3,0)&" "&VLOOKUP(J40,用語表!$C$3:$F$513,4,0)) -> ＦＴＴＨ Fiber To The Home
A41: 8 | B41: =IF(ISERROR(VLOOKUP(J41,用語表!$C$3:$E$310,2)),"",VLOOKUP(J41,用語表!$C$3:$E$310,2)) -> 構内ネットワークとインターネットの境にあって、直接インターネットに接続できない内部ネットワークのコンピュータに代わってインターネットとの接続を行うサーバのこと。 | J41: 182 | M41: 182 | N41: =IF(ISERROR(VLOOKUP(J41,用語表!$C$3:$E$513,3,0)),"",VLOOKUP(J41,用語表!$C$3:$E$513,3,0)&" "&VLOOKUP(J41,用語表!$C$3:$F$513,4,0)) -> プロキシサーバ
A42: 9 | B42: =IF(ISERROR(VLOOKUP(J42,用語表!$C$3:$E$310,2)),"",VLOOKUP(J42,用語表!$C$3:$E$310,2)) -> ネットワークに接続される機器が持つ時計を同期させるためのプロトコル。 複数の装置で処理を行うシステムにおいて、装置毎の時間が合っていないと、クライアントサーバシステムのように複数台の装置で行った処理の記録(ログ)などの時刻にずれがあるため、検証のために処理の追跡を行うときや、障害発生時の原因の特定、データの復旧が困難になってしまうために同期させる。 | J42: 168 | M42: 168 | N42: =IF(ISERROR(VLOOKUP(J42,用語表!$C$3:$E$513,3,0)),"",VLOOKUP(J42,用語表!$C$3:$E$513,3,0)&" "&VLOOKUP(J42,用語表!$C$3:$F$513,4,0)) -> NTP Network Time Protocol
A43: 10 | B43: =IF(ISERROR(VLOOKUP(J43,用語表!$C$3:$E$310,2)),"",VLOOKUP(J43,用語表!$C$3:$E$310,2)) -> 分散データベース環境において、使用するすべてのリソース(資源)をロックする第1フェーズと、操作の終了したリソースのロックを解除する第2フェーズからなる制御方式。この方式では、トランザクション中に一度でもロックの解除を行ったら、それ以降はロックを行わない。デッドロックを回避しながら排他制御を実現する手法。 | J43: 127 | M43: 127 | N43: =IF(ISERROR(VLOOKUP(J43,用語表!$C$3:$E$513,3,0)),"",VLOOKUP(J43,用語表!$C$3:$E$513,3,0)&" "&VLOOKUP(J43,用語表!$C$3:$F$513,4,0)) -> ２相ロック Two-Phase Locking
B45: 開始問題番号 | C45: 90 | N45: ０ 「開始問題番号」と「終了問題番号」を入力する。
B46: 終了問題番号 | C46: 187 | N46: 1～１１１までの問題番号
B47: 問題数 | C47: =C46-C45+1 -> 98
B48: 問題印刷枚数 | C48: 17 | N48: １ 問題数の行分の乱数を設定する。
B49: E列 印刷開始問題番号 | C49: 91 | N49: 例 問題数が３８の場合は、行５４から行９１まで
B50: E列 印刷終了問題番号 | C50: 100
N51: ２ 問題番号を値複写する。
A53: 問題数 | B53: 乱数＆問題番号 | E53: 値複写（作成する問題番号） | H53: 用語範囲の確認（範囲エラー） | K53: 重複の確認（"重複"の表示） | N53: ３ 「印刷開始問題番号」を入力して「問題の作成」ボタンを押す。
A54: 1 | B54: =RAND() -> 0.6930628309 | C54: =RANK(B54,$B$54:$B$160)+$C$45-1 -> 115 | E54: 169 | H54: =IF(AND(E54>=$C$45,E54<=$C$46),"","範囲エラー") ->  | K54: =IF(COUNTIF($E$54:E160,E54)>1,"重複","") -> 
A55: 2 | B55: 0.8240802495 | C55: =RANK(B55,$B$54:$B$160)+$C$45-1 -> 105 | E55: 96 | H55: =IF(AND(E55>=$C$45,E55<=$C$46),"","範囲エラー") ->  | K55: =IF(COUNTIF($E$54:E161,E55)>1,"重複","") ->  | N55: ４ 「問題印刷枚数」を入力して「問題の印刷」を押す。
A56: 3 | B56: 0.4689737842 | C56: 141 | E56: 93 | K56: =IF(COUNTIF($E$54:E162,E56)>1,"重複","") -> 
A57: 4 | B57: 0.1528282571 | C57: 171 | E57: 98 | K57: =IF(COUNTIF($E$54:E163,E57)>1,"重複","") ->  | N57: ５ 「解答の印刷」を押す。
A58: 5 | B58: 0.3014581729 | C58: 155 | E58: 160 | K58: =IF(COUNTIF($E$54:E164,E58)>1,"重複","") -> 
A59: 6 | B59: 0.0698295979 | C59: 177 | E59: 122 | K59: =IF(COUNTIF($E$54:E165,E59)>1,"重複","") -> 
A60: 7 | B60: 0.2934922801 | C60: 157 | E60: 183 | K60: =IF(COUNTIF($E$54:E166,E60)>1,"重複","") -> 
A61: 8 | B61: 0.680165314 | C61: 117 | E61: 112 | K61: =IF(COUNTIF($E$54:E167,E61)>1,"重複","") -> 
A62: 9 | B62: 0.1714975971 | C62: 166 | E62: 107 | K62: =IF(COUNTIF($E$54:E168,E62)>1,"重複","") -> 
A63: 10 | B63: 0.976102962 | C63: 91 | E63: 113 | K63: =IF(COUNTIF($E$54:E169,E63)>1,"重複","") -> 
A64: 11 | B64: 0.1686179371 | C64: 170 | E64: 146 | K64: =IF(COUNTIF($E$54:E170,E64)>1,"重複","") -> 
A65: 12 | B65: 0.1369151209 | C65: 174 | E65: 152 | K65: =IF(COUNTIF($E$54:E171,E65)>1,"重複","") -> 
A66: 13 | B66: 0.6513031297 | C66: 119 | E66: 153 | K66: =IF(COUNTIF($E$54:E172,E66)>1,"重複","") -> 
A67: 14 | B67: 0.8007563021 | C67: 108 | E67: 164 | K67: =IF(COUNTIF($E$54:E173,E67)>1,"重複","") -> 
A68: 15 | B68: 0.1290492618 | C68: 175 | E68: 120 | K68: =IF(COUNTIF($E$54:E174,E68)>1,"重複","") -> 
A69: 16 | B69: 0.713624522 | C69: 113 | E69: 151 | K69: =IF(COUNTIF($E$54:E175,E69)>1,"重複","") -> 
A70: 17 | B70: 0.0684685201 | C70: 178 | E70: 131 | K70: =IF(COUNTIF($E$54:E176,E70)>1,"重複","") -> 
A71: 18 | B71: 0.8731037948 | C71: 97 | E71: 114 | K71: =IF(COUNTIF($E$54:E177,E71)>1,"重複","") -> 
A72: 19 | B72: 0.8754204895 | C72: 95 | E72: 187 | K72: =IF(COUNTIF($E$54:E178,E72)>1,"重複","") -> 
A73: 20 | B73: 0.8265715584 | C73: 104 | E73: 116 | K73: =IF(COUNTIF($E$54:E179,E73)>1,"重複","") -> 
A74: 21 | B74: 0.8319812624 | C74: 101 | E74: 95 | K74: =IF(COUNTIF($E$54:E180,E74)>1,"重複","") -> 
A75: 22 | B75: 0.6294221447 | C75: 122 | E75: 110 | K75: =IF(COUNTIF($E$54:E181,E75)>1,"重複","") -> 
A76: 23 | B76: 0.4974945538 | C76: 140 | E76: 135 | K76: =IF(COUNTIF($E$54:E182,E76)>1,"重複","") -> 
A77: 24 | B77: 0.1706251035 | C77: 168 | E77: 134 | K77: =IF(COUNTIF($E$54:E183,E77)>1,"重複","") -> 
A78: 25 | B78: 0.6224004027 | C78: 124 | E78: 186 | K78: =IF(COUNTIF($E$54:E184,E78)>1,"重複","") -> 
A79: 26 | B79: 0.7840027428 | C79: 110 | E79: 137 | K79: =IF(COUNTIF($E$54:E185,E79)>1,"重複","") -> 
A80: 27 | B80: 0.7750736955 | C80: 111 | E80: 125 | K80: =IF(COUNTIF($E$54:E186,E80)>1,"重複","") -> 
A81: 28 | B81: 0.5214547997 | C81: 139 | E81: 94 | K81: =IF(COUNTIF($E$54:E187,E81)>1,"重複","") -> 
A82: 29 | B82: 0.85615018 | C82: 100 | E82: 154 | K82: =IF(COUNTIF($E$54:E188,E82)>1,"重複","") -> 
A83: 30 | B83: 0.6632355625 | C83: 118 | E83: 140 | K83: =IF(COUNTIF($E$54:E189,E83)>1,"重複","") -> 
A84: 31 | B84: 0.2204588378 | C84: 160 | E84: 141 | K84: =IF(COUNTIF($E$54:E190,E84)>1,"重複","") -> 
A85: 32 | B85: 0.04164265527 | C85: 183 | E85: 111 | K85: =IF(COUNTIF($E$54:E191,E85)>1,"重複","") -> 
A86: 33 | B86: 0.1703716646 | C86: 169 | E86: 123 | K86: =IF(COUNTIF($E$54:E192,E86)>1,"重複","") -> 
A87: 34 | B87: 0.2951002635 | C87: 156 | E87: 119 | K87: =IF(COUNTIF($E$54:E193,E87)>1,"重複","") -> 
A88: 35 | B88: 0.4680196323 | C88: 142 | E88: 162 | K88: =IF(COUNTIF($E$54:E194,E88)>1,"重複","") -> 
A89: 36 | B89: 0.7915520163 | C89: 109 | E89: 145 | K89: =IF(COUNTIF($E$54:E195,E89)>1,"重複","") -> 
A90: 37 | B90: 0.348818003 | C90: 152 | E90: 115 | K90: =IF(COUNTIF($E$54:E196,E90)>1,"重複","") -> 
A91: 38 | B91: 0.6955767554 | C91: 114 | E91: 127 | K91: =IF(COUNTIF($E$54:E197,E91)>1,"重複","") -> 重複
A92: 39 | B92: 0.4426140261 | C92: 144 | E92: 185 | K92: =IF(COUNTIF($E$54:E198,E92)>1,"重複","") -> 
A93: 40 | B93: 0.9809640872 | C93: 90 | E93: 124 | K93: =IF(COUNTIF($E$54:E199,E93)>1,"重複","") -> 
A94: 41 | B94: 0.1706978817 | C94: 167 | E94: 130 | K94: =IF(COUNTIF($E$54:E200,E94)>1,"重複","") -> 
A95: 42 | B95: 0.148667059 | C95: 173 | E95: 97 | K95: =IF(COUNTIF($E$54:E201,E95)>1,"重複","") -> 
A96: 43 | B96: 0.2391200492 | C96: 159 | E96: 184 | K96: =IF(COUNTIF($E$54:E202,E96)>1,"重複","") -> 
A97: 44 | B97: 0.1729691954 | C97: 165 | E97: 159 | K97: =IF(COUNTIF($E$54:E203,E97)>1,"重複","") -> 
A98: 45 | B98: 0.5986163709 | C98: 128 | E98: 138 | K98: =IF(COUNTIF($E$54:E204,E98)>1,"重複","") -> 
A99: 46 | B99: 0.05926089818 | C99: 180 | E99: 172 | K99: =IF(COUNTIF($E$54:E205,E99)>1,"重複","") -> 
A100: 47 | B100: 0.53043779 | C100: 137 | E100: 92 | K100: =IF(COUNTIF($E$54:E206,E100)>1,"重複","") -> 
A101: 48 | B101: 0.593556988 | C101: 130 | E101: 99 | K101: =IF(COUNTIF($E$54:E207,E101)>1,"重複","") -> 
A102: 49 | B102: 0.4250535117 | C102: 145 | E102: 102 | K102: =IF(COUNTIF($E$54:E208,E102)>1,"重複","") -> 
A103: 50 | B103: 0.9524039185 | C103: 92 | E103: 181 | K103: =IF(COUNTIF($E$54:E209,E103)>1,"重複","") -> 
A104: 51 | B104: 0.8284064961 | C104: 102 | E104: 128 | K104: =IF(COUNTIF($E$54:E210,E104)>1,"重複","") -> 
A105: 52 | B105: 0.4592837883 | C105: 143 | E105: 129 | K105: =IF(COUNTIF($E$54:E211,E105)>1,"重複","") -> 
A106: 53 | B106: 0.5461991233 | C106: 134 | E106: 177 | K106: =IF(COUNTIF($E$54:E212,E106)>1,"重複","") -> 
A107: 54 | B107: 0.8742810553 | C107: 96 | E107: 90 | K107: =IF(COUNTIF($E$54:E213,E107)>1,"重複","") -> 
A108: 55 | B108: 0.1508959752 | C108: 172 | E108: 157 | K108: =IF(COUNTIF($E$54:E214,E108)>1,"重複","") -> 
A109: 56 | B109: 0.8267920619 | C109: 103 | E109: 144 | K109: =IF(COUNTIF($E$54:E215,E109)>1,"重複","") -> 
A110: 57 | B110: 0.5265923656 | C110: 138 | E110: 170 | K110: =IF(COUNTIF($E$54:E216,E110)>1,"重複","") -> 
A111: 58 | B111: 0.7425535814 | C111: 112 | E111: 156 | K111: =IF(COUNTIF($E$54:E217,E111)>1,"重複","") -> 
A112: 59 | B112: 0.6271174968 | C112: 123 | E112: 147 | K112: =IF(COUNTIF($E$54:E218,E112)>1,"重複","") -> 
A113: 60 | B113: 0.5425238794 | C113: 136 | E113: 168 | K113: =IF(COUNTIF($E$54:E219,E113)>1,"重複","") -> 重複
A114: 61 | B114: 0.6341240302 | C114: 121 | E114: 178 | K114: =IF(COUNTIF($E$54:E220,E114)>1,"重複","") -> 
A115: 62 | B115: 0.2169541761 | C115: 161 | E115: 174 | K115: =IF(COUNTIF($E$54:E221,E115)>1,"重複","") -> 
A116: 63 | B116: 0.2492330921 | C116: 158 | E116: 149 | K116: =IF(COUNTIF($E$54:E222,E116)>1,"重複","") -> 
A117: 64 | B117: 0.6124021743 | C117: 125 | E117: 105 | K117: =IF(COUNTIF($E$54:E223,E117)>1,"重複","") -> 
A118: 65 | B118: =RAND() -> 0.5925993999 | C118: 131 | E118: 142 | K118: =IF(COUNTIF($E$54:E224,E118)>1,"重複","") -> 
A119: 66 | B119: 0.3187590008 | C119: =RANK(B119,$B$54:$B$160)+$C$45-1 -> 153 | E119: 126 | H119: =IF(AND(E119>=$C$45,E119<=$C$46),"","範囲エラー") ->  | K119: =IF(COUNTIF($E$54:E225,E119)>1,"重複","") -> 
A120: 67 | B120: 0.385869407 | C120: 150 | E120: 108 | K120: =IF(COUNTIF($E$54:E226,E120)>1,"重複","") -> 
A121: 68 | B121: 0.8656676994 | C121: 99 | E121: 173 | K121: =IF(COUNTIF($E$54:E227,E121)>1,"重複","") -> 
A122: 69 | B122: 0.05679184333 | C122: 181 | E122: 158 | K122: =IF(COUNTIF($E$54:E228,E122)>1,"重複","") -> 
A123: 70 | B123: 0.1916363461 | C123: 164 | E123: 176 | K123: =IF(COUNTIF($E$54:E229,E123)>1,"重複","") -> 
A124: 71 | B124: 0.5736255152 | C124: 133 | E124: 109 | K124: =IF(COUNTIF($E$54:E230,E124)>1,"重複","") -> 
A125: 72 | B125: 0.5955464186 | C125: 129 | E125: 100 | K125: =IF(COUNTIF($E$54:E231,E125)>1,"重複","") -> 
A126: 73 | B126: 0.1282369147 | C126: 176 | E126: 121 | K126: =IF(COUNTIF($E$54:E232,E126)>1,"重複","") -> 
A127: 74 | B127: 0.5924613834 | C127: 132 | E127: 103 | K127: =IF(COUNTIF($E$54:E233,E127)>1,"重複","") -> 
A128: 75 | B128: 0.005682179819 | C128: 186 | E128: 165 | K128: =IF(COUNTIF($E$54:E234,E128)>1,"重複","") -> 
A129: 76 | B129: 0.4221434109 | C129: 146 | E129: 106 | K129: =IF(COUNTIF($E$54:E235,E129)>1,"重複","") -> 
A130: 77 | B130: 0.6056024804 | C130: 126 | E130: 166 | K130: =IF(COUNTIF($E$54:E236,E130)>1,"重複","") -> 
A131: 78 | B131: 0.6801666338 | C131: 116 | E131: 104 | K131: =IF(COUNTIF($E$54:E237,E131)>1,"重複","") -> 
A132: 79 | B132: 0.05576171187 | C132: 182 | E132: 143 | K132: =IF(COUNTIF($E$54:E238,E132)>1,"重複","") -> 
A133: 80 | B133: 0.3813762295 | C133: 151 | E133: 175 | K133: =IF(COUNTIF($E$54:E239,E133)>1,"重複","") -> 
A134: 81 | B134: 0.3895278078 | C134: 149 | E134: 171 | K134: =IF(COUNTIF($E$54:E240,E134)>1,"重複","") -> 
A135: 82 | B135: 0.6007785559 | C135: 127 | E135: 150 | K135: =IF(COUNTIF($E$54:E241,E135)>1,"重複","") -> 
A136: 83 | B136: 0.3119057755 | C136: 154 | E136: 91 | K136: =IF(COUNTIF($E$54:E242,E136)>1,"重複","") -> 
A137: 84 | B137: 0.2125690386 | C137: 162 | E137: 118 | K137: =IF(COUNTIF($E$54:E243,E137)>1,"重複","") -> 
A138: 85 | B138: 0.002514611211 | C138: 187 | E138: 179 | K138: =IF(COUNTIF($E$54:E244,E138)>1,"重複","") -> 
A139: 86 | B139: 0.8219897741 | C139: 106 | E139: 167 | K139: =IF(COUNTIF($E$54:E245,E139)>1,"重複","") -> 
A140: 87 | B140: 0.06235987358 | C140: 179 | E140: 139 | K140: =IF(COUNTIF($E$54:E246,E140)>1,"重複","") -> 
A141: 88 | B141: 0.8014013192 | C141: 107 | E141: 136 | K141: =IF(COUNTIF($E$54:E247,E141)>1,"重複","") -> 
A142: 89 | B142: 0.8722717561 | C142: 98 | E142: 117 | K142: =IF(COUNTIF($E$54:E248,E142)>1,"重複","") -> 
A143: 90 | B143: 0.8984303649 | C143: 94 | E143: 163 | K143: =IF(COUNTIF($E$54:E249,E143)>1,"重複","") -> 
A144: 91 | B144: 0.1971021231 | C144: 163 | E144: 155 | K144: =IF(COUNTIF($E$54:E250,E144)>1,"重複","") -> 
A145: 92 | B145: 0.6361346459 | C145: 120 | E145: 133 | K145: =IF(COUNTIF($E$54:E251,E145)>1,"重複","") -> 
A146: 93 | B146: 0.4041024122 | C146: 148 | E146: 132 | K146: =IF(COUNTIF($E$54:E252,E146)>1,"重複","") -> 
A147: 94 | B147: 0.9297637716 | C147: 93 | E147: 180 | K147: =IF(COUNTIF($E$54:E253,E147)>1,"重複","") -> 
A148: 95 | B148: 0.04100371253 | C148: 184 | E148: 148 | K148: =IF(COUNTIF($E$54:E254,E148)>1,"重複","") -> 
A149: 96 | B149: 0.4096724585 | C149: 147 | D149: 96 | E149: 101 | K149: =IF(COUNTIF($E$54:E255,E149)>1,"重複","") -> 
A150: 97 | B150: 0.545567606 | C150: =RANK(B150,$B$54:$B$160)+$C$45-1 -> 135 | D150: 97 | E150: 161 | K150: =IF(COUNTIF($E$54:E256,E150)>1,"重複","") -> 
A151: 98 | B151: 0.008003505146 | C151: 185 | D151: 98 | E151: 182 | K151: =IF(COUNTIF($E$54:E257,E151)>1,"重複","") -> 
D152: 99 | E152: 168 | K152: =IF(COUNTIF($E$54:E258,E152)>1,"重複","") -> 重複
D153: 100 | E153: 127 | K153: =IF(COUNTIF($E$54:E259,E153)>1,"重複","") -> 重複

Sheet 問題作成_説明中心_3
B1: ITパスポート試験 用語確認問題
B2: 年 組 席 名前
A4: 225 | B4: =IF(ISERROR(VLOOKUP(A4,用語表!$C$3:$E$310,3,0)),"",VLOOKUP(A4,用語表!$C$3:$E$310,3,0)) -> 共通鍵暗号方式 | D4: =A31+1 -> 253 | E4: =IF(ISERROR(VLOOKUP(D4,用語表!$C$3:$E$310,3,0)),"",VLOOKUP(D4,用語表!$C$3:$E$310,3,0)) -> ＰＤＣＡサイクル | G4: =D31+1 -> 281 | H4: =IF(ISERROR(VLOOKUP(G4,用語表!$C$3:$E$602,3,0)),"",VLOOKUP(G4,用語表!$C$3:$E$602,3,0)) -> リードタイム | J4: =G31+1 -> 309 | K4: =IF(ISERROR(VLOOKUP(J4,用語表!$C$3:$E$602,3,0)),"",VLOOKUP(J4,用語表!$C$3:$E$602,3,0)) -> 実用新案権
A5: =A4+1 -> 226 | B5: =IF(ISERROR(VLOOKUP(A5,用語表!$C$3:$E$310,3,0)),"",VLOOKUP(A5,用語表!$C$3:$E$310,3,0)) -> 公開鍵暗号方式 | D5: =D4+1 -> 254 | E5: =IF(ISERROR(VLOOKUP(D5,用語表!$C$3:$E$310,3,0)),"",VLOOKUP(D5,用語表!$C$3:$E$310,3,0)) -> プロジェクト制組織 | G5: =G4+1 -> 282 | H5: =IF(ISERROR(VLOOKUP(G5,用語表!$C$3:$E$602,3,0)),"",VLOOKUP(G5,用語表!$C$3:$E$602,3,0)) -> 回帰分析 | J5: =J4+1 -> 310 | K5: =IF(ISERROR(VLOOKUP(J5,用語表!$C$3:$E$602,3,0)),"",VLOOKUP(J5,用語表!$C$3:$E$602,3,0)) -> 意匠権
A6: 227 | B6: =IF(ISERROR(VLOOKUP(A6,用語表!$C$3:$E$310,3,0)),"",VLOOKUP(A6,用語表!$C$3:$E$310,3,0)) -> SSL | D6: 255 | E6: =IF(ISERROR(VLOOKUP(D6,用語表!$C$3:$E$310,3,0)),"",VLOOKUP(D6,用語表!$C$3:$E$310,3,0)) -> マトリックス組織 | G6: 283 | H6: =IF(ISERROR(VLOOKUP(G6,用語表!$C$3:$E$602,3,0)),"",VLOOKUP(G6,用語表!$C$3:$E$602,3,0)) -> 損益計算書 | J6: =J5+1 -> 311 | K6: =IF(ISERROR(VLOOKUP(J6,用語表!$C$3:$E$602,3,0)),"",VLOOKUP(J6,用語表!$C$3:$E$602,3,0)) -> 商標権
A7: 228 | B7: =IF(ISERROR(VLOOKUP(A7,用語表!$C$3:$E$310,3,0)),"",VLOOKUP(A7,用語表!$C$3:$E$310,3,0)) -> シングルサインオン | D7: 256 | E7: =IF(ISERROR(VLOOKUP(D7,用語表!$C$3:$E$310,3,0)),"",VLOOKUP(D7,用語表!$C$3:$E$310,3,0)) -> 持株会社(ホールディングカンパニー) | G7: 284 | H7: =IF(ISERROR(VLOOKUP(G7,用語表!$C$3:$E$602,3,0)),"",VLOOKUP(G7,用語表!$C$3:$E$602,3,0)) -> 貸借対照表 | J7: 312 | K7: =IF(ISERROR(VLOOKUP(J7,用語表!$C$3:$E$602,3,0)),"",VLOOKUP(J7,用語表!$C$3:$E$602,3,0)) -> クロスライセンス
A8: 229 | B8: =IF(ISERROR(VLOOKUP(A8,用語表!$C$3:$E$310,3,0)),"",VLOOKUP(A8,用語表!$C$3:$E$310,3,0)) -> ワンタイムパスワード | D8: 257 | E8: =IF(ISERROR(VLOOKUP(D8,用語表!$C$3:$E$310,3,0)),"",VLOOKUP(D8,用語表!$C$3:$E$310,3,0)) -> QCサークル | G8: 285 | H8: =IF(ISERROR(VLOOKUP(G8,用語表!$C$3:$E$602,3,0)),"",VLOOKUP(G8,用語表!$C$3:$E$602,3,0)) -> 資本回転率 | J8: 313 | K8: =IF(ISERROR(VLOOKUP(J8,用語表!$C$3:$E$602,3,0)),"",VLOOKUP(J8,用語表!$C$3:$E$602,3,0)) -> 不正競争防止法
A9: 230 | B9: =IF(ISERROR(VLOOKUP(A9,用語表!$C$3:$E$310,3,0)),"",VLOOKUP(A9,用語表!$C$3:$E$310,3,0)) -> TKIP | D9: 258 | E9: =IF(ISERROR(VLOOKUP(D9,用語表!$C$3:$E$310,3,0)),"",VLOOKUP(D9,用語表!$C$3:$E$310,3,0)) -> TQC | G9: 286 | H9: =IF(ISERROR(VLOOKUP(G9,用語表!$C$3:$E$602,3,0)),"",VLOOKUP(G9,用語表!$C$3:$E$602,3,0)) -> 流動比率 | J9: 314 | K9: =IF(ISERROR(VLOOKUP(J9,用語表!$C$3:$E$602,3,0)),"",VLOOKUP(J9,用語表!$C$3:$E$602,3,0)) -> 不正アクセス禁止法
A10: 231 | B10: =IF(ISERROR(VLOOKUP(A10,用語表!$C$3:$E$310,3,0)),"",VLOOKUP(A10,用語表!$C$3:$E$310,3,0)) -> タイムスタンプ | D10: 259 | E10: =IF(ISERROR(VLOOKUP(D10,用語表!$C$3:$E$310,3,0)),"",VLOOKUP(D10,用語表!$C$3:$E$310,3,0)) -> Ｘバー管理図 | G10: 287 | H10: =IF(ISERROR(VLOOKUP(G10,用語表!$C$3:$E$602,3,0)),"",VLOOKUP(G10,用語表!$C$3:$E$602,3,0)) -> キャッシュフロー計算書 | J10: 315 | K10: =IF(ISERROR(VLOOKUP(J10,用語表!$C$3:$E$602,3,0)),"",VLOOKUP(J10,用語表!$C$3:$E$602,3,0)) -> 個人情報保護法
A11: 232 | B11: =IF(ISERROR(VLOOKUP(A11,用語表!$C$3:$E$310,3,0)),"",VLOOKUP(A11,用語表!$C$3:$E$310,3,0)) -> HTTPS | D11: 260 | E11: =IF(ISERROR(VLOOKUP(D11,用語表!$C$3:$E$310,3,0)),"",VLOOKUP(D11,用語表!$C$3:$E$310,3,0)) -> 管理図 | G11: 288 | H11: =IF(ISERROR(VLOOKUP(G11,用語表!$C$3:$E$602,3,0)),"",VLOOKUP(G11,用語表!$C$3:$E$602,3,0)) -> 損益分岐点 | J11: 316 | K11: =IF(ISERROR(VLOOKUP(J11,用語表!$C$3:$E$602,3,0)),"",VLOOKUP(J11,用語表!$C$3:$E$602,3,0)) -> 労働基準法
A12: 233 | B12: =IF(ISERROR(VLOOKUP(A12,用語表!$C$3:$E$310,3,0)),"",VLOOKUP(A12,用語表!$C$3:$E$310,3,0)) -> フィルタリング | D12: 261 | E12: =IF(ISERROR(VLOOKUP(D12,用語表!$C$3:$E$310,3,0)),"",VLOOKUP(D12,用語表!$C$3:$E$310,3,0)) -> 散布図 | G12: 289 | H12: =IF(ISERROR(VLOOKUP(G12,用語表!$C$3:$E$602,3,0)),"",VLOOKUP(G12,用語表!$C$3:$E$602,3,0)) -> 有価証券報告書 | J12: 317 | K12: =IF(ISERROR(VLOOKUP(J12,用語表!$C$3:$E$602,3,0)),"",VLOOKUP(J12,用語表!$C$3:$E$602,3,0)) -> 労働者派遣法
A13: 234 | B13: =IF(ISERROR(VLOOKUP(A13,用語表!$C$3:$E$310,3,0)),"",VLOOKUP(A13,用語表!$C$3:$E$310,3,0)) -> ログファイル | D13: 262 | E13: =IF(ISERROR(VLOOKUP(D13,用語表!$C$3:$E$310,3,0)),"",VLOOKUP(D13,用語表!$C$3:$E$310,3,0)) -> Ｚグラフ | G13: 290 | H13: =IF(ISERROR(VLOOKUP(G13,用語表!$C$3:$E$602,3,0)),"",VLOOKUP(G13,用語表!$C$3:$E$602,3,0)) -> 直接原価計算 | J13: 318 | K13: =IF(ISERROR(VLOOKUP(J13,用語表!$C$3:$E$602,3,0)),"",VLOOKUP(J13,用語表!$C$3:$E$602,3,0)) -> 請負契約
A14: 235 | B14: =IF(ISERROR(VLOOKUP(A14,用語表!$C$3:$E$310,3,0)),"",VLOOKUP(A14,用語表!$C$3:$E$310,3,0)) -> 経営理念 | D14: 263 | E14: =IF(ISERROR(VLOOKUP(D14,用語表!$C$3:$E$310,3,0)),"",VLOOKUP(D14,用語表!$C$3:$E$310,3,0)) -> パレート図 | G14: 291 | H14: =IF(ISERROR(VLOOKUP(G14,用語表!$C$3:$E$602,3,0)),"",VLOOKUP(G14,用語表!$C$3:$E$602,3,0)) -> 変動費率 | J14: 319 | K14: =IF(ISERROR(VLOOKUP(J14,用語表!$C$3:$E$602,3,0)),"",VLOOKUP(J14,用語表!$C$3:$E$602,3,0)) -> 下請法
A15: 236 | B15: =IF(ISERROR(VLOOKUP(A15,用語表!$C$3:$E$310,3,0)),"",VLOOKUP(A15,用語表!$C$3:$E$310,3,0)) -> 経営資源 | D15: 264 | E15: =IF(ISERROR(VLOOKUP(D15,用語表!$C$3:$E$310,3,0)),"",VLOOKUP(D15,用語表!$C$3:$E$310,3,0)) -> マトリックス図法 | G15: 292 | H15: =IF(ISERROR(VLOOKUP(G15,用語表!$C$3:$E$602,3,0)),"",VLOOKUP(G15,用語表!$C$3:$E$602,3,0)) -> 売上高営業利益率 | J15: 320 | K15: =IF(ISERROR(VLOOKUP(J15,用語表!$C$3:$E$602,3,0)),"",VLOOKUP(J15,用語表!$C$3:$E$602,3,0)) -> 製造物責任法(PL法)
A16: 237 | B16: =IF(ISERROR(VLOOKUP(A16,用語表!$C$3:$E$310,3,0)),"",VLOOKUP(A16,用語表!$C$3:$E$310,3,0)) -> ＣＩＯ | D16: 265 | E16: =IF(ISERROR(VLOOKUP(D16,用語表!$C$3:$E$310,3,0)),"",VLOOKUP(D16,用語表!$C$3:$E$310,3,0)) -> レーダチャート | G16: 293 | H16: =IF(ISERROR(VLOOKUP(G16,用語表!$C$3:$E$602,3,0)),"",VLOOKUP(G16,用語表!$C$3:$E$602,3,0)) -> ROE（自己資本利益率） | J16: 321 | K16: =IF(ISERROR(VLOOKUP(J16,用語表!$C$3:$E$602,3,0)),"",VLOOKUP(J16,用語表!$C$3:$E$602,3,0)) -> プロバイダ責任制限法
A17: 238 | B17: =IF(ISERROR(VLOOKUP(A17,用語表!$C$3:$E$310,3,0)),"",VLOOKUP(A17,用語表!$C$3:$E$310,3,0)) -> CHO | D17: 266 | E17: =IF(ISERROR(VLOOKUP(D17,用語表!$C$3:$E$310,3,0)),"",VLOOKUP(D17,用語表!$C$3:$E$310,3,0)) -> オペレーティングリサーチ(OR) | G17: 294 | H17: =IF(ISERROR(VLOOKUP(G17,用語表!$C$3:$E$602,3,0)),"",VLOOKUP(G17,用語表!$C$3:$E$602,3,0)) -> EVA(経済付加価値) | J17: 322 | K17: =IF(ISERROR(VLOOKUP(J17,用語表!$C$3:$E$602,3,0)),"",VLOOKUP(J17,用語表!$C$3:$E$602,3,0)) -> 会社法
A18: 239 | B18: =IF(ISERROR(VLOOKUP(A18,用語表!$C$3:$E$310,3,0)),"",VLOOKUP(A18,用語表!$C$3:$E$310,3,0)) -> CFO | D18: 267 | E18: =IF(ISERROR(VLOOKUP(D18,用語表!$C$3:$E$310,3,0)),"",VLOOKUP(D18,用語表!$C$3:$E$310,3,0)) -> マトリックスデータ解析法 | G18: 295 | H18: =IF(ISERROR(VLOOKUP(G18,用語表!$C$3:$E$602,3,0)),"",VLOOKUP(G18,用語表!$C$3:$E$602,3,0)) -> PER(株価収益率) | J18: 323 | K18: =IF(ISERROR(VLOOKUP(J18,用語表!$C$3:$E$602,3,0)),"",VLOOKUP(J18,用語表!$C$3:$E$602,3,0)) -> コーポレートガバナンス
A19: 240 | B19: =IF(ISERROR(VLOOKUP(A19,用語表!$C$3:$E$310,3,0)),"",VLOOKUP(A19,用語表!$C$3:$E$310,3,0)) -> COO | D19: 268 | E19: =IF(ISERROR(VLOOKUP(D19,用語表!$C$3:$E$310,3,0)),"",VLOOKUP(D19,用語表!$C$3:$E$310,3,0)) -> ヒストグラム | G19: 296 | H19: =IF(ISERROR(VLOOKUP(G19,用語表!$C$3:$E$602,3,0)),"",VLOOKUP(G19,用語表!$C$3:$E$602,3,0)) -> ROA(総資産利益率) | J19: 324 | K19: =IF(ISERROR(VLOOKUP(J19,用語表!$C$3:$E$602,3,0)),"",VLOOKUP(J19,用語表!$C$3:$E$602,3,0)) -> コンプライアンス
A20: 241 | B20: =IF(ISERROR(VLOOKUP(A20,用語表!$C$3:$E$310,3,0)),"",VLOOKUP(A20,用語表!$C$3:$E$310,3,0)) -> CEO | D20: 269 | E20: =IF(ISERROR(VLOOKUP(D20,用語表!$C$3:$E$310,3,0)),"",VLOOKUP(D20,用語表!$C$3:$E$310,3,0)) -> 現状分析 | G20: 297 | H20: =IF(ISERROR(VLOOKUP(G20,用語表!$C$3:$E$602,3,0)),"",VLOOKUP(G20,用語表!$C$3:$E$602,3,0)) -> 先入れ先出し法 | J20: 325 | K20: =IF(ISERROR(VLOOKUP(J20,用語表!$C$3:$E$602,3,0)),"",VLOOKUP(J20,用語表!$C$3:$E$602,3,0)) -> アカウンタビリティ
A21: 242 | B21: =IF(ISERROR(VLOOKUP(A21,用語表!$C$3:$E$310,3,0)),"",VLOOKUP(A21,用語表!$C$3:$E$310,3,0)) -> ＣＳＲ | D21: 270 | E21: =IF(ISERROR(VLOOKUP(D21,用語表!$C$3:$E$310,3,0)),"",VLOOKUP(D21,用語表!$C$3:$E$310,3,0)) -> ブレーンストーミング | G21: 298 | H21: =IF(ISERROR(VLOOKUP(G21,用語表!$C$3:$E$602,3,0)),"",VLOOKUP(G21,用語表!$C$3:$E$602,3,0)) -> 移動平均法 | J21: 326 | K21: =IF(ISERROR(VLOOKUP(J21,用語表!$C$3:$E$602,3,0)),"",VLOOKUP(J21,用語表!$C$3:$E$602,3,0)) -> チェーンメール
A22: 243 | B22: =IF(ISERROR(VLOOKUP(A22,用語表!$C$3:$E$310,3,0)),"",VLOOKUP(A22,用語表!$C$3:$E$310,3,0)) -> ディスクロージャー | D22: 271 | E22: =IF(ISERROR(VLOOKUP(D22,用語表!$C$3:$E$310,3,0)),"",VLOOKUP(D22,用語表!$C$3:$E$310,3,0)) -> KJ法 | G22: 299 | H22: =IF(ISERROR(VLOOKUP(G22,用語表!$C$3:$E$602,3,0)),"",VLOOKUP(G22,用語表!$C$3:$E$602,3,0)) -> 定額法 | J22: 327 | K22: =IF(ISERROR(VLOOKUP(J22,用語表!$C$3:$E$602,3,0)),"",VLOOKUP(J22,用語表!$C$3:$E$602,3,0)) -> スパムメール
A23: 244 | B23: =IF(ISERROR(VLOOKUP(A23,用語表!$C$3:$E$310,3,0)),"",VLOOKUP(A23,用語表!$C$3:$E$310,3,0)) -> OJT | D23: 272 | E23: =IF(ISERROR(VLOOKUP(D23,用語表!$C$3:$E$310,3,0)),"",VLOOKUP(D23,用語表!$C$3:$E$310,3,0)) -> 決定表（デシジョンテーブル） | G23: 300 | H23: =IF(ISERROR(VLOOKUP(G23,用語表!$C$3:$E$602,3,0)),"",VLOOKUP(G23,用語表!$C$3:$E$602,3,0)) -> 定率法 | J23: 328 | K23: =IF(ISERROR(VLOOKUP(J23,用語表!$C$3:$E$602,3,0)),"",VLOOKUP(J23,用語表!$C$3:$E$602,3,0)) -> ＩＳＯ
A24: 245 | B24: =IF(ISERROR(VLOOKUP(A24,用語表!$C$3:$E$310,3,0)),"",VLOOKUP(A24,用語表!$C$3:$E$310,3,0)) -> ＩＲ | D24: 273 | E24: =IF(ISERROR(VLOOKUP(D24,用語表!$C$3:$E$310,3,0)),"",VLOOKUP(D24,用語表!$C$3:$E$310,3,0)) -> DFD | G24: 301 | H24: =IF(ISERROR(VLOOKUP(G24,用語表!$C$3:$E$602,3,0)),"",VLOOKUP(G24,用語表!$C$3:$E$602,3,0)) -> 知的財産権 | J24: 329 | K24: =IF(ISERROR(VLOOKUP(J24,用語表!$C$3:$E$602,3,0)),"",VLOOKUP(J24,用語表!$C$3:$E$602,3,0)) -> ＩＳＯ／ＩＥＣ １５４０８
A25: 246 | B25: =IF(ISERROR(VLOOKUP(A25,用語表!$C$3:$E$310,3,0)),"",VLOOKUP(A25,用語表!$C$3:$E$310,3,0)) -> グリーンIT | D25: 274 | E25: =IF(ISERROR(VLOOKUP(D25,用語表!$C$3:$E$310,3,0)),"",VLOOKUP(D25,用語表!$C$3:$E$310,3,0)) -> パート図 | G25: 302 | H25: =IF(ISERROR(VLOOKUP(G25,用語表!$C$3:$E$602,3,0)),"",VLOOKUP(G25,用語表!$C$3:$E$602,3,0)) -> 著作権 | J25: 330 | K25: =IF(ISERROR(VLOOKUP(J25,用語表!$C$3:$E$602,3,0)),"",VLOOKUP(J25,用語表!$C$3:$E$602,3,0)) -> ＱＲコード
A26: 247 | B26: =IF(ISERROR(VLOOKUP(A26,用語表!$C$3:$E$310,3,0)),"",VLOOKUP(A26,用語表!$C$3:$E$310,3,0)) -> 階層別組織 | D26: 275 | E26: =IF(ISERROR(VLOOKUP(D26,用語表!$C$3:$E$310,3,0)),"",VLOOKUP(D26,用語表!$C$3:$E$310,3,0)) -> クリティカルパス | G26: 303 | H26: =IF(ISERROR(VLOOKUP(G26,用語表!$C$3:$E$602,3,0)),"",VLOOKUP(G26,用語表!$C$3:$E$602,3,0)) -> 著作隣接権 | J26: 331 | K26: =IF(ISERROR(VLOOKUP(J26,用語表!$C$3:$E$602,3,0)),"",VLOOKUP(J26,用語表!$C$3:$E$602,3,0)) -> ＩＥＣ
A27: 248 | B27: =IF(ISERROR(VLOOKUP(A27,用語表!$C$3:$E$310,3,0)),"",VLOOKUP(A27,用語表!$C$3:$E$310,3,0)) -> 株主総会 | D27: 276 | E27: =IF(ISERROR(VLOOKUP(D27,用語表!$C$3:$E$310,3,0)),"",VLOOKUP(D27,用語表!$C$3:$E$310,3,0)) -> ABC分析 | G27: 304 | H27: =IF(ISERROR(VLOOKUP(G27,用語表!$C$3:$E$602,3,0)),"",VLOOKUP(G27,用語表!$C$3:$E$602,3,0)) -> ソフトウェアライセンス | J27: 332 | K27: =IF(ISERROR(VLOOKUP(J27,用語表!$C$3:$E$602,3,0)),"",VLOOKUP(J27,用語表!$C$3:$E$602,3,0)) -> ＩＥＥＥ
A28: 249 | B28: =IF(ISERROR(VLOOKUP(A28,用語表!$C$3:$E$310,3,0)),"",VLOOKUP(A28,用語表!$C$3:$E$310,3,0)) -> カンパニー制組織 | D28: 277 | E28: =IF(ISERROR(VLOOKUP(D28,用語表!$C$3:$E$310,3,0)),"",VLOOKUP(D28,用語表!$C$3:$E$310,3,0)) -> 正の相関 | G28: 305 | H28: =IF(ISERROR(VLOOKUP(G28,用語表!$C$3:$E$602,3,0)),"",VLOOKUP(G28,用語表!$C$3:$E$602,3,0)) -> ボリュームライセンス契約 | J28: 333 | K28: =IF(ISERROR(VLOOKUP(J28,用語表!$C$3:$E$602,3,0)),"",VLOOKUP(J28,用語表!$C$3:$E$602,3,0)) -> ＡＮＳＩ
A29: 250 | B29: =IF(ISERROR(VLOOKUP(A29,用語表!$C$3:$E$310,3,0)),"",VLOOKUP(A29,用語表!$C$3:$E$310,3,0)) -> 事業部制組織 | D29: 278 | E29: =IF(ISERROR(VLOOKUP(D29,用語表!$C$3:$E$310,3,0)),"",VLOOKUP(D29,用語表!$C$3:$E$310,3,0)) -> 負の相関 | G29: 306 | H29: =IF(ISERROR(VLOOKUP(G29,用語表!$C$3:$E$602,3,0)),"",VLOOKUP(G29,用語表!$C$3:$E$602,3,0)) -> シェアウェア | J29: 334 | K29: =IF(ISERROR(VLOOKUP(J29,用語表!$C$3:$E$602,3,0)),"",VLOOKUP(J29,用語表!$C$3:$E$602,3,0)) -> ＪＩＳ
A30: 251 | B30: =IF(ISERROR(VLOOKUP(A30,用語表!$C$3:$E$310,3,0)),"",VLOOKUP(A30,用語表!$C$3:$E$310,3,0)) -> 社内ベンチャー組織 | D30: 279 | E30: =IF(ISERROR(VLOOKUP(D30,用語表!$C$3:$E$310,3,0)),"",VLOOKUP(D30,用語表!$C$3:$E$310,3,0)) -> 特性要因図 | G30: 307 | H30: =IF(ISERROR(VLOOKUP(G30,用語表!$C$3:$E$602,3,0)),"",VLOOKUP(G30,用語表!$C$3:$E$602,3,0)) -> 産業財産権 | J30: 335 | K30: =IF(ISERROR(VLOOKUP(J30,用語表!$C$3:$E$602,3,0)),"",VLOOKUP(J30,用語表!$C$3:$E$602,3,0)) -> 企業理念
A31: 252 | B31: =IF(ISERROR(VLOOKUP(A31,用語表!$C$3:$E$310,3,0)),"",VLOOKUP(A31,用語表!$C$3:$E$310,3,0)) -> 職能別組織 | D31: 280 | E31: =IF(ISERROR(VLOOKUP(D31,用語表!$C$3:$E$310,3,0)),"",VLOOKUP(D31,用語表!$C$3:$E$310,3,0)) -> 在庫引当 | G31: 308 | H31: =IF(ISERROR(VLOOKUP(G31,用語表!$C$3:$E$602,3,0)),"",VLOOKUP(G31,用語表!$C$3:$E$602,3,0)) -> 特許権 | K31: =IF(ISERROR(VLOOKUP(J31,用語表!$C$3:$E$602,3,0)),"",VLOOKUP(J31,用語表!$C$3:$E$602,3,0)) -> 
B33: ="出題範囲="&C45&":"&C46 -> 出題範囲=235:300 | E33: ="印刷範囲="&C49&":"&C50 -> 印刷範囲=61:70 | J33: 7
A34: 1 | B34: =IF(ISERROR(VLOOKUP(J34,用語表!$C$3:$E$513,2)),"",VLOOKUP(J34,用語表!$C$3:$E$513,2)) -> 売上高や生産高の変化に応じて、原価がどのように変化するのかいという原価計算の方法。費用を固定費と変動費に分けて管理する。 | J34: 290 | M34: =J34 -> 290 | N34: =IF(ISERROR(VLOOKUP(J34,用語表!$C$3:$E$513,3,0)),"",VLOOKUP(J34,用語表!$C$3:$E$513,3,0)&" "&VLOOKUP(J34,用語表!$C$3:$F$513,4,0)) -> 直接原価計算
A35: 2 | B35: =IF(ISERROR(VLOOKUP(J35,用語表!$C$3:$E$513,2)),"",VLOOKUP(J35,用語表!$C$3:$E$513,2)) -> ある時点での企業の財務状態を表す。資産、負債、純資産で構成され、資産＝負債＋純資産となる。バランスシート（Balance Sheet,B/S）ともいう。 | J35: 284 | M35: 284 | N35: =IF(ISERROR(VLOOKUP(J35,用語表!$C$3:$E$513,3,0)),"",VLOOKUP(J35,用語表!$C$3:$E$513,3,0)&" "&VLOOKUP(J35,用語表!$C$3:$F$513,4,0)) -> 貸借対照表
A36: 3 | B36: =IF(ISERROR(VLOOKUP(J36,用語表!$C$3:$E$513,2)),"",VLOOKUP(J36,用語表!$C$3:$E$513,2)) -> 件数の多い順に並べた棒グラフと、累計を表す折れ線グラフを組み合わせたグラフ。重点項目を調べるABC分析によく使われる。 | J36: 263 | M36: 263 | N36: =IF(ISERROR(VLOOKUP(J36,用語表!$C$3:$E$513,3,0)),"",VLOOKUP(J36,用語表!$C$3:$E$513,3,0)&" "&VLOOKUP(J36,用語表!$C$3:$F$513,4,0)) -> パレート図
A37: 4 | B37: =IF(ISERROR(VLOOKUP(J37,用語表!$C$3:$E$513,2)),"",VLOOKUP(J37,用語表!$C$3:$E$513,2)) -> 組織全体を職種ごとに生産や販売を担当するライン部門と経理など専門化された職種を担当するスタック部門に分けて組織化するもの。一般的な会社の組織。 | J37: 252 | M37: 252 | N37: =IF(ISERROR(VLOOKUP(J37,用語表!$C$3:$E$513,3,0)),"",VLOOKUP(J37,用語表!$C$3:$E$513,3,0)&" "&VLOOKUP(J37,用語表!$C$3:$F$513,4,0)) -> 職能別組織
A38: 5 | B38: =IF(ISERROR(VLOOKUP(J38,用語表!$C$3:$E$513,2)),"",VLOOKUP(J38,用語表!$C$3:$E$513,2)) -> 投資家向け広報活動。 投資家やアナリストに対して、投資判断に必要な正確な経営情報を適時に、かつ継続して提供すること。 | J38: 245 | M38: 245 | N38: =IF(ISERROR(VLOOKUP(J38,用語表!$C$3:$E$513,3,0)),"",VLOOKUP(J38,用語表!$C$3:$E$513,3,0)&" "&VLOOKUP(J38,用語表!$C$3:$F$513,4,0)) -> ＩＲ Investor Relations
A39: 6 | B39: =IF(ISERROR(VLOOKUP(J39,用語表!$C$3:$E$513,2)),"",VLOOKUP(J39,用語表!$C$3:$E$513,2)) -> 品質に関する活動を手順化・文書化・記録化することによって，品質の保証と顧客満足の向上を図ること。 | J39: 258 | M39: 258 | N39: =IF(ISERROR(VLOOKUP(J39,用語表!$C$3:$E$513,3,0)),"",VLOOKUP(J39,用語表!$C$3:$E$513,3,0)&" "&VLOOKUP(J39,用語表!$C$3:$F$513,4,0)) -> TQC Total Quality Management
A40: 7 | B40: =IF(ISERROR(VLOOKUP(J40,用語表!$C$3:$E$513,2)),"",VLOOKUP(J40,用語表!$C$3:$E$513,2)) -> 新QC７つ道具の１つで、関係を分析したい２つの要素を縦軸と横軸にとり、その交点に関係の有無や関係の度合いを書き込むことで、問題の所在を明らかにしていく手法。 | J40: 264 | M40: 264 | N40: =IF(ISERROR(VLOOKUP(J40,用語表!$C$3:$E$513,3,0)),"",VLOOKUP(J40,用語表!$C$3:$E$513,3,0)&" "&VLOOKUP(J40,用語表!$C$3:$F$513,4,0)) -> マトリックス図法
A41: 8 | B41: =IF(ISERROR(VLOOKUP(J41,用語表!$C$3:$E$513,2)),"",VLOOKUP(J41,用語表!$C$3:$E$513,2)) -> 最高執行責任者のこと。日々の業務執行、特に営業活動の責任を請け負う。 | J41: 240 | M41: 240 | N41: =IF(ISERROR(VLOOKUP(J41,用語表!$C$3:$E$513,3,0)),"",VLOOKUP(J41,用語表!$C$3:$E$513,3,0)&" "&VLOOKUP(J41,用語表!$C$3:$F$513,4,0)) -> COO Chief Operating Officer
A42: 9 | B42: =IF(ISERROR(VLOOKUP(J42,用語表!$C$3:$E$513,2)),"",VLOOKUP(J42,用語表!$C$3:$E$513,2)) -> 対象の要素を重要な順に並べ、上位からABCの３グループにわけて分析すること。 | J42: 276 | M42: 276 | N42: =IF(ISERROR(VLOOKUP(J42,用語表!$C$3:$E$513,3,0)),"",VLOOKUP(J42,用語表!$C$3:$E$513,3,0)&" "&VLOOKUP(J42,用語表!$C$3:$F$513,4,0)) -> ABC分析
A43: 10 | B43: =IF(ISERROR(VLOOKUP(J43,用語表!$C$3:$E$513,2)),"",VLOOKUP(J43,用語表!$C$3:$E$513,2)) -> 日本語訳は自己資本利益率や株主資本利益率といわれるもの。企業の自己資本(株主資本)に対する当期純利益の割合のことをで、値が大きいほど利益率が高く、資産(設備投資など)がうまくまわっている(機能している)ことを表す。 | J43: 293 | M43: 293 | N43: =IF(ISERROR(VLOOKUP(J43,用語表!$C$3:$E$513,3,0)),"",VLOOKUP(J43,用語表!$C$3:$E$513,3,0)&" "&VLOOKUP(J43,用語表!$C$3:$F$513,4,0)) -> ROE（自己資本利益率） Return On Equity
B45: 開始問題番号 | C45: 235 | N45: ０ 「開始問題番号」と「終了問題番号」を入力する。
B46: 終了問題番号 | C46: 300 | N46: 1～１１１までの問題番号
B47: 問題数 | C47: =C46-C45+1 -> 66
B48: 問題印刷枚数 | C48: 11 | N48: １ 問題数の行分の乱数を設定する。
B49: E列 印刷開始問題番号 | C49: 61 | N49: 例 問題数が３８の場合は、行５４から行９１まで
B50: E列 印刷終了問題番号 | C50: 70
N51: ２ 問題番号を値複写する。
A53: 問題数 | B53: 乱数＆問題番号 | E53: 値複写（作成する問題番号） | H53: 用語範囲の確認（範囲エラー） | K53: 重複の確認（"重複"の表示） | N53: ３ 「印刷開始問題番号」を入力して「問題の作成」ボタンを押す。
A54: 1 | B54: =RAND() -> 0.524591329 | C54: =RANK(B54,$B$54:$B$150)+$C$45-1 -> 262 | E54: 246 | H54: =IF(AND(E54>=$C$45,E54<=$C$46),"","範囲エラー") ->  | K54: =IF(COUNTIF($E$54:$E$123,E54)>1,"重複","") -> 
A55: 2 | B55: 0.2748486249 | C55: =RANK(B55,$B$54:$B$150)+$C$45-1 -> 281 | E55: 254 | K55: =IF(COUNTIF($E$54:$E$123,E55)>1,"重複","") ->  | N55: ４ 「問題印刷枚数」を入力して「問題の印刷」を押す。
A56: 3 | B56: 0.7700041056 | C56: 248 | E56: 235
A57: 4 | B57: 0.02533849703 | C57: 299 | E57: 274 | N57: ５ 「解答の印刷」を押す。
A58: 5 | B58: 0.3453172666 | C58: 275 | E58: 288
A59: 6 | B59: 0.7291224888 | C59: 252 | E59: 236
A60: 7 | B60: 0.3681998783 | C60: 274 | E60: 248
A61: 8 | B61: 0.06737365539 | C61: 296 | E61: 297
A62: 9 | B62: 0.9993246661 | C62: 235 | E62: 237
A63: 10 | B63: 0.1043166973 | C63: 294 | E63: 242
A64: 11 | B64: 0.1187981602 | C64: 292 | E64: 240 | K64: 重複
A65: 12 | B65: 0.1652480516 | C65: 288 | E65: 255
A66: 13 | B66: 0.5028887527 | C66: 263 | E66: 276 | K66: 重複
A67: 14 | B67: 0.3762643129 | C67: 273 | E67: 249
A68: 15 | B68: 0.4033441175 | C68: 271 | E68: 256
A69: 16 | B69: 0.5672591675 | C69: 258 | E69: 292
A70: 17 | B70: 0.02570762956 | C70: 298 | E70: 283
A71: 18 | B71: 0.0002323582837 | C71: 300 | E71: 264 | K71: 重複
A72: 19 | B72: 0.7777019228 | C72: 247 | E72: 261
A73: 20 | B73: 0.180156094 | C73: 286 | E73: 272
A74: 21 | B74: 0.02637503853 | C74: 297 | E74: 280
A75: 22 | B75: 0.7019128171 | C75: 253 | E75: 238
A76: 23 | B76: 0.5256119883 | C76: 261 | E76: 253
A77: 24 | B77: 0.1187587775 | C77: 293 | E77: 286
A78: 25 | B78: 0.7461686829 | C78: 250 | E78: 285
A79: 26 | B79: 0.1226053697 | C79: 290 | E79: 247
A80: 27 | B80: 0.5522951323 | C80: 259 | E80: 251
A81: 28 | B81: 0.4344067885 | C81: 267 | E81: 262
A82: 29 | B82: 0.4274707466 | C82: 268 | E82: 287
A83: 30 | B83: 0.4125428776 | C83: 270 | E83: 293 | K83: 重複
A84: 31 | B84: 0.9367183822 | C84: 240 | E84: 278
A85: 32 | B85: 0.9393243021 | C85: 239 | E85: 289
A86: 33 | B86: 0.2914188276 | C86: 280 | E86: 267
A87: 34 | B87: 0.952328118 | C87: 237 | E87: 268
A88: 35 | B88: 0.4238537511 | C88: 269 | E88: 294
A89: 36 | B89: 0.6636490375 | C89: 255 | E89: 295
A90: 37 | B90: 0.9132768616 | C90: 241 | E90: 300
A91: 38 | B91: 0.9728486327 | C91: 236 | E91: 243
A92: 39 | B92: 0.128880961 | C92: 289 | E92: 259
A93: 40 | B93: 0.9463122917 | C93: 238 | E93: 296
A94: 41 | B94: 0.5846991481 | C94: =RANK(B94,$B$54:$B$150)+$C$45-1 -> 257 | E94: 271
A95: 42 | B95: 0.2962977091 | C95: 279 | E95: 239
A96: 43 | B96: 0.4470189125 | C96: 265 | E96: 279
A97: 44 | B97: 0.24978538 | C97: 284 | E97: 298
A98: 45 | B98: 0.4652531247 | C98: 264 | E98: 250
A99: 46 | B99: 0.7374027817 | C99: 251 | E99: 241
A100: 47 | B100: 0.6420433682 | C100: 256 | E100: 257
A101: 48 | B101: 0.07893643125 | C101: 295 | E101: 275
A102: 49 | B102: 0.8500957394 | C102: 243 | E102: 266
A103: 50 | B103: 0.1788997803 | C103: 287 | E103: 244
A104: 51 | B104: 0.7873549953 | C104: 246 | E104: 277
A105: 52 | B105: 0.119328899 | C105: 291 | E105: 260
A106: 53 | B106: 0.5309054679 | C106: 260 | E106: 269
A107: 54 | B107: 0.4391664348 | C107: 266 | E107: 270
A108: 55 | B108: 0.8012189272 | C108: 245 | E108: 281
A109: 56 | B109: 0.3241703479 | C109: 278 | E109: 291
A110: 57 | B110: 0.2378604791 | C110: 285 | E110: 299
A111: 58 | B111: 0.2692224793 | C111: 282 | E111: 282
A112: 59 | B112: 0.6647917541 | C112: 254 | E112: 265
A113: 60 | B113: 0.3317439829 | C113: 276 | E113: 273
A114: 61 | B114: 0.3263534648 | C114: 277 | E114: 290
A115: 62 | B115: 0.7546536977 | C115: 249 | E115: 284
A116: 63 | B116: 0.3947716993 | C116: 272 | E116: 263
A117: 64 | B117: 0.2620940484 | C117: 283 | E117: 252
A118: 65 | B118: =RAND() -> 0.8879863399 | C118: 242 | E118: 245 | H118: =IF(AND(E118>=$C$45,E118<=$C$46),"","範囲エラー") -> 
A119: 66 | B119: 0.8078852742 | C119: 244 | E119: 258 | K119: =IF(COUNTIF($E$54:$E$123,E119)>1,"重複","") -> 
A120: 67 | E120: 264 | K120: 重複
A121: 68 | E121: 240 | K121: 重複
A122: 69 | E122: 276 | K122: 重複
A123: 70 | E123: 293 | K123: 重複

Sheet 問題作成_説明中心_4
B1: ITパスポート試験 用語確認問題
B2: 年 組 席 名前
A4: 388 | B4: =IF(ISERROR(VLOOKUP(A4,用語表!$C$3:$E$602,3,0)),"",VLOOKUP(A4,用語表!$C$3:$E$602,3,0)) -> ＰＯＳ | D4: =A31+1 -> 416 | E4: =IF(ISERROR(VLOOKUP(D4,用語表!$C$3:$E$602,3,0)),"",VLOOKUP(D4,用語表!$C$3:$E$602,3,0)) -> ユビキタスコンピューティング | G4: =D31+1 -> 444 | H4: =IF(ISERROR(VLOOKUP(G4,用語表!$C$3:$E$602,3,0)),"",VLOOKUP(G4,用語表!$C$3:$E$602,3,0)) -> ファブレス | J4: =G31+1 -> 472 | K4: =IF(ISERROR(VLOOKUP(J4,用語表!$C$3:$E$602,3,0)),"",VLOOKUP(J4,用語表!$C$3:$E$602,3,0)) -> RAD
A5: =A4+1 -> 389 | B5: =IF(ISERROR(VLOOKUP(A5,用語表!$C$3:$E$602,3,0)),"",VLOOKUP(A5,用語表!$C$3:$E$602,3,0)) -> ＪＡＮコード | D5: =D4+1 -> 417 | E5: =IF(ISERROR(VLOOKUP(D5,用語表!$C$3:$E$602,3,0)),"",VLOOKUP(D5,用語表!$C$3:$E$602,3,0)) -> アクセシビリティ | G5: =G4+1 -> 445 | H5: =IF(ISERROR(VLOOKUP(G5,用語表!$C$3:$E$602,3,0)),"",VLOOKUP(G5,用語表!$C$3:$E$602,3,0)) -> ファウンドリ | J5: =J4+1 -> 473 | K5: =IF(ISERROR(VLOOKUP(J5,用語表!$C$3:$E$602,3,0)),"",VLOOKUP(J5,用語表!$C$3:$E$602,3,0)) -> CASEツール
A6: 390 | B6: =IF(ISERROR(VLOOKUP(A6,用語表!$C$3:$E$602,3,0)),"",VLOOKUP(A6,用語表!$C$3:$E$602,3,0)) -> ＩＴＦ | D6: 418 | E6: =IF(ISERROR(VLOOKUP(D6,用語表!$C$3:$E$602,3,0)),"",VLOOKUP(D6,用語表!$C$3:$E$602,3,0)) -> バーチャルリアリティ | G6: 446 | H6: =IF(ISERROR(VLOOKUP(G6,用語表!$C$3:$E$602,3,0)),"",VLOOKUP(G6,用語表!$C$3:$E$602,3,0)) -> ＥＭＳ | J6: 474 | K6: =IF(ISERROR(VLOOKUP(J6,用語表!$C$3:$E$602,3,0)),"",VLOOKUP(J6,用語表!$C$3:$E$602,3,0)) -> 構造化手法
A7: 391 | B7: =IF(ISERROR(VLOOKUP(A7,用語表!$C$3:$E$602,3,0)),"",VLOOKUP(A7,用語表!$C$3:$E$602,3,0)) -> ＥＯＳ | D7: 419 | E7: =IF(ISERROR(VLOOKUP(D7,用語表!$C$3:$E$602,3,0)),"",VLOOKUP(D7,用語表!$C$3:$E$602,3,0)) -> ディジタルディバイド | G7: 447 | H7: =IF(ISERROR(VLOOKUP(G7,用語表!$C$3:$E$602,3,0)),"",VLOOKUP(G7,用語表!$C$3:$E$602,3,0)) -> ISP | J7: 475 | K7: =IF(ISERROR(VLOOKUP(J7,用語表!$C$3:$E$602,3,0)),"",VLOOKUP(J7,用語表!$C$3:$E$602,3,0)) -> CMMＩ
A8: 392 | B8: =IF(ISERROR(VLOOKUP(A8,用語表!$C$3:$E$602,3,0)),"",VLOOKUP(A8,用語表!$C$3:$E$602,3,0)) -> ＲＦＩＤ | D8: 420 | E8: =IF(ISERROR(VLOOKUP(D8,用語表!$C$3:$E$602,3,0)),"",VLOOKUP(D8,用語表!$C$3:$E$602,3,0)) -> クラウドコンピューティング | G8: 448 | H8: =IF(ISERROR(VLOOKUP(G8,用語表!$C$3:$E$602,3,0)),"",VLOOKUP(G8,用語表!$C$3:$E$602,3,0)) -> システム化計画 | J8: 476 | K8: =IF(ISERROR(VLOOKUP(J8,用語表!$C$3:$E$602,3,0)),"",VLOOKUP(J8,用語表!$C$3:$E$602,3,0)) -> プロセス中心設計（ＰＯＡ）
A9: 393 | B9: =IF(ISERROR(VLOOKUP(A9,用語表!$C$3:$E$602,3,0)),"",VLOOKUP(A9,用語表!$C$3:$E$602,3,0)) -> ＩＣカード | D9: 421 | E9: =IF(ISERROR(VLOOKUP(D9,用語表!$C$3:$E$602,3,0)),"",VLOOKUP(D9,用語表!$C$3:$E$602,3,0)) -> ビジネスモデル | G9: 449 | H9: =IF(ISERROR(VLOOKUP(G9,用語表!$C$3:$E$602,3,0)),"",VLOOKUP(G9,用語表!$C$3:$E$602,3,0)) -> 要求定義 | J9: 477 | K9: =IF(ISERROR(VLOOKUP(J9,用語表!$C$3:$E$602,3,0)),"",VLOOKUP(J9,用語表!$C$3:$E$602,3,0)) -> データ中心設計（ＤＯＡ）
A10: 394 | B10: =IF(ISERROR(VLOOKUP(A10,用語表!$C$3:$E$602,3,0)),"",VLOOKUP(A10,用語表!$C$3:$E$602,3,0)) -> ＰＡＳＭＯ | D10: 422 | E10: =IF(ISERROR(VLOOKUP(D10,用語表!$C$3:$E$602,3,0)),"",VLOOKUP(D10,用語表!$C$3:$E$602,3,0)) -> ビジネスプロセスモデル | G10: 450 | H10: =IF(ISERROR(VLOOKUP(G10,用語表!$C$3:$E$602,3,0)),"",VLOOKUP(G10,用語表!$C$3:$E$602,3,0)) -> ＲＦＩ | J10: 478 | K10: =IF(ISERROR(VLOOKUP(J10,用語表!$C$3:$E$602,3,0)),"",VLOOKUP(J10,用語表!$C$3:$E$602,3,0)) -> オブジェクト指向設計
A11: 395 | B11: =IF(ISERROR(VLOOKUP(A11,用語表!$C$3:$E$602,3,0)),"",VLOOKUP(A11,用語表!$C$3:$E$602,3,0)) -> ＥＴＣ | D11: 423 | E11: =IF(ISERROR(VLOOKUP(D11,用語表!$C$3:$E$602,3,0)),"",VLOOKUP(D11,用語表!$C$3:$E$602,3,0)) -> 情報システムモデル | G11: 451 | H11: =IF(ISERROR(VLOOKUP(G11,用語表!$C$3:$E$602,3,0)),"",VLOOKUP(G11,用語表!$C$3:$E$602,3,0)) -> ＲＦＰ | J11: 479 | K11: =IF(ISERROR(VLOOKUP(J11,用語表!$C$3:$E$602,3,0)),"",VLOOKUP(J11,用語表!$C$3:$E$602,3,0)) -> プロジェクト憲章
A12: 396 | B12: =IF(ISERROR(VLOOKUP(A12,用語表!$C$3:$E$602,3,0)),"",VLOOKUP(A12,用語表!$C$3:$E$602,3,0)) -> フランチャイズチェーン | D12: 424 | E12: =IF(ISERROR(VLOOKUP(D12,用語表!$C$3:$E$602,3,0)),"",VLOOKUP(D12,用語表!$C$3:$E$602,3,0)) -> システム管理基準 | G12: 452 | H12: =IF(ISERROR(VLOOKUP(G12,用語表!$C$3:$E$602,3,0)),"",VLOOKUP(G12,用語表!$C$3:$E$602,3,0)) -> システム方式設計 | J12: 480 | K12: =IF(ISERROR(VLOOKUP(J12,用語表!$C$3:$E$602,3,0)),"",VLOOKUP(J12,用語表!$C$3:$E$602,3,0)) -> プロジェクト
A13: 397 | B13: =IF(ISERROR(VLOOKUP(A13,用語表!$C$3:$E$602,3,0)),"",VLOOKUP(A13,用語表!$C$3:$E$602,3,0)) -> ボランタリチェーン | D13: 425 | E13: =IF(ISERROR(VLOOKUP(D13,用語表!$C$3:$E$602,3,0)),"",VLOOKUP(D13,用語表!$C$3:$E$602,3,0)) -> ワークフロー分析 | G13: 453 | H13: =IF(ISERROR(VLOOKUP(G13,用語表!$C$3:$E$602,3,0)),"",VLOOKUP(G13,用語表!$C$3:$E$602,3,0)) -> ソフトウェア方式設計 | J13: 481 | K13: =IF(ISERROR(VLOOKUP(J13,用語表!$C$3:$E$602,3,0)),"",VLOOKUP(J13,用語表!$C$3:$E$602,3,0)) -> プロジェクトマネージャー
A14: 398 | B14: =IF(ISERROR(VLOOKUP(A14,用語表!$C$3:$E$602,3,0)),"",VLOOKUP(A14,用語表!$C$3:$E$602,3,0)) -> ＥＲＰ | D14: 426 | E14: =IF(ISERROR(VLOOKUP(D14,用語表!$C$3:$E$602,3,0)),"",VLOOKUP(D14,用語表!$C$3:$E$602,3,0)) -> データモデリング／モデル化 | G14: 454 | H14: =IF(ISERROR(VLOOKUP(G14,用語表!$C$3:$E$602,3,0)),"",VLOOKUP(G14,用語表!$C$3:$E$602,3,0)) -> ソフトウェア詳細設計 | J14: 482 | K14: =IF(ISERROR(VLOOKUP(J14,用語表!$C$3:$E$602,3,0)),"",VLOOKUP(J14,用語表!$C$3:$E$602,3,0)) -> ＰＤＣＡサイクル
A15: 399 | B15: =IF(ISERROR(VLOOKUP(A15,用語表!$C$3:$E$602,3,0)),"",VLOOKUP(A15,用語表!$C$3:$E$602,3,0)) -> ＧＰＳ | D15: 427 | E15: =IF(ISERROR(VLOOKUP(D15,用語表!$C$3:$E$602,3,0)),"",VLOOKUP(D15,用語表!$C$3:$E$602,3,0)) -> Ｅ－Ｒ図 | G15: 455 | H15: =IF(ISERROR(VLOOKUP(G15,用語表!$C$3:$E$602,3,0)),"",VLOOKUP(G15,用語表!$C$3:$E$602,3,0)) -> ソフトウェア保守 | J15: 483 | K15: =IF(ISERROR(VLOOKUP(J15,用語表!$C$3:$E$602,3,0)),"",VLOOKUP(J15,用語表!$C$3:$E$602,3,0)) -> PDPC
A16: 400 | B16: =IF(ISERROR(VLOOKUP(A16,用語表!$C$3:$E$602,3,0)),"",VLOOKUP(A16,用語表!$C$3:$E$602,3,0)) -> ＣＡＤ | D16: 428 | E16: =IF(ISERROR(VLOOKUP(D16,用語表!$C$3:$E$602,3,0)),"",VLOOKUP(D16,用語表!$C$3:$E$602,3,0)) -> ＤＦＤ | G16: 456 | H16: =IF(ISERROR(VLOOKUP(G16,用語表!$C$3:$E$602,3,0)),"",VLOOKUP(G16,用語表!$C$3:$E$602,3,0)) -> 単体テスト | J16: 484 | K16: =IF(ISERROR(VLOOKUP(J16,用語表!$C$3:$E$602,3,0)),"",VLOOKUP(J16,用語表!$C$3:$E$602,3,0)) -> ステークホルダ
A17: 401 | B17: =IF(ISERROR(VLOOKUP(A17,用語表!$C$3:$E$602,3,0)),"",VLOOKUP(A17,用語表!$C$3:$E$602,3,0)) -> ＣＡＭ | D17: 429 | E17: =IF(ISERROR(VLOOKUP(D17,用語表!$C$3:$E$602,3,0)),"",VLOOKUP(D17,用語表!$C$3:$E$602,3,0)) -> マキシミン戦略(マクシミン原理) | G17: 457 | H17: =IF(ISERROR(VLOOKUP(G17,用語表!$C$3:$E$602,3,0)),"",VLOOKUP(G17,用語表!$C$3:$E$602,3,0)) -> ホワイトボックステスト | J17: 485 | K17: =IF(ISERROR(VLOOKUP(J17,用語表!$C$3:$E$602,3,0)),"",VLOOKUP(J17,用語表!$C$3:$E$602,3,0)) -> インセンティブ
A18: 402 | B18: =IF(ISERROR(VLOOKUP(A18,用語表!$C$3:$E$602,3,0)),"",VLOOKUP(A18,用語表!$C$3:$E$602,3,0)) -> ＣＩＭ | D18: 430 | E18: =IF(ISERROR(VLOOKUP(D18,用語表!$C$3:$E$602,3,0)),"",VLOOKUP(D18,用語表!$C$3:$E$602,3,0)) -> ＢＰＲ | G18: 458 | H18: =IF(ISERROR(VLOOKUP(G18,用語表!$C$3:$E$602,3,0)),"",VLOOKUP(G18,用語表!$C$3:$E$602,3,0)) -> ブラックボックステスト | J18: 486 | K18: =IF(ISERROR(VLOOKUP(J18,用語表!$C$3:$E$602,3,0)),"",VLOOKUP(J18,用語表!$C$3:$E$602,3,0)) -> ＰＭＢＯＫ
A19: 403 | B19: =IF(ISERROR(VLOOKUP(A19,用語表!$C$3:$E$602,3,0)),"",VLOOKUP(A19,用語表!$C$3:$E$602,3,0)) -> ＣＡＥ | D19: 431 | E19: =IF(ISERROR(VLOOKUP(D19,用語表!$C$3:$E$602,3,0)),"",VLOOKUP(D19,用語表!$C$3:$E$602,3,0)) -> ＢＰＭ | G19: 459 | H19: =IF(ISERROR(VLOOKUP(G19,用語表!$C$3:$E$602,3,0)),"",VLOOKUP(G19,用語表!$C$3:$E$602,3,0)) -> 同値分割 | J19: 487 | K19: =IF(ISERROR(VLOOKUP(J19,用語表!$C$3:$E$602,3,0)),"",VLOOKUP(J19,用語表!$C$3:$E$602,3,0)) -> コンピテンシ
A20: 404 | B20: =IF(ISERROR(VLOOKUP(A20,用語表!$C$3:$E$602,3,0)),"",VLOOKUP(A20,用語表!$C$3:$E$602,3,0)) -> ＦＡシステム | D20: 432 | E20: =IF(ISERROR(VLOOKUP(D20,用語表!$C$3:$E$602,3,0)),"",VLOOKUP(D20,用語表!$C$3:$E$602,3,0)) -> ワークフローシステム | G20: 460 | H20: =IF(ISERROR(VLOOKUP(G20,用語表!$C$3:$E$602,3,0)),"",VLOOKUP(G20,用語表!$C$3:$E$602,3,0)) -> 限界値分析 | J20: 488 | K20: =IF(ISERROR(VLOOKUP(J20,用語表!$C$3:$E$602,3,0)),"",VLOOKUP(J20,用語表!$C$3:$E$602,3,0)) -> ＷＢＳ
A21: 405 | B21: =IF(ISERROR(VLOOKUP(A21,用語表!$C$3:$E$602,3,0)),"",VLOOKUP(A21,用語表!$C$3:$E$602,3,0)) -> 電子商取引（ＥＣ） | D21: 433 | E21: =IF(ISERROR(VLOOKUP(D21,用語表!$C$3:$E$602,3,0)),"",VLOOKUP(D21,用語表!$C$3:$E$602,3,0)) -> グループウェア | G21: 461 | H21: =IF(ISERROR(VLOOKUP(G21,用語表!$C$3:$E$602,3,0)),"",VLOOKUP(G21,用語表!$C$3:$E$602,3,0)) -> トップダウンテスト | J21: 489 | K21: =IF(ISERROR(VLOOKUP(J21,用語表!$C$3:$E$602,3,0)),"",VLOOKUP(J21,用語表!$C$3:$E$602,3,0)) -> ＰＥＲＴ図
A22: 406 | B22: =IF(ISERROR(VLOOKUP(A22,用語表!$C$3:$E$602,3,0)),"",VLOOKUP(A22,用語表!$C$3:$E$602,3,0)) -> ＥＤＩ | D22: 434 | E22: =IF(ISERROR(VLOOKUP(D22,用語表!$C$3:$E$602,3,0)),"",VLOOKUP(D22,用語表!$C$3:$E$602,3,0)) -> ソリューションビジネス | G22: 462 | H22: =IF(ISERROR(VLOOKUP(G22,用語表!$C$3:$E$602,3,0)),"",VLOOKUP(G22,用語表!$C$3:$E$602,3,0)) -> ボトムアップテスト | J22: 490 | K22: =IF(ISERROR(VLOOKUP(J22,用語表!$C$3:$E$602,3,0)),"",VLOOKUP(J22,用語表!$C$3:$E$602,3,0)) -> ガントチャート
A23: 407 | B23: =IF(ISERROR(VLOOKUP(A23,用語表!$C$3:$E$602,3,0)),"",VLOOKUP(A23,用語表!$C$3:$E$602,3,0)) -> ＣＡＬＳ | D23: 435 | E23: =IF(ISERROR(VLOOKUP(D23,用語表!$C$3:$E$602,3,0)),"",VLOOKUP(D23,用語表!$C$3:$E$602,3,0)) -> ＳＯＡ | G23: 463 | H23: =IF(ISERROR(VLOOKUP(G23,用語表!$C$3:$E$602,3,0)),"",VLOOKUP(G23,用語表!$C$3:$E$602,3,0)) -> サンドイッチテスト | J23: 491 | K23: =IF(ISERROR(VLOOKUP(J23,用語表!$C$3:$E$602,3,0)),"",VLOOKUP(J23,用語表!$C$3:$E$602,3,0)) -> マイルストーン
A24: 408 | B24: =IF(ISERROR(VLOOKUP(A24,用語表!$C$3:$E$602,3,0)),"",VLOOKUP(A24,用語表!$C$3:$E$602,3,0)) -> ＢｔｏＢ | D24: 436 | E24: =IF(ISERROR(VLOOKUP(D24,用語表!$C$3:$E$602,3,0)),"",VLOOKUP(D24,用語表!$C$3:$E$602,3,0)) -> ハウジングサービス | G24: 464 | H24: =IF(ISERROR(VLOOKUP(G24,用語表!$C$3:$E$602,3,0)),"",VLOOKUP(G24,用語表!$C$3:$E$602,3,0)) -> ビックバンテスト | J24: 492 | K24: =IF(ISERROR(VLOOKUP(J24,用語表!$C$3:$E$602,3,0)),"",VLOOKUP(J24,用語表!$C$3:$E$602,3,0)) -> 進捗管理
A25: 409 | B25: =IF(ISERROR(VLOOKUP(A25,用語表!$C$3:$E$602,3,0)),"",VLOOKUP(A25,用語表!$C$3:$E$602,3,0)) -> ＢｔｏＣ | D25: 437 | E25: =IF(ISERROR(VLOOKUP(D25,用語表!$C$3:$E$602,3,0)),"",VLOOKUP(D25,用語表!$C$3:$E$602,3,0)) -> ホスティングサービス | G25: 465 | H25: =IF(ISERROR(VLOOKUP(G25,用語表!$C$3:$E$602,3,0)),"",VLOOKUP(G25,用語表!$C$3:$E$602,3,0)) -> リグレッションテスト | J25: 493 | K25: =IF(ISERROR(VLOOKUP(J25,用語表!$C$3:$E$602,3,0)),"",VLOOKUP(J25,用語表!$C$3:$E$602,3,0)) -> BCP(事業継続計画)
A26: 410 | B26: =IF(ISERROR(VLOOKUP(A26,用語表!$C$3:$E$602,3,0)),"",VLOOKUP(A26,用語表!$C$3:$E$602,3,0)) -> ＢｔｏＧ | D26: 438 | E26: =IF(ISERROR(VLOOKUP(D26,用語表!$C$3:$E$602,3,0)),"",VLOOKUP(D26,用語表!$C$3:$E$602,3,0)) -> ＡＳＰ | G26: 466 | H26: =IF(ISERROR(VLOOKUP(G26,用語表!$C$3:$E$602,3,0)),"",VLOOKUP(G26,用語表!$C$3:$E$602,3,0)) -> プログラムステップ法 | J26: 494 | K26: =IF(ISERROR(VLOOKUP(J26,用語表!$C$3:$E$602,3,0)),"",VLOOKUP(J26,用語表!$C$3:$E$602,3,0)) -> ＥＶＭ
A27: 411 | B27: =IF(ISERROR(VLOOKUP(A27,用語表!$C$3:$E$602,3,0)),"",VLOOKUP(A27,用語表!$C$3:$E$602,3,0)) -> ＣｔｏＣ | D27: 439 | E27: =IF(ISERROR(VLOOKUP(D27,用語表!$C$3:$E$602,3,0)),"",VLOOKUP(D27,用語表!$C$3:$E$602,3,0)) -> ＳａａＳ | G27: 467 | H27: =IF(ISERROR(VLOOKUP(G27,用語表!$C$3:$E$602,3,0)),"",VLOOKUP(G27,用語表!$C$3:$E$602,3,0)) -> ファンクション・ポイント法 | J27: 495 | K27: =IF(ISERROR(VLOOKUP(J27,用語表!$C$3:$E$602,3,0)),"",VLOOKUP(J27,用語表!$C$3:$E$602,3,0)) -> ソフトウェア品質特性(JIS X 0129-1)
A28: 412 | B28: =IF(ISERROR(VLOOKUP(A28,用語表!$C$3:$E$602,3,0)),"",VLOOKUP(A28,用語表!$C$3:$E$602,3,0)) -> バーチャルモール | D28: 440 | E28: =IF(ISERROR(VLOOKUP(D28,用語表!$C$3:$E$602,3,0)),"",VLOOKUP(D28,用語表!$C$3:$E$602,3,0)) -> PaaS | G28: 468 | H28: =IF(ISERROR(VLOOKUP(G28,用語表!$C$3:$E$602,3,0)),"",VLOOKUP(G28,用語表!$C$3:$E$602,3,0)) -> システム特性係数 | J28: 496 | K28: =IF(ISERROR(VLOOKUP(J28,用語表!$C$3:$E$602,3,0)),"",VLOOKUP(J28,用語表!$C$3:$E$602,3,0)) -> ＩＴサービスマネジメント
A29: 413 | B29: =IF(ISERROR(VLOOKUP(A29,用語表!$C$3:$E$602,3,0)),"",VLOOKUP(A29,用語表!$C$3:$E$602,3,0)) -> 逆オークション | D29: 441 | E29: =IF(ISERROR(VLOOKUP(D29,用語表!$C$3:$E$602,3,0)),"",VLOOKUP(D29,用語表!$C$3:$E$602,3,0)) -> IaaS | G29: 469 | H29: =IF(ISERROR(VLOOKUP(G29,用語表!$C$3:$E$602,3,0)),"",VLOOKUP(G29,用語表!$C$3:$E$602,3,0)) -> ウォータフォールモデル | J29: 497 | K29: =IF(ISERROR(VLOOKUP(J29,用語表!$C$3:$E$602,3,0)),"",VLOOKUP(J29,用語表!$C$3:$E$602,3,0)) -> ＩＴＩＬ
A30: 414 | B30: =IF(ISERROR(VLOOKUP(A30,用語表!$C$3:$E$602,3,0)),"",VLOOKUP(A30,用語表!$C$3:$E$602,3,0)) -> 組込みシステム | D30: 442 | E30: =IF(ISERROR(VLOOKUP(D30,用語表!$C$3:$E$602,3,0)),"",VLOOKUP(D30,用語表!$C$3:$E$602,3,0)) -> ＢＰＯ | G30: 470 | H30: =IF(ISERROR(VLOOKUP(G30,用語表!$C$3:$E$602,3,0)),"",VLOOKUP(G30,用語表!$C$3:$E$602,3,0)) -> プロトタイピングモデル | J30: 498 | K30: =IF(ISERROR(VLOOKUP(J30,用語表!$C$3:$E$602,3,0)),"",VLOOKUP(J30,用語表!$C$3:$E$602,3,0)) -> ベンチマーキング
A31: 415 | B31: =IF(ISERROR(VLOOKUP(A31,用語表!$C$3:$E$602,3,0)),"",VLOOKUP(A31,用語表!$C$3:$E$602,3,0)) -> 情報家電 | D31: 443 | E31: =IF(ISERROR(VLOOKUP(D31,用語表!$C$3:$E$602,3,0)),"",VLOOKUP(D31,用語表!$C$3:$E$602,3,0)) -> ＯＥＭ | G31: 471 | H31: =IF(ISERROR(VLOOKUP(G31,用語表!$C$3:$E$602,3,0)),"",VLOOKUP(G31,用語表!$C$3:$E$602,3,0)) -> スパイラルモデル | J31: 499 | K31: =IF(ISERROR(VLOOKUP(J31,用語表!$C$3:$E$602,3,0)),"",VLOOKUP(J31,用語表!$C$3:$E$602,3,0)) -> ベストプラクティス
B33: ="出題範囲="&C45&":"&C46 -> 出題範囲=452:468 | E33: ="印刷範囲="&C49&":"&C50 -> 印刷範囲=11:20 | J33: 5
A34: 1 | B34: =IF(ISERROR(VLOOKUP(J34,用語表!$C$3:$E$537,2)),"",VLOOKUP(J34,用語表!$C$3:$E$537,2)) -> 開発するソフトウェアをプログラムやモジュール単位に分解し、算出したステップ数（行数）から人月などの工数に換算し、開発規模を見積もる方法。 | J34: 466 | M34: =J34 -> 466 | N34: =IFERROR(VLOOKUP(J34,用語表!$C$3:$E$537,3,0),"")&" "&VLOOKUP(J34,用語表!$C$3:$F$537,4,0) -> プログラムステップ法
A35: 2 | B35: =IF(ISERROR(VLOOKUP(J35,用語表!$C$3:$E$537,2)),"",VLOOKUP(J35,用語表!$C$3:$E$537,2)) -> プログラム内の最下位のモジュールからテストを開始し、上位のモジュールを順次結合させながらテストしていく方法。上位モジュールの代わりに、ドライバという仮のモジュールを用意する。 | J35: 462 | M35: 462 | N35: =IFERROR(VLOOKUP(J35,用語表!$C$3:$E$537,3,0),"")&" "&VLOOKUP(J35,用語表!$C$3:$F$537,4,0) -> ボトムアップテスト
A36: 3 | B36: =IF(ISERROR(VLOOKUP(J36,用語表!$C$3:$E$537,2)),"",VLOOKUP(J36,用語表!$C$3:$E$537,2)) -> トランザクション量や変更の容易性など１４種類のチェック項目に対し、影響を受ける度合いを０（関係ない）～５（非常に影響を受ける）の範囲で評価する。その評価点の合計を公式に当てはめて算出するもの。 | J36: 468 | M36: 468 | N36: =IFERROR(VLOOKUP(J36,用語表!$C$3:$E$537,3,0),"")&" "&VLOOKUP(J36,用語表!$C$3:$F$537,4,0) -> システム特性係数
A37: 4 | B37: =IF(ISERROR(VLOOKUP(J37,用語表!$C$3:$E$537,2)),"",VLOOKUP(J37,用語表!$C$3:$E$537,2)) -> 必要な機能を定義し、ソフトウェアをプログラム単位まで分割し、その機能や処理の手順を明確化（機能分割・構造化）したり、外部とのインターフェースの方式設計やソフトウェア結合テストの設計を行う。 | J37: 453 | M37: 453 | N37: =IFERROR(VLOOKUP(J37,用語表!$C$3:$E$537,3,0),"")&" "&VLOOKUP(J37,用語表!$C$3:$F$537,4,0) -> ソフトウェア方式設計
A38: 5 | B38: =IF(ISERROR(VLOOKUP(J38,用語表!$C$3:$E$537,2)),"",VLOOKUP(J38,用語表!$C$3:$E$537,2)) -> 最上位モジュールからのテストと最下位モジュールからのテストを同時に挟み込むように行うテスト | J38: 463 | M38: 463 | N38: =IFERROR(VLOOKUP(J38,用語表!$C$3:$E$537,3,0),"")&" "&VLOOKUP(J38,用語表!$C$3:$F$537,4,0) -> サンドイッチテスト
A39: 6 | B39: =IF(ISERROR(VLOOKUP(J39,用語表!$C$3:$E$537,2)),"",VLOOKUP(J39,用語表!$C$3:$E$537,2)) -> あらかじめ全モジュールの単体テストを済ませておき、すべてのモジュールを結合して一斉にテストを行うこと。 | J39: 464 | M39: 464 | N39: =IFERROR(VLOOKUP(J39,用語表!$C$3:$E$537,3,0),"")&" "&VLOOKUP(J39,用語表!$C$3:$F$537,4,0) -> ビックバンテスト
A40: 7 | B40: =IF(ISERROR(VLOOKUP(J40,用語表!$C$3:$E$537,2)),"",VLOOKUP(J40,用語表!$C$3:$E$537,2)) -> プログラム１行ごとの処理まで明確になるように詳細化していく。物理データ（ファイル）設計、入出力詳細設計、構造化設計（モジュール設計）など、各プログラム内の構造設計を行う。ユニットテスト（単体、クラス、モジュール）の仕様を定義する。 | J40: 454 | M40: 454 | N40: =IFERROR(VLOOKUP(J40,用語表!$C$3:$E$537,3,0),"")&" "&VLOOKUP(J40,用語表!$C$3:$F$537,4,0) -> ソフトウェア詳細設計
A41: 8 | B41: =IF(ISERROR(VLOOKUP(J41,用語表!$C$3:$E$537,2)),"",VLOOKUP(J41,用語表!$C$3:$E$537,2)) -> プログラム内の最上位のモジュールからテストを開始し、下位のモジュールを順次結合させながらテストしていく方法。下位モジュールが存在しない場合には、仮に処理結果などを返す役割をするスタブと呼ばれるテスト用のモジュールを用意する。 | J41: 461 | M41: 461 | N41: =IFERROR(VLOOKUP(J41,用語表!$C$3:$E$537,3,0),"")&" "&VLOOKUP(J41,用語表!$C$3:$F$537,4,0) -> トップダウンテスト
A42: 9 | B42: =IF(ISERROR(VLOOKUP(J42,用語表!$C$3:$E$537,2)),"",VLOOKUP(J42,用語表!$C$3:$E$537,2)) -> データを性質ごとのグループに分け、各グループから代表値を取ってテストデータにする方法。 | J42: 459 | M42: 459 | N42: =IFERROR(VLOOKUP(J42,用語表!$C$3:$E$537,3,0),"")&" "&VLOOKUP(J42,用語表!$C$3:$F$537,4,0) -> 同値分割
A43: 10 | B43: =IF(ISERROR(VLOOKUP(J43,用語表!$C$3:$E$537,2)),"",VLOOKUP(J43,用語表!$C$3:$E$537,2)) -> 障害を訂正、性能やその他の属性の改善のために納入後のソフトウェア製品を修正、または変更された環境に適合させることを目的としたプロセス。 例 システムの安定稼働，情報技術の進展や経営戦略の変化に対応するためにプ口グラムの修正や変更を行う。 | J43: 455 | M43: 455 | N43: =IFERROR(VLOOKUP(J43,用語表!$C$3:$E$537,3,0),"")&" "&VLOOKUP(J43,用語表!$C$3:$F$537,4,0) -> ソフトウェア保守
B45: 開始問題番号 | C45: 452 | N45: ０ 「開始問題番号」と「終了問題番号」を入力する。
B46: 終了問題番号 | C46: 468 | N46: 1～１１１までの問題番号
B47: 問題数 | C47: =C46-C45+1 -> 17
B48: 問題印刷枚数 | C48: 1 | N48: １ 問題数の行分の乱数を設定する。
B49: E列 印刷開始問題番号 | C49: 11 | N49: 例 問題数が３８の場合は、行５４から行９１まで
B50: E列 印刷終了問題番号 | C50: 20
N51: ２ 問題番号を値複写する。
A53: 問題数 | B53: 乱数＆問題番号 | E53: 値複写（作成する問題番号） | H53: 用語範囲の確認（範囲エラー） | K53: 重複の確認（"重複"の表示） | N53: ３ 「印刷開始問題番号」を入力して「問題の作成」ボタンを押す。
A54: 1 | B54: =RAND() -> 0.02840858318 | C54: =RANK(B54,$B$54:$B$150)+$C$45-1 -> 467 | E54: 466 | H54: =IF(AND(E54>=$C$45,E54<=$C$46),"","範囲エラー") ->  | K54: =IF(COUNTIF($E$54:$E$150,E54)>1,"重複","") -> 
A55: 2 | B55: 0.003643263603 | C55: =RANK(B55,$B$54:$B$150)+$C$45-1 -> 468 | E55: 462 | K55: =IF(COUNTIF($E$54:$E$150,E55)>1,"重複","") ->  | N55: ４ 「問題印刷枚数」を入力して「問題の印刷」を押す。
A56: 3 | B56: 0.4846384503 | C56: 462 | E56: 468
A57: 4 | B57: 0.8831157292 | C57: 452 | E57: 453 | N57: ５ 「解答の印刷」を押す。
A58: 5 | B58: 0.8161067185 | C58: 454 | E58: 463
A59: 6 | B59: 0.4904137322 | C59: 461 | E59: 464 | N59: ※行の高さ：６８が標準
A60: 7 | B60: 0.7387165966 | C60: 458 | E60: 454 | K60: 重複
A61: 8 | B61: 0.02987136293 | C61: 466 | E61: 461 | K61: 重複
A62: 9 | B62: 0.7203615121 | C62: 459 | E62: 459
A63: 10 | B63: 0.7856931097 | C63: 456 | E63: 455
A64: 11 | B64: 0.7533226399 | C64: 457 | E64: 460
A65: 12 | B65: 0.1083638071 | C65: 465 | E65: 467
A66: 13 | B66: 0.8514616273 | C66: 453 | E66: 458
A67: 14 | B67: 0.788970348 | C67: 455 | E67: 452 | K67: 重複
A68: 15 | B68: 0.4109620521 | C68: 463 | E68: 456
A69: 16 | B69: 0.5476310706 | C69: 460 | E69: 457
A70: 17 | B70: 0.379850508 | C70: 464 | E70: 465
A71: 18 | E71: 461 | K71: 重複
A72: 19 | E72: 454 | K72: 重複
A73: 20 | E73: 452 | K73: 重複
A74: 21 | H74: 範囲エラー
A75: 22 | H75: 範囲エラー
A76: 23 | H76: 範囲エラー
A77: 24 | H77: 範囲エラー
A78: 25 | H78: 範囲エラー
A79: 26 | H79: 範囲エラー
A80: 27 | H80: 範囲エラー
A81: 28 | H81: 範囲エラー
A82: 29 | H82: 範囲エラー
A83: 30 | H83: 範囲エラー
A84: 31 | H84: 範囲エラー
A85: 32 | H85: 範囲エラー
A86: 33 | H86: 範囲エラー
A87: 34 | H87: 範囲エラー
A88: 35 | H88: 範囲エラー
A89: 36 | H89: 範囲エラー
A90: 37 | H90: 範囲エラー
A91: 38 | H91: 範囲エラー
A92: 39 | H92: 範囲エラー
A93: 40 | H93: 範囲エラー
A94: 41 | H94: 範囲エラー
A95: 42 | H95: 範囲エラー
A96: 43 | H96: 範囲エラー
A97: 44 | H97: 範囲エラー
A98: 45 | H98: 範囲エラー
A99: 46 | H99: 範囲エラー
A100: 47 | H100: 範囲エラー
A101: 48 | H101: 範囲エラー
A102: 49 | H102: 範囲エラー
A103: 50 | H103: 範囲エラー
A104: 51 | H104: 範囲エラー
A105: 52 | H105: 範囲エラー
A106: 53 | H106: 範囲エラー
A107: 54 | H107: 範囲エラー
A108: 55 | H108: 範囲エラー
A109: 56 | H109: 範囲エラー
A110: 57 | H110: 範囲エラー
A111: 58 | H111: 範囲エラー
A112: 59 | H112: 範囲エラー
A113: 60 | H113: 範囲エラー
A114: 61 | H114: 範囲エラー
A115: 62 | H115: 範囲エラー
A116: 63 | H116: 範囲エラー
A117: 64 | H117: 範囲エラー
A118: 65 | H118: =IF(AND(E118>=$C$45,E118<=$C$46),"","範囲エラー") -> 範囲エラー
A119: 66 | H119: 範囲エラー | K119: =IF(COUNTIF($E$54:$E$150,E119)>1,"重複","") -> 
A120: 67 | H120: 範囲エラー
A121: 68 | H121: 範囲エラー
A122: 69 | H122: 範囲エラー
A123: 70 | H123: 範囲エラー
A124: 71 | H124: 範囲エラー
A125: 72 | H125: 範囲エラー
A126: 73 | H126: 範囲エラー
A127: 74 | H127: 範囲エラー
A128: 75 | H128: 範囲エラー
A129: 76 | H129: 範囲エラー
A130: 77 | H130: 範囲エラー
A131: 78 | H131: 範囲エラー
A132: 79 | H132: 範囲エラー
A133: 80 | H133: 範囲エラー

Sheet 問題作成_説明中心_5
B1: ITパスポート試験 用語確認問題
B2: 年 組 席 名前
A4: 452 | B4: =IF(ISERROR(VLOOKUP(A4,用語表!$C$3:$E$602,3,0)),"",VLOOKUP(A4,用語表!$C$3:$E$602,3,0)) -> システム方式設計 | D4: =A31+1 -> 480 | E4: =IF(ISERROR(VLOOKUP(D4,用語表!$C$3:$E$602,3,0)),"",VLOOKUP(D4,用語表!$C$3:$E$602,3,0)) -> プロジェクト | G4: =D31+1 -> 508 | H4: =IF(ISERROR(VLOOKUP(G4,用語表!$C$3:$E$602,3,0)),"",VLOOKUP(G4,用語表!$C$3:$E$602,3,0)) -> 内部統制 | J4: =G31+1 -> 536 | K4: =IF(ISERROR(VLOOKUP(J4,用語表!$C$3:$E$602,3,0)),"",VLOOKUP(J4,用語表!$C$3:$E$602,3,0)) -> 
A5: =A4+1 -> 453 | B5: =IF(ISERROR(VLOOKUP(A5,用語表!$C$3:$E$602,3,0)),"",VLOOKUP(A5,用語表!$C$3:$E$602,3,0)) -> ソフトウェア方式設計 | D5: =D4+1 -> 481 | E5: =IF(ISERROR(VLOOKUP(D5,用語表!$C$3:$E$602,3,0)),"",VLOOKUP(D5,用語表!$C$3:$E$602,3,0)) -> プロジェクトマネージャー | G5: =G4+1 -> 509 | H5: =IF(ISERROR(VLOOKUP(G5,用語表!$C$3:$E$602,3,0)),"",VLOOKUP(G5,用語表!$C$3:$E$602,3,0)) -> コンプライアンス | J5: =J4+1 -> 537 | K5: =IF(ISERROR(VLOOKUP(J5,用語表!$C$3:$E$602,3,0)),"",VLOOKUP(J5,用語表!$C$3:$E$602,3,0)) -> 
A6: 454 | B6: =IF(ISERROR(VLOOKUP(A6,用語表!$C$3:$E$602,3,0)),"",VLOOKUP(A6,用語表!$C$3:$E$602,3,0)) -> ソフトウェア詳細設計 | D6: 482 | E6: =IF(ISERROR(VLOOKUP(D6,用語表!$C$3:$E$602,3,0)),"",VLOOKUP(D6,用語表!$C$3:$E$602,3,0)) -> ＰＤＣＡサイクル | G6: 510 | H6: =IF(ISERROR(VLOOKUP(G6,用語表!$C$3:$E$602,3,0)),"",VLOOKUP(G6,用語表!$C$3:$E$602,3,0)) -> ＣＯＳＯ | J6: 538 | K6: =IF(ISERROR(VLOOKUP(J6,用語表!$C$3:$E$602,3,0)),"",VLOOKUP(J6,用語表!$C$3:$E$602,3,0)) -> 
A7: 455 | B7: =IF(ISERROR(VLOOKUP(A7,用語表!$C$3:$E$602,3,0)),"",VLOOKUP(A7,用語表!$C$3:$E$602,3,0)) -> ソフトウェア保守 | D7: 483 | E7: =IF(ISERROR(VLOOKUP(D7,用語表!$C$3:$E$602,3,0)),"",VLOOKUP(D7,用語表!$C$3:$E$602,3,0)) -> PDPC | G7: 511 | H7: =IF(ISERROR(VLOOKUP(G7,用語表!$C$3:$E$602,3,0)),"",VLOOKUP(G7,用語表!$C$3:$E$602,3,0)) -> ＩＴガバナンス | J7: 539 | K7: =IF(ISERROR(VLOOKUP(J7,用語表!$C$3:$E$602,3,0)),"",VLOOKUP(J7,用語表!$C$3:$E$602,3,0)) -> 
A8: 456 | B8: =IF(ISERROR(VLOOKUP(A8,用語表!$C$3:$E$602,3,0)),"",VLOOKUP(A8,用語表!$C$3:$E$602,3,0)) -> 単体テスト | D8: 484 | E8: =IF(ISERROR(VLOOKUP(D8,用語表!$C$3:$E$602,3,0)),"",VLOOKUP(D8,用語表!$C$3:$E$602,3,0)) -> ステークホルダ | G8: 512 | H8: =IF(ISERROR(VLOOKUP(G8,用語表!$C$3:$E$602,3,0)),"",VLOOKUP(G8,用語表!$C$3:$E$602,3,0)) -> 基数変換 | J8: 540 | K8: =IF(ISERROR(VLOOKUP(J8,用語表!$C$3:$E$602,3,0)),"",VLOOKUP(J8,用語表!$C$3:$E$602,3,0)) -> 
A9: 457 | B9: =IF(ISERROR(VLOOKUP(A9,用語表!$C$3:$E$602,3,0)),"",VLOOKUP(A9,用語表!$C$3:$E$602,3,0)) -> ホワイトボックステスト | D9: 485 | E9: =IF(ISERROR(VLOOKUP(D9,用語表!$C$3:$E$602,3,0)),"",VLOOKUP(D9,用語表!$C$3:$E$602,3,0)) -> インセンティブ | G9: 513 | H9: =IF(ISERROR(VLOOKUP(G9,用語表!$C$3:$E$602,3,0)),"",VLOOKUP(G9,用語表!$C$3:$E$602,3,0)) -> 二の補数 | J9: 541 | K9: =IF(ISERROR(VLOOKUP(J9,用語表!$C$3:$E$602,3,0)),"",VLOOKUP(J9,用語表!$C$3:$E$602,3,0)) -> 
A10: 458 | B10: =IF(ISERROR(VLOOKUP(A10,用語表!$C$3:$E$602,3,0)),"",VLOOKUP(A10,用語表!$C$3:$E$602,3,0)) -> ブラックボックステスト | D10: 486 | E10: =IF(ISERROR(VLOOKUP(D10,用語表!$C$3:$E$602,3,0)),"",VLOOKUP(D10,用語表!$C$3:$E$602,3,0)) -> ＰＭＢＯＫ | G10: 514 | H10: =IF(ISERROR(VLOOKUP(G10,用語表!$C$3:$E$602,3,0)),"",VLOOKUP(G10,用語表!$C$3:$E$602,3,0)) -> 論理積 | J10: 542 | K10: =IF(ISERROR(VLOOKUP(J10,用語表!$C$3:$E$602,3,0)),"",VLOOKUP(J10,用語表!$C$3:$E$602,3,0)) -> 
A11: 459 | B11: =IF(ISERROR(VLOOKUP(A11,用語表!$C$3:$E$602,3,0)),"",VLOOKUP(A11,用語表!$C$3:$E$602,3,0)) -> 同値分割 | D11: 487 | E11: =IF(ISERROR(VLOOKUP(D11,用語表!$C$3:$E$602,3,0)),"",VLOOKUP(D11,用語表!$C$3:$E$602,3,0)) -> コンピテンシ | G11: 515 | H11: =IF(ISERROR(VLOOKUP(G11,用語表!$C$3:$E$602,3,0)),"",VLOOKUP(G11,用語表!$C$3:$E$602,3,0)) -> 論理和 | J11: 543 | K11: =IF(ISERROR(VLOOKUP(J11,用語表!$C$3:$E$602,3,0)),"",VLOOKUP(J11,用語表!$C$3:$E$602,3,0)) -> 
A12: 460 | B12: =IF(ISERROR(VLOOKUP(A12,用語表!$C$3:$E$602,3,0)),"",VLOOKUP(A12,用語表!$C$3:$E$602,3,0)) -> 限界値分析 | D12: 488 | E12: =IF(ISERROR(VLOOKUP(D12,用語表!$C$3:$E$602,3,0)),"",VLOOKUP(D12,用語表!$C$3:$E$602,3,0)) -> ＷＢＳ | G12: 516 | H12: =IF(ISERROR(VLOOKUP(G12,用語表!$C$3:$E$602,3,0)),"",VLOOKUP(G12,用語表!$C$3:$E$602,3,0)) -> ＥＢＣＤＩＣ | J12: 544 | K12: =IF(ISERROR(VLOOKUP(J12,用語表!$C$3:$E$602,3,0)),"",VLOOKUP(J12,用語表!$C$3:$E$602,3,0)) -> 
A13: 461 | B13: =IF(ISERROR(VLOOKUP(A13,用語表!$C$3:$E$602,3,0)),"",VLOOKUP(A13,用語表!$C$3:$E$602,3,0)) -> トップダウンテスト | D13: 489 | E13: =IF(ISERROR(VLOOKUP(D13,用語表!$C$3:$E$602,3,0)),"",VLOOKUP(D13,用語表!$C$3:$E$602,3,0)) -> ＰＥＲＴ図 | G13: 517 | H13: =IF(ISERROR(VLOOKUP(G13,用語表!$C$3:$E$602,3,0)),"",VLOOKUP(G13,用語表!$C$3:$E$602,3,0)) -> ＥＵＣ | J13: 545 | K13: =IF(ISERROR(VLOOKUP(J13,用語表!$C$3:$E$602,3,0)),"",VLOOKUP(J13,用語表!$C$3:$E$602,3,0)) -> 
A14: 462 | B14: =IF(ISERROR(VLOOKUP(A14,用語表!$C$3:$E$602,3,0)),"",VLOOKUP(A14,用語表!$C$3:$E$602,3,0)) -> ボトムアップテスト | D14: 490 | E14: =IF(ISERROR(VLOOKUP(D14,用語表!$C$3:$E$602,3,0)),"",VLOOKUP(D14,用語表!$C$3:$E$602,3,0)) -> ガントチャート | G14: 518 | H14: =IF(ISERROR(VLOOKUP(G14,用語表!$C$3:$E$602,3,0)),"",VLOOKUP(G14,用語表!$C$3:$E$602,3,0)) -> シフトＪＩＳ | J14: 546 | K14: =IF(ISERROR(VLOOKUP(J14,用語表!$C$3:$E$602,3,0)),"",VLOOKUP(J14,用語表!$C$3:$E$602,3,0)) -> 
A15: 463 | B15: =IF(ISERROR(VLOOKUP(A15,用語表!$C$3:$E$602,3,0)),"",VLOOKUP(A15,用語表!$C$3:$E$602,3,0)) -> サンドイッチテスト | D15: 491 | E15: =IF(ISERROR(VLOOKUP(D15,用語表!$C$3:$E$602,3,0)),"",VLOOKUP(D15,用語表!$C$3:$E$602,3,0)) -> マイルストーン | G15: 519 | H15: =IF(ISERROR(VLOOKUP(G15,用語表!$C$3:$E$602,3,0)),"",VLOOKUP(G15,用語表!$C$3:$E$602,3,0)) -> Ｕｎｉｃｏｄｅ | J15: 547 | K15: =IF(ISERROR(VLOOKUP(J15,用語表!$C$3:$E$602,3,0)),"",VLOOKUP(J15,用語表!$C$3:$E$602,3,0)) -> 
A16: 464 | B16: =IF(ISERROR(VLOOKUP(A16,用語表!$C$3:$E$602,3,0)),"",VLOOKUP(A16,用語表!$C$3:$E$602,3,0)) -> ビックバンテスト | D16: 492 | E16: =IF(ISERROR(VLOOKUP(D16,用語表!$C$3:$E$602,3,0)),"",VLOOKUP(D16,用語表!$C$3:$E$602,3,0)) -> 進捗管理 | G16: 520 | H16: =IF(ISERROR(VLOOKUP(G16,用語表!$C$3:$E$602,3,0)),"",VLOOKUP(G16,用語表!$C$3:$E$602,3,0)) -> RSS | J16: 548 | K16: =IF(ISERROR(VLOOKUP(J16,用語表!$C$3:$E$602,3,0)),"",VLOOKUP(J16,用語表!$C$3:$E$602,3,0)) -> 
A17: 465 | B17: =IF(ISERROR(VLOOKUP(A17,用語表!$C$3:$E$602,3,0)),"",VLOOKUP(A17,用語表!$C$3:$E$602,3,0)) -> リグレッションテスト | D17: 493 | E17: =IF(ISERROR(VLOOKUP(D17,用語表!$C$3:$E$602,3,0)),"",VLOOKUP(D17,用語表!$C$3:$E$602,3,0)) -> BCP(事業継続計画) | G17: 521 | H17: =IF(ISERROR(VLOOKUP(G17,用語表!$C$3:$E$602,3,0)),"",VLOOKUP(G17,用語表!$C$3:$E$602,3,0)) -> ソーシャルブックマークサービス | J17: 549 | K17: =IF(ISERROR(VLOOKUP(J17,用語表!$C$3:$E$602,3,0)),"",VLOOKUP(J17,用語表!$C$3:$E$602,3,0)) -> 
A18: 466 | B18: =IF(ISERROR(VLOOKUP(A18,用語表!$C$3:$E$602,3,0)),"",VLOOKUP(A18,用語表!$C$3:$E$602,3,0)) -> プログラムステップ法 | D18: 494 | E18: =IF(ISERROR(VLOOKUP(D18,用語表!$C$3:$E$602,3,0)),"",VLOOKUP(D18,用語表!$C$3:$E$602,3,0)) -> ＥＶＭ | G18: 522 | H18: =IF(ISERROR(VLOOKUP(G18,用語表!$C$3:$E$602,3,0)),"",VLOOKUP(G18,用語表!$C$3:$E$602,3,0)) -> CSS | J18: 550 | K18: =IF(ISERROR(VLOOKUP(J18,用語表!$C$3:$E$602,3,0)),"",VLOOKUP(J18,用語表!$C$3:$E$602,3,0)) -> 
A19: 467 | B19: =IF(ISERROR(VLOOKUP(A19,用語表!$C$3:$E$602,3,0)),"",VLOOKUP(A19,用語表!$C$3:$E$602,3,0)) -> ファンクション・ポイント法 | D19: 495 | E19: =IF(ISERROR(VLOOKUP(D19,用語表!$C$3:$E$602,3,0)),"",VLOOKUP(D19,用語表!$C$3:$E$602,3,0)) -> ソフトウェア品質特性(JIS X 0129-1) | G19: 523 | H19: =IF(ISERROR(VLOOKUP(G19,用語表!$C$3:$E$602,3,0)),"",VLOOKUP(G19,用語表!$C$3:$E$602,3,0)) -> アルゴリズム | J19: 551 | K19: =IF(ISERROR(VLOOKUP(J19,用語表!$C$3:$E$602,3,0)),"",VLOOKUP(J19,用語表!$C$3:$E$602,3,0)) -> 
A20: 468 | B20: =IF(ISERROR(VLOOKUP(A20,用語表!$C$3:$E$602,3,0)),"",VLOOKUP(A20,用語表!$C$3:$E$602,3,0)) -> システム特性係数 | D20: 496 | E20: =IF(ISERROR(VLOOKUP(D20,用語表!$C$3:$E$602,3,0)),"",VLOOKUP(D20,用語表!$C$3:$E$602,3,0)) -> ＩＴサービスマネジメント | G20: 524 | H20: =IF(ISERROR(VLOOKUP(G20,用語表!$C$3:$E$602,3,0)),"",VLOOKUP(G20,用語表!$C$3:$E$602,3,0)) -> リスト | J20: 552 | K20: =IF(ISERROR(VLOOKUP(J20,用語表!$C$3:$E$602,3,0)),"",VLOOKUP(J20,用語表!$C$3:$E$602,3,0)) -> 
A21: 469 | B21: =IF(ISERROR(VLOOKUP(A21,用語表!$C$3:$E$602,3,0)),"",VLOOKUP(A21,用語表!$C$3:$E$602,3,0)) -> ウォータフォールモデル | D21: 497 | E21: =IF(ISERROR(VLOOKUP(D21,用語表!$C$3:$E$602,3,0)),"",VLOOKUP(D21,用語表!$C$3:$E$602,3,0)) -> ＩＴＩＬ | G21: 525 | H21: =IF(ISERROR(VLOOKUP(G21,用語表!$C$3:$E$602,3,0)),"",VLOOKUP(G21,用語表!$C$3:$E$602,3,0)) -> スタック | J21: 553 | K21: =IF(ISERROR(VLOOKUP(J21,用語表!$C$3:$E$602,3,0)),"",VLOOKUP(J21,用語表!$C$3:$E$602,3,0)) -> 
A22: 470 | B22: =IF(ISERROR(VLOOKUP(A22,用語表!$C$3:$E$602,3,0)),"",VLOOKUP(A22,用語表!$C$3:$E$602,3,0)) -> プロトタイピングモデル | D22: 498 | E22: =IF(ISERROR(VLOOKUP(D22,用語表!$C$3:$E$602,3,0)),"",VLOOKUP(D22,用語表!$C$3:$E$602,3,0)) -> ベンチマーキング | G22: 526 | H22: =IF(ISERROR(VLOOKUP(G22,用語表!$C$3:$E$602,3,0)),"",VLOOKUP(G22,用語表!$C$3:$E$602,3,0)) -> キュー | J22: 554 | K22: =IF(ISERROR(VLOOKUP(J22,用語表!$C$3:$E$602,3,0)),"",VLOOKUP(J22,用語表!$C$3:$E$602,3,0)) -> 
A23: 471 | B23: =IF(ISERROR(VLOOKUP(A23,用語表!$C$3:$E$602,3,0)),"",VLOOKUP(A23,用語表!$C$3:$E$602,3,0)) -> スパイラルモデル | D23: 499 | E23: =IF(ISERROR(VLOOKUP(D23,用語表!$C$3:$E$602,3,0)),"",VLOOKUP(D23,用語表!$C$3:$E$602,3,0)) -> ベストプラクティス | G23: 527 | H23: =IF(ISERROR(VLOOKUP(G23,用語表!$C$3:$E$602,3,0)),"",VLOOKUP(G23,用語表!$C$3:$E$602,3,0)) -> フローチャート | J23: 555 | K23: =IF(ISERROR(VLOOKUP(J23,用語表!$C$3:$E$602,3,0)),"",VLOOKUP(J23,用語表!$C$3:$E$602,3,0)) -> 
A24: 472 | B24: =IF(ISERROR(VLOOKUP(A24,用語表!$C$3:$E$602,3,0)),"",VLOOKUP(A24,用語表!$C$3:$E$602,3,0)) -> RAD | D24: 500 | E24: =IF(ISERROR(VLOOKUP(D24,用語表!$C$3:$E$602,3,0)),"",VLOOKUP(D24,用語表!$C$3:$E$602,3,0)) -> サービスサポート | G24: 528 | H24: =IF(ISERROR(VLOOKUP(G24,用語表!$C$3:$E$602,3,0)),"",VLOOKUP(G24,用語表!$C$3:$E$602,3,0)) -> 構造化プログラミング | J24: 556 | K24: =IF(ISERROR(VLOOKUP(J24,用語表!$C$3:$E$602,3,0)),"",VLOOKUP(J24,用語表!$C$3:$E$602,3,0)) -> 
A25: 473 | B25: =IF(ISERROR(VLOOKUP(A25,用語表!$C$3:$E$602,3,0)),"",VLOOKUP(A25,用語表!$C$3:$E$602,3,0)) -> CASEツール | D25: 501 | E25: =IF(ISERROR(VLOOKUP(D25,用語表!$C$3:$E$602,3,0)),"",VLOOKUP(D25,用語表!$C$3:$E$602,3,0)) -> インシデント管理 | G25: 529 | H25: =IF(ISERROR(VLOOKUP(G25,用語表!$C$3:$E$602,3,0)),"",VLOOKUP(G25,用語表!$C$3:$E$602,3,0)) -> 二分探索法 | J25: 557 | K25: =IF(ISERROR(VLOOKUP(J25,用語表!$C$3:$E$602,3,0)),"",VLOOKUP(J25,用語表!$C$3:$E$602,3,0)) -> 
A26: 474 | B26: =IF(ISERROR(VLOOKUP(A26,用語表!$C$3:$E$602,3,0)),"",VLOOKUP(A26,用語表!$C$3:$E$602,3,0)) -> 構造化手法 | D26: 502 | E26: =IF(ISERROR(VLOOKUP(D26,用語表!$C$3:$E$602,3,0)),"",VLOOKUP(D26,用語表!$C$3:$E$602,3,0)) -> サービスデスク | G26: 530 | H26: =IF(ISERROR(VLOOKUP(G26,用語表!$C$3:$E$602,3,0)),"",VLOOKUP(G26,用語表!$C$3:$E$602,3,0)) -> バブルソート | J26: 558 | K26: =IF(ISERROR(VLOOKUP(J26,用語表!$C$3:$E$602,3,0)),"",VLOOKUP(J26,用語表!$C$3:$E$602,3,0)) -> 
A27: 475 | B27: =IF(ISERROR(VLOOKUP(A27,用語表!$C$3:$E$602,3,0)),"",VLOOKUP(A27,用語表!$C$3:$E$602,3,0)) -> CMMＩ | D27: 503 | E27: =IF(ISERROR(VLOOKUP(D27,用語表!$C$3:$E$602,3,0)),"",VLOOKUP(D27,用語表!$C$3:$E$602,3,0)) -> サービスデリバリ | G27: 531 | H27: =IF(ISERROR(VLOOKUP(G27,用語表!$C$3:$E$602,3,0)),"",VLOOKUP(G27,用語表!$C$3:$E$602,3,0)) -> プログラム言語 | J27: 559 | K27: =IF(ISERROR(VLOOKUP(J27,用語表!$C$3:$E$602,3,0)),"",VLOOKUP(J27,用語表!$C$3:$E$602,3,0)) -> 
A28: 476 | B28: =IF(ISERROR(VLOOKUP(A28,用語表!$C$3:$E$602,3,0)),"",VLOOKUP(A28,用語表!$C$3:$E$602,3,0)) -> プロセス中心設計（ＰＯＡ） | D28: 504 | E28: =IF(ISERROR(VLOOKUP(D28,用語表!$C$3:$E$602,3,0)),"",VLOOKUP(D28,用語表!$C$3:$E$602,3,0)) -> ＳＬＭ | G28: 532 | H28: =IF(ISERROR(VLOOKUP(G28,用語表!$C$3:$E$602,3,0)),"",VLOOKUP(G28,用語表!$C$3:$E$602,3,0)) -> IDE(統合開発環境) | J28: 560 | K28: =IF(ISERROR(VLOOKUP(J28,用語表!$C$3:$E$602,3,0)),"",VLOOKUP(J28,用語表!$C$3:$E$602,3,0)) -> 
A29: 477 | B29: =IF(ISERROR(VLOOKUP(A29,用語表!$C$3:$E$602,3,0)),"",VLOOKUP(A29,用語表!$C$3:$E$602,3,0)) -> データ中心設計（ＤＯＡ） | D29: 505 | E29: =IF(ISERROR(VLOOKUP(D29,用語表!$C$3:$E$602,3,0)),"",VLOOKUP(D29,用語表!$C$3:$E$602,3,0)) -> ＳＬＡ | G29: 533 | H29: =IF(ISERROR(VLOOKUP(G29,用語表!$C$3:$E$602,3,0)),"",VLOOKUP(G29,用語表!$C$3:$E$602,3,0)) -> コンパイラ | J29: 561 | K29: =IF(ISERROR(VLOOKUP(J29,用語表!$C$3:$E$602,3,0)),"",VLOOKUP(J29,用語表!$C$3:$E$602,3,0)) -> 
A30: 478 | B30: =IF(ISERROR(VLOOKUP(A30,用語表!$C$3:$E$602,3,0)),"",VLOOKUP(A30,用語表!$C$3:$E$602,3,0)) -> オブジェクト指向設計 | D30: 506 | E30: =IF(ISERROR(VLOOKUP(D30,用語表!$C$3:$E$602,3,0)),"",VLOOKUP(D30,用語表!$C$3:$E$602,3,0)) -> ファシリティマネジメント | G30: 534 | H30: =IF(ISERROR(VLOOKUP(G30,用語表!$C$3:$E$602,3,0)),"",VLOOKUP(G30,用語表!$C$3:$E$602,3,0)) -> インタプリタ | J30: 562 | K30: =IF(ISERROR(VLOOKUP(J30,用語表!$C$3:$E$602,3,0)),"",VLOOKUP(J30,用語表!$C$3:$E$602,3,0)) -> 
A31: 479 | B31: =IF(ISERROR(VLOOKUP(A31,用語表!$C$3:$E$602,3,0)),"",VLOOKUP(A31,用語表!$C$3:$E$602,3,0)) -> プロジェクト憲章 | D31: 507 | E31: =IF(ISERROR(VLOOKUP(D31,用語表!$C$3:$E$602,3,0)),"",VLOOKUP(D31,用語表!$C$3:$E$602,3,0)) -> システム監査 | G31: 535 | H31: =IF(ISERROR(VLOOKUP(G31,用語表!$C$3:$E$602,3,0)),"",VLOOKUP(G31,用語表!$C$3:$E$602,3,0)) -> マークアップ言語 | J31: 563 | K31: =IF(ISERROR(VLOOKUP(J31,用語表!$C$3:$E$602,3,0)),"",VLOOKUP(J31,用語表!$C$3:$E$602,3,0)) -> 
B33: ="出題範囲="&C45&":"&C46 -> 出題範囲=472:511 | E33: ="印刷範囲="&C49&":"&C50 -> 印刷範囲=31:40 | J33: 7
A34: 1 | B34: =IF(ISERROR(VLOOKUP(J34,用語表!$C$3:$E$537,2)),"",VLOOKUP(J34,用語表!$C$3:$E$537,2)) -> システムやプログラムを機能と機能間のデータに着目して階層構造的に分解していく手法。 | J34: 474 | M34: =J34 -> 474 | N34: =IFERROR(VLOOKUP(J34,用語表!$C$3:$E$537,3,0),"")&" "&VLOOKUP(J34,用語表!$C$3:$F$537,4,0) -> 構造化手法
A35: 2 | B35: =IF(ISERROR(VLOOKUP(J35,用語表!$C$3:$E$537,2)),"",VLOOKUP(J35,用語表!$C$3:$E$537,2)) -> ソフトウェア開発において、機能に着目して分析・設計していく手法。その特徴は、①人が業務を理解する方法に似ている。 ②処理内容が変更された場合の修正が大幅になる。 | J35: 476 | M35: 476 | N35: =IFERROR(VLOOKUP(J35,用語表!$C$3:$E$537,3,0),"")&" "&VLOOKUP(J35,用語表!$C$3:$F$537,4,0) -> プロセス中心設計（ＰＯＡ）
A36: 3 | B36: =IF(ISERROR(VLOOKUP(J36,用語表!$C$3:$E$537,2)),"",VLOOKUP(J36,用語表!$C$3:$E$537,2)) -> 業務改善の目標となる模範的な成功事例のことで、ベンチマーキングによって見つけ出す。 | J36: 499 | M36: 499 | N36: =IFERROR(VLOOKUP(J36,用語表!$C$3:$E$537,3,0),"")&" "&VLOOKUP(J36,用語表!$C$3:$F$537,4,0) -> ベストプラクティス
A37: 4 | B37: =IF(ISERROR(VLOOKUP(J37,用語表!$C$3:$E$537,2)),"",VLOOKUP(J37,用語表!$C$3:$E$537,2)) -> 工程管理図ともいわれるように、作業の進み具合を表す図。予定と実績を記入し、予定に対して進んでいるのか遅れているのか、一目でわかるようにしたもの。 | J37: 490 | M37: 490 | N37: =IFERROR(VLOOKUP(J37,用語表!$C$3:$E$537,3,0),"")&" "&VLOOKUP(J37,用語表!$C$3:$F$537,4,0) -> ガントチャート
A38: 5 | B38: =IF(ISERROR(VLOOKUP(J38,用語表!$C$3:$E$537,2)),"",VLOOKUP(J38,用語表!$C$3:$E$537,2)) -> プロジェクトの進行の上で起こりうる事態を予想し、それが望ましい結果に結びつくように、あらかじめ複数の道筋を立てることで、円滑にプロジェクトを進めようとすること。 | J38: 483 | M38: 483 | N38: =IFERROR(VLOOKUP(J38,用語表!$C$3:$E$537,3,0),"")&" "&VLOOKUP(J38,用語表!$C$3:$F$537,4,0) -> PDPC Process Decision Program Chart
A39: 6 | B39: =IF(ISERROR(VLOOKUP(J39,用語表!$C$3:$E$537,2)),"",VLOOKUP(J39,用語表!$C$3:$E$537,2)) -> 業務などを改善するときに、計画(Plan)、実行(Do)、確認(Check)、改善(Action)を繰り返す方法。 | J39: 482 | M39: 482 | N39: =IFERROR(VLOOKUP(J39,用語表!$C$3:$E$537,3,0),"")&" "&VLOOKUP(J39,用語表!$C$3:$F$537,4,0) -> ＰＤＣＡサイクル Plan-Do-Check-Act
A40: 7 | B40: =IF(ISERROR(VLOOKUP(J40,用語表!$C$3:$E$537,2)),"",VLOOKUP(J40,用語表!$C$3:$E$537,2)) -> コンピュータやネットワークを含めた施設や設備を管理すること。経営の視点から、建物や設備などの不動産の保有、運用、維持などを最適化する手法。コストを低減するとともに、働く人にとって魅力的な施設を実現する。 例 IT関連設備について、最適な使われ方をしているかを常に監視し改善すること。 | J40: 506 | M40: 506 | N40: =IFERROR(VLOOKUP(J40,用語表!$C$3:$E$537,3,0),"")&" "&VLOOKUP(J40,用語表!$C$3:$F$537,4,0) -> ファシリティマネジメント
A41: 8 | B41: =IF(ISERROR(VLOOKUP(J41,用語表!$C$3:$E$537,2)),"",VLOOKUP(J41,用語表!$C$3:$E$537,2)) -> 「コンピュータ支援ソフトウェア工学」の略。システム開発支援ツールと開発方法論の統合、システム開発作業の効率化を目的としている。 | J41: 473 | M41: 473 | N41: =IFERROR(VLOOKUP(J41,用語表!$C$3:$E$537,3,0),"")&" "&VLOOKUP(J41,用語表!$C$3:$F$537,4,0) -> CASEツール Computer Aided Software Engineering
A42: 9 | B42: =IF(ISERROR(VLOOKUP(J42,用語表!$C$3:$E$537,2)),"",VLOOKUP(J42,用語表!$C$3:$E$537,2)) -> 直面する複雑な問題の解決や特定の目的達成のために業務終了までの期間限定で編成される組織による活動 | J42: 480 | M42: 480 | N42: =IFERROR(VLOOKUP(J42,用語表!$C$3:$E$537,3,0),"")&" "&VLOOKUP(J42,用語表!$C$3:$F$537,4,0) -> プロジェクト
A43: 10 | B43: =IF(ISERROR(VLOOKUP(J43,用語表!$C$3:$E$537,2)),"",VLOOKUP(J43,用語表!$C$3:$E$537,2)) -> 経営の立場からITをマネジメントすること。組織体、共同体がITを導入、活用するに当たり、目的と戦略を適切に設定し、その効果やリスクを測定、評価して、理想とするIT活用を実現するメカニズムをその組織の中に確立すること。 | J43: 511 | M43: 511 | N43: =IFERROR(VLOOKUP(J43,用語表!$C$3:$E$537,3,0),"")&" "&VLOOKUP(J43,用語表!$C$3:$F$537,4,0) -> ＩＴガバナンス IT governanceの略
B45: 開始問題番号 | C45: 472 | N45: ０ 「開始問題番号」と「終了問題番号」を入力する。
B46: 終了問題番号 | C46: 511 | N46: 1～１１１までの問題番号
B47: 問題数 | C47: =C46-C45+1 -> 40
B48: 問題印刷枚数 | C48: 16 | N48: １ 問題数の行分の乱数を設定する。
B49: E列 印刷開始問題番号 | C49: 31 | N49: 例 問題数が３８の場合は、行５４から行９１まで
B50: E列 印刷終了問題番号 | C50: 40
N51: ２ 問題番号を値複写する。
A53: 問題数 | B53: 乱数＆問題番号 | E53: 値複写（作成する問題番号） | H53: 用語範囲の確認（範囲エラー） | K53: 重複の確認（"重複"の表示） | N53: ３ 「印刷開始問題番号」を入力して「問題の作成」ボタンを押す。
A54: 1 | B54: =RAND() -> 0.5747472474 | C54: =RANK(B54,$B$54:$B$120)+$C$45-1 -> 485 | E54: 481 | H54: =IF(AND(E54>=$C$45,E54<=$C$46),"","範囲エラー") ->  | K54: =IF(COUNTIF($E$54:E120,E54)>1,"重複","") -> 
A55: 2 | B55: 0.3174243611 | C55: =RANK(B55,$B$54:$B$120)+$C$45-1 -> 494 | E55: 487 | K55: =IF(COUNTIF($E$54:E121,E55)>1,"重複","") ->  | N55: ４ 「問題印刷枚数」を入力して「問題の印刷」を押す。
A56: 3 | B56: 0.2422789145 | C56: 496 | E56: 496 | K56: =IF(COUNTIF($E$54:E122,E56)>1,"重複","") -> 
A57: 4 | B57: 0.1160882201 | C57: 506 | E57: 486 | K57: =IF(COUNTIF($E$54:E123,E57)>1,"重複","") ->  | N57: ５ 「解答の印刷」を押す。
A58: 5 | B58: 0.6826345837 | C58: 480 | E58: 508 | K58: =IF(COUNTIF($E$54:E124,E58)>1,"重複","") -> 
A59: 6 | B59: 0.9676073903 | C59: 474 | E59: 477 | K59: =IF(COUNTIF($E$54:E125,E59)>1,"重複","") -> 
A60: 7 | B60: 0.348195131 | C60: 492 | E60: 494 | K60: =IF(COUNTIF($E$54:E126,E60)>1,"重複","") -> 
A61: 8 | B61: 0.155958094 | C61: 503 | E61: 484 | K61: =IF(COUNTIF($E$54:E127,E61)>1,"重複","") -> 
A62: 9 | B62: 0.6283240891 | C62: 483 | E62: 505 | K62: =IF(COUNTIF($E$54:E128,E62)>1,"重複","") -> 
A63: 10 | B63: 0.3472720438 | C63: 493 | E63: 478 | K63: =IF(COUNTIF($E$54:E129,E63)>1,"重複","") -> 
A64: 11 | B64: 0.4234710162 | C64: =RANK(B64,$B$54:$B$120)+$C$45-1 -> 488 | E64: 498 | K64: =IF(COUNTIF($E$54:E130,E64)>1,"重複","") -> 
A65: 12 | B65: 0.5018957214 | C65: 487 | E65: 504 | K65: =IF(COUNTIF($E$54:E131,E65)>1,"重複","") -> 
A66: 13 | B66: 0.2166402444 | C66: 497 | E66: 509 | K66: =IF(COUNTIF($E$54:E132,E66)>1,"重複","") -> 
A67: 14 | B67: 0.9382136096 | C67: 475 | E67: 491 | K67: =IF(COUNTIF($E$54:E133,E67)>1,"重複","") -> 
A68: 15 | B68: 0.05399311531 | C68: 511 | E68: 485 | K68: =IF(COUNTIF($E$54:E134,E68)>1,"重複","") -> 
A69: 16 | B69: 0.9939849781 | C69: 472 | E69: 489 | K69: =IF(COUNTIF($E$54:E135,E69)>1,"重複","") -> 
A70: 17 | B70: 0.1914095626 | C70: =RANK(B70,$B$54:$B$120)+$C$45-1 -> 500 | E70: 502 | K70: =IF(COUNTIF($E$54:E136,E70)>1,"重複","") -> 
A71: 18 | B71: 0.798935589 | C71: 478 | E71: 493 | K71: =IF(COUNTIF($E$54:E137,E71)>1,"重複","") -> 
A72: 19 | B72: 0.1001787553 | C72: 508 | E72: 503 | K72: =IF(COUNTIF($E$54:E138,E72)>1,"重複","") -> 
A73: 20 | B73: 0.2007403741 | C73: 499 | E73: 497 | K73: =IF(COUNTIF($E$54:E139,E73)>1,"重複","") -> 
A74: 21 | B74: 0.619776373 | C74: =RANK(B74,$B$54:$B$120)+$C$45-1 -> 484 | E74: 501 | K74: =IF(COUNTIF($E$54:E140,E74)>1,"重複","") -> 
A75: 22 | B75: 0.6455093208 | C75: 482 | E75: 472 | K75: =IF(COUNTIF($E$54:E141,E75)>1,"重複","") -> 
A76: 23 | B76: 0.9781777114 | C76: 473 | E76: 492 | K76: =IF(COUNTIF($E$54:E142,E76)>1,"重複","") -> 
A77: 24 | B77: 0.6614003758 | C77: 481 | E77: 495 | K77: =IF(COUNTIF($E$54:E143,E77)>1,"重複","") -> 
A78: 25 | B78: 0.8093177634 | C78: 477 | E78: 500 | K78: =IF(COUNTIF($E$54:E144,E78)>1,"重複","") -> 
A79: 26 | B79: 0.4051719311 | C79: 489 | E79: 507 | K79: =IF(COUNTIF($E$54:E145,E79)>1,"重複","") -> 
A80: 27 | B80: 0.1445153106 | C80: 505 | E80: 488 | K80: =IF(COUNTIF($E$54:E146,E80)>1,"重複","") -> 
A81: 28 | B81: 0.2130332959 | C81: 498 | E81: 479 | K81: =IF(COUNTIF($E$54:E147,E81)>1,"重複","") -> 
A82: 29 | B82: 0.165376865 | C82: 502 | E82: 475 | K82: =IF(COUNTIF($E$54:E148,E82)>1,"重複","") -> 
A83: 30 | B83: 0.1550843959 | C83: 504 | E83: 510 | K83: =IF(COUNTIF($E$54:E149,E83)>1,"重複","") -> 
A84: 31 | B84: 0.1659598673 | C84: 501 | E84: 474 | K84: =IF(COUNTIF($E$54:E150,E84)>1,"重複","") -> 
A85: 32 | B85: 0.1087879483 | C85: 507 | E85: 476 | K85: =IF(COUNTIF($E$54:E151,E85)>1,"重複","") -> 
A86: 33 | B86: 0.5667131162 | C86: 486 | E86: 499 | K86: =IF(COUNTIF($E$54:E152,E86)>1,"重複","") -> 
A87: 34 | B87: 0.08529062748 | C87: 510 | E87: 490 | K87: =IF(COUNTIF($E$54:E153,E87)>1,"重複","") -> 
A88: 35 | B88: 0.7536240696 | C88: 479 | E88: 483 | K88: =IF(COUNTIF($E$54:E154,E88)>1,"重複","") -> 
A89: 36 | B89: 0.09728794901 | C89: 509 | E89: 482 | K89: =IF(COUNTIF($E$54:E155,E89)>1,"重複","") -> 
A90: 37 | B90: 0.3683408963 | C90: 491 | E90: 506 | K90: =IF(COUNTIF($E$54:E156,E90)>1,"重複","") -> 
A91: 38 | B91: 0.8761137273 | C91: 476 | E91: 473 | K91: =IF(COUNTIF($E$54:E157,E91)>1,"重複","") -> 
A92: 39 | B92: 0.2933418223 | C92: 495 | E92: 480 | K92: =IF(COUNTIF($E$54:E158,E92)>1,"重複","") -> 
A93: 40 | B93: 0.3972676317 | C93: 490 | E93: 511 | K93: =IF(COUNTIF($E$54:E159,E93)>1,"重複","") -> 
A94: 41 | K94: =IF(COUNTIF($E$54:E160,E94)>1,"重複","") -> 
A95: 42 | K95: =IF(COUNTIF($E$54:E161,E95)>1,"重複","") -> 
A96: 43 | K96: =IF(COUNTIF($E$54:E162,E96)>1,"重複","") -> 
A97: 44 | K97: =IF(COUNTIF($E$54:E163,E97)>1,"重複","") -> 
A98: 45 | K98: =IF(COUNTIF($E$54:E164,E98)>1,"重複","") -> 
A99: 46 | K99: =IF(COUNTIF($E$54:E165,E99)>1,"重複","") -> 
A100: 47 | K100: =IF(COUNTIF($E$54:E166,E100)>1,"重複","") -> 
A101: 48 | K101: =IF(COUNTIF($E$54:E167,E101)>1,"重複","") -> 
A102: 49 | K102: =IF(COUNTIF($E$54:E168,E102)>1,"重複","") -> 
A103: 50 | K103: =IF(COUNTIF($E$54:E169,E103)>1,"重複","") -> 
A104: 51 | K104: =IF(COUNTIF($E$54:E170,E104)>1,"重複","") -> 
A105: 52 | K105: =IF(COUNTIF($E$54:E171,E105)>1,"重複","") -> 
A106: 53 | K106: =IF(COUNTIF($E$54:E172,E106)>1,"重複","") -> 
A107: 54 | K107: =IF(COUNTIF($E$54:E173,E107)>1,"重複","") -> 
A108: 55 | K108: =IF(COUNTIF($E$54:E174,E108)>1,"重複","") -> 
A109: 56 | K109: =IF(COUNTIF($E$54:E175,E109)>1,"重複","") -> 
A110: 57 | K110: =IF(COUNTIF($E$54:E176,E110)>1,"重複","") -> 
A111: 58 | K111: =IF(COUNTIF($E$54:E177,E111)>1,"重複","") -> 
A112: 59 | K112: =IF(COUNTIF($E$54:E178,E112)>1,"重複","") -> 
A113: 60 | K113: =IF(COUNTIF($E$54:E179,E113)>1,"重複","") -> 
A114: 61
A115: 62
A116: 63
A117: 64
A118: 65
A119: 66
A120: 67
A121: 68
A122: 69
A123: 70

Sheet 問題作成_用語中心
C1: ITパスポート試験 用語確認問題
C2: 年 組 席 名前
B4: 1 | E4: 29 | H4: 57 | K4: 85
B5: 2 | E5: 30 | H5: 58 | K5: 86
B6: 3 | E6: 31 | H6: 59 | K6: 87
B7: 4 | E7: 32 | H7: 60 | K7: 88
B8: 5 | E8: 33 | H8: 61 | K8: 89
B9: 6 | E9: 34 | H9: 62 | K9: 90
B10: 7 | E10: 35 | H10: 63 | K10: 91
B11: 8 | E11: 36 | H11: 64 | K11: 92
B12: 9 | E12: 37 | H12: 65 | K12: 93
B13: 10 | E13: 38 | H13: 66 | K13: 94
B14: 11 | E14: 39 | H14: 67 | K14: 95
B15: 12 | E15: 40 | H15: 68 | K15: 96
B16: 13 | E16: 41 | H16: 69 | K16: 97
B17: 14 | E17: 42 | H17: 70 | K17: 98
B18: 15 | E18: 43 | H18: 71 | K18: 99
B19: 16 | E19: 44 | H19: 72 | K19: 100
B20: 17 | E20: 45 | H20: 73 | K20: 101
B21: 18 | E21: 46 | H21: 74 | K21: 102
B22: 19 | E22: 47 | H22: 75 | K22: 103
B23: 20 | E23: 48 | H23: 76 | K23: 104
B24: 21 | E24: 49 | H24: 77 | K24: 105
B25: 22 | E25: 50 | H25: 78 | K25: 106
B26: 23 | E26: 51 | H26: 79 | K26: 107
B27: 24 | E27: 52 | H27: 80 | K27: 108
B28: 25 | E28: 53 | H28: 81 | K28: 109
B29: 26 | E29: 54 | H29: 82 | K29: 110
B30: 27 | E30: 55 | H30: 83 | K30: 111
B31: 28 | E31: 56 | H31: 84
C33: ="出題範囲="&D45&":"&D46 -> 出題範囲=1:34 | K33: 7 | N33: 答え
A34: 18 | B34: ア | C34: システムの手法の一つで、分割された個々のプログラムのみを対象としたテストのこと。 | G34: 8 | H34: 1 | I34: デバイスドライバ | N34: =VLOOKUP(G34,$A$34:$B$43,2,0) -> オ
A35: 10 | B35: イ | C35: 開発の早い段階から試作品を作成して試用してもらい、ユーザの要求を確認しながら開発を進めるシステム開発手法。比較的小規模なシステムの開発に向いている。 | G35: 10 | H35: 2 | I35: プロトタイプモデル | N35: イ
A36: 15 | B36: ウ | C36: 内部設計に基づいて、各プログラムの内部構造を設計する開発工程。外部設計と内部設計の機能を、プログラムにより実現する方法を設計する工程。 | G36: 11 | H36: 3 | I36: スパイラルモデル | N36: ケ
A37: 25 | B37: エ | C37: システムが目標とする稼動時間に対し、正常に稼動した時間の割合。 | G37: 15 | H37: 4 | I37: プログラム設計 | N37: ウ
A38: 8 | B38: オ | C38: コンピュータに接続する周辺機器を動作させるためのソフトウェア。 | G38: 18 | H38: 5 | I38: 単体テスト | N38: ア
A39: 27 | B39: カ | C39: システムの障害発生時における修復時間の平均。この時間が短いほど保守性に優れている。 | G39: 19 | H39: 6 | I39: 結合テスト | N39: ク
A40: 33 | B40: キ | C40: 無停電電源装置のこと。バッテリーや発電機を内蔵し、停電などの時、一定の時間コンピュータに電気を供給する。 | G40: 25 | H40: 7 | I40: 稼働率 | N40: エ
A41: 19 | B41: ク | C41: システムのテスト手法の一つで、複数のプログラムを組み合わせて行うテストのこと。個々のプログラムの単体テスト後に行う。 | G41: 27 | H41: 8 | I41: 平均修復時間（MTTR) | N41: カ
A42: 11 | B42: ケ | C42: プロトタイプモデルとウォータフォールモデルを合わせた開発手法。独立性の高いプログラムごとに、設計→プログラミング→テストをユーザの要求に合うまで繰り返す。 | G42: 33 | H42: 9 | I42: UPS | N42: キ
A43: 38 | B43: コ | C43: ネットワーク上を流れるデータを他のネットワークに中継する機器のこと。どの経路を通して転送すべきかを判断する経路選択機能を備えている。 | G43: 38 | H43: 10 | I43: ルータ | N43: コ
C45: 開始問題番号 | D45: 1 | N45: ０ 「開始問題番号」と「終了問題番号」を入力する。
C46: 終了問題番号 | D46: 34 | N46: 1～１１１までの問題番号
C47: 問題数 | D47: =D46-D45+1 -> 34
C48: 問題印刷枚数 | D48: 34 | N48: １ 問題数の行分の乱数を設定する。
C49: E列 印刷開始問題番号 | D49: 11 | N49: 例 問題数が３８の場合は、行５４から行９１まで
C50: E列 印刷終了問題番号 | D50: 20
N51: ２ 問題番号を値複写する。
B53: 問題数 | C53: 乱数＆問題番号 | F53: 値複写（作成する問題番号） | I53: 用語（ソート） | L53: 重複の確認（"重複"の表示） | N53: ３ 「印刷開始問題番号」を入力して「問題の作成」ボタンを押す。
B54: 1 | C54: =RAND() -> 0.2609154175 | D54: =RANK(C54,$C$54:$C$91)+$D$45-1 -> 30 | F54: 5 | I54: 1 | L54: =IF(COUNTIF($F$54:F93,F54)>1,"重複","") -> 
B55: 2 | C55: 0.8361977198 | D55: 7 | F55: 6 | I55: 4 | L55: =IF(COUNTIF($F$54:F94,F55)>1,"重複","") ->  | N55: ４ 「問題印刷枚数」を入力して「問題の印刷」を押す。
B56: 3 | C56: 0.1811223955 | D56: 33 | F56: 28 | I56: 5 | L56: =IF(COUNTIF($F$54:F95,F56)>1,"重複","") -> 
B57: 4 | C57: 0.2926414046 | D57: 27 | F57: 17 | I57: 6 | L57: =IF(COUNTIF($F$54:F96,F57)>1,"重複","") ->  | N57: ５ 「解答の印刷」を押す。
B58: 5 | C58: 0.981168341 | D58: 2 | F58: 13 | I58: 9 | L58: =IF(COUNTIF($F$54:F97,F58)>1,"重複","") -> 
B59: 6 | C59: 0.3231041432 | D59: 23 | F59: 23 | I59: 13 | L59: =IF(COUNTIF($F$54:F98,F59)>1,"重複","") -> 
B60: 7 | C60: 0.1963286802 | D60: 32 | F60: 9 | I60: 17 | L60: =IF(COUNTIF($F$54:F99,F60)>1,"重複","") -> 
B61: 8 | C61: 0.4289927502 | D61: 19 | F61: 31 | I61: 23 | L61: =IF(COUNTIF($F$54:F100,F61)>1,"重複","") -> 
B62: 9 | C62: 0.2687232298 | D62: 28 | F62: 1 | I62: 28 | L62: =IF(COUNTIF($F$54:F101,F62)>1,"重複","") -> 
B63: 10 | C63: 0.8757751956 | D63: 3 | F63: 4 | I63: 31 | L63: =IF(COUNTIF($F$54:F102,F63)>1,"重複","") -> 
B64: 11 | C64: 0.6724069104 | D64: 10 | F64: 18 | I64: 8 | L64: =IF(COUNTIF($F$54:F103,F64)>1,"重複","") -> 
B65: 12 | C65: 0.3857284126 | D65: 20 | F65: 10 | I65: 10 | L65: =IF(COUNTIF($F$54:F104,F65)>1,"重複","") -> 
B66: 13 | C66: 0.2662555342 | D66: 29 | F66: 15 | I66: 11 | L66: =IF(COUNTIF($F$54:F105,F66)>1,"重複","") -> 
B67: 14 | C67: 0.03726796544 | D67: 36 | F67: 25 | I67: 15 | L67: =IF(COUNTIF($F$54:F106,F67)>1,"重複","") -> 
B68: 15 | C68: 0.8597306051 | D68: 5 | F68: 8 | I68: 18 | L68: =IF(COUNTIF($F$54:F107,F68)>1,"重複","") -> 
B69: 16 | C69: 0.7926975187 | D69: 8 | F69: 27 | I69: 19 | L69: =IF(COUNTIF($F$54:F108,F69)>1,"重複","") -> 
B70: 17 | C70: 0.2935070719 | D70: 26 | F70: 33 | I70: 25 | L70: =IF(COUNTIF($F$54:F109,F70)>1,"重複","") -> 
B71: 18 | C71: 0.3131263796 | D71: 24 | F71: 19 | I71: 27 | L71: =IF(COUNTIF($F$54:F110,F71)>1,"重複","") -> 
B72: 19 | C72: 0.001485425691 | D72: 38 | F72: 11 | I72: 33 | L72: =IF(COUNTIF($F$54:F111,F72)>1,"重複","") -> 
B73: 20 | C73: 0.1250031428 | D73: 34 | F73: 38 | I73: 38 | L73: =IF(COUNTIF($F$54:F112,F73)>1,"重複","") -> 
B74: 21 | C74: 0.3409755849 | D74: 22 | F74: 20 | I74: 20 | L74: =IF(COUNTIF($F$54:F113,F74)>1,"重複","") -> 
B75: 22 | C75: 0.3059009899 | D75: 25 | F75: 30 | I75: 30 | L75: =IF(COUNTIF($F$54:F114,F75)>1,"重複","") -> 
B76: 23 | C76: 0.6675440331 | D76: 11 | F76: 36 | I76: 36 | L76: =IF(COUNTIF($F$54:F115,F76)>1,"重複","") -> 
B77: 24 | C77: 0.6382823446 | D77: 14 | F77: 22 | I77: 22 | L77: =IF(COUNTIF($F$54:F116,F77)>1,"重複","") -> 
B78: 25 | C78: 0.2294574412 | D78: 31 | F78: 26 | I78: 26 | L78: =IF(COUNTIF($F$54:F117,F78)>1,"重複","") -> 
B79: 26 | C79: 0.7611649697 | D79: 9 | F79: 32 | I79: 32 | L79: =IF(COUNTIF($F$54:F118,F79)>1,"重複","") -> 
B80: 27 | C80: 0.5981531911 | D80: 15 | F80: 35 | I80: 35 | L80: =IF(COUNTIF($F$54:F119,F80)>1,"重複","") -> 
B81: 28 | C81: 0.4791462863 | D81: 16 | F81: 37 | I81: 37 | L81: =IF(COUNTIF($F$54:F120,F81)>1,"重複","") -> 
B82: 29 | C82: 0.3456356668 | D82: 21 | F82: 12 | I82: 12 | L82: =IF(COUNTIF($F$54:F121,F82)>1,"重複","") -> 
B83: 30 | C83: 0.01225430481 | D83: 37 | F83: 16 | I83: 16 | L83: =IF(COUNTIF($F$54:F122,F83)>1,"重複","") -> 
B84: 31 | C84: 0.6485831979 | D84: 13 | F84: 21 | I84: 21 | L84: =IF(COUNTIF($F$54:F123,F84)>1,"重複","") -> 
B85: 32 | C85: 0.4653703419 | D85: 17 | F85: 24 | I85: 24 | L85: =IF(COUNTIF($F$54:F124,F85)>1,"重複","") -> 
B86: 33 | C86: 0.8533973183 | D86: 6 | F86: 29 | I86: 29 | L86: =IF(COUNTIF($F$54:F125,F86)>1,"重複","") -> 
B87: 34 | C87: 0.04197687547 | D87: 35 | F87: 3 | I87: 3 | L87: =IF(COUNTIF($F$54:F126,F87)>1,"重複","") -> 
B88: 35 | C88: 0.9904536949 | D88: 1 | F88: 7 | I88: 7 | L88: =IF(COUNTIF($F$54:F127,F88)>1,"重複","") -> 
B89: 36 | C89: 0.4290835949 | D89: 18 | F89: 34 | I89: 34 | L89: =IF(COUNTIF($F$54:F128,F89)>1,"重複","") -> 
B90: 37 | C90: 0.8630320949 | D90: 4 | F90: 14 | I90: 14 | L90: =IF(COUNTIF($F$54:F129,F90)>1,"重複","") -> 
B91: 38 | C91: 0.6530770197 | D91: 12 | F91: 2 | I91: 2 | L91: =IF(COUNTIF($F$54:F130,F91)>1,"重複","") -> 
B92: 39 | L92: =IF(COUNTIF($F$54:F131,F92)>1,"重複","") -> 
B93: 40 | L93: =IF(COUNTIF($F$54:F132,F93)>1,"重複","") -> 

Sheet 用語表 (hidden)
C1: ＩＴパスポート試験 用語
A3: コンピュータシステム | B3: コンピュータ構成要素 | C3: 1 | D3: 入力、制御、演算、記憶、出力の各機能のこと。 | E3: ５大装置
C4: =C3+1 -> 2 | D4: 制御装置と演算装置をまとめたもの | E4: ＣＰＵ | F4: Central Processing Unit
C5: =C4+1 -> 3 | D5: コンピュータの中核部である演算装置と制御装置を、１つの半導体チップに組み込んだもので、ＣＰＵと同じ意味で使用するもの。 | E5: マイクロプロセッサ
C6: =C5+1 -> 4 | D6: プログラムを実行するとき、プログラムに書かれた命令をメモリに記憶するが、実行すべきプログラムをあらかじめメモリに記憶しておく方式。 | E6: プログラム内蔵方式
C7: 5 | D7: ＣＰＵがメモリから命令を１つずつ取り出して解釈し、演算を実行したり各装置に指令を送ったりする方式 | E7: 逐次制御方式
C8: 6 | D8: コンピュータ内部で、ＣＰＵやメモリなどの各回路間で処理を進めるタイミングを取るための電気信号のこと。 | E8: クロック | F8: clock frequency
C9: 7 | D9: プロセッサが１秒間に実行できる命令数 | E9: MIPS | F9: Million Instructions Per Second
C10: 8 | D10: １命令の実行に要するクロック数 | E10: ＣＰＩ | F10: Cycles Per Instruction
C11: 9 | D11: 装置間をつなぐ配線の束。コンピュータ内部で各回路がデータをやり取りするための伝送路のこと。 | E11: バス | F11: bus
C12: 10 | D12: 電源を切ると記憶したデータが消える半導体メモリ。（揮発性） | E12: ＲＡＭ | F12: Random Access Memory
C13: 11 | D13: CPUが内部にもつ少量で非常に高速な記憶装置。 | E13: レジスタ
C14: 12 | D14: 電源を切っても記憶したデータは消えない半導体メモリ。（不揮発性） | E14: ＲＯＭ | F14: Read Only Memory
C15: 13 | D15: ＥＥＰＲＯＭの代表的なもので、ディジタルカメラの記憶媒体やＩＣカードで使われているもの。 | E15: フラッシュメモリ
C16: 14 | D16: コンピュータに接続された最も基本的な入出力機器を制御するプログラムの集まり。 | E16: ＢＩＯＳ | F16: Basic Input/Output System
C17: 15 | D17: CDやDVDなどの光学メディアをコンピュータに出し入れする際、トレイがなく、挿入口に直接メディアを挿入する方式のこと。 | E17: スロットイン
C18: 16 | D18: グラフィックスデータの読み込みとディスプレイ表示を同時に行えるように、２つの機能を持たせたメモリであり、ディスプレイに表示する画像データを一時的に蓄積するもの。 | E18: ＶＲＡＭ | F18: Video Random Access Memory
C19: 17 | D19: コンピュータを起動するためのプログラム | E19: ＩＰＬ | F19: Initial Program Loader
C20: 18 | D20: ＣＰＵと主記憶装置の間にあり、主記憶装置よりも高速なデータ転送が可能なメモリのこと。使用頻度の高いデータを蓄えておき、低速な装置から何度も読み出す無駄を省ける。 | E20: キャッシュメモリ | F20: cache memory *cache:貯蔵品
C21: 19 | D21: ハードディスクなどの補助記憶装置と主記憶装置の間にあり、補助記憶装置よりも高速なデータ転送が可能なメモリのこと。使用頻度の高いデータを蓄えておき、低速な装置から何度も読み出す無駄を省ける。 | E21: ディスクキャッシュ | F21: disk cache
C22: 20 | D22: Revolution Per Minuteの略で、回転数を表す単位。ハードディスクなどの記憶装置が1分間に何回転しているかを表す。 | E22: ｒｐｍ | F22: revolutions per minute
C23: 21 | D23: キャッシュメモリにデータが存在する確率 | E23: ヒット率
C24: 22 | D24: ハードディスクの空きセクタが散らばりデータが分散した状態を解消する方法。 | E24: デフラグメンテーション
C25: 23 | D25: 磁気ディスク装置の性能の指標であり、シーク時間＋サーチ時間＋データ転送時間で求める。 | E25: アクセス時間
C26: 24 | D26: ディスクアレイともいい、複数のハードディスクをまとめて1台のハードディスクとして管理する技術の総称。 | E26: ＲＡＩＤ | F26: Redundant Arrays of Inexpensive Disks
C27: 25 | D27: 一つのデータを分割し， 2台以上のハードディスクに並行して書き込むことによって，書込み動作を高速化する方法。RAID0ともいう。 | E27: ストライピング
C28: 26 | D28: 2台以上のハードディスクに同じデータを書き込むことによって，データの可用性を高める方法。RAID１ともいう。 | E28: ミラーリング
C29: 27 | D29: 分割したデータと誤り訂正のためのパリティ情報を3台以上のハードディスクに分散して書き込むことによって，データの可用性を高め，かつ，書込み動作を高速化する方法。 | E29: RAID5
C30: 28 | D30: エラー訂正情報。データの誤りを検出するためのビットデータ。 | E30: パリティ
C31: 29 | D31: ハードディスクの代わりに半導体ディスク装置を利用したもの。フラッシュメモリドライブとも呼ばれる。 | E31: ＳＳＤ | F31: Solid State Drive
C32: 30 | D32: すべてのデータを１ビット単位で一列に並べて転送する方法 | E32: シリアルインターフェース
C33: 31 | D33: ８ビットあるいは１６ビットでまとまっているデータを８本あるいは１６本の並列の伝送路で転送する方法 | E33: パラレルインターフェース
C34: 32 | D34: 個人用の携帯情報端末。手のひらに収まるくらいの大きさの電子機器で、パソコンのもつ機能のうちいくつかを実装したものをいう。 | E34: ＰＤＡ | F34: Personal Digital Assistant
C35: 33 | D35: 赤外線を利用した近距離データ通信の技術標準を策定する業界団体。また、同団体が定めた赤外線通信の規格。 | E35: ＩｒＤＡ | F35: Infraed Data Association
C36: 34 | D36: 携帯情報機器などで数m程度の機器間接続に使われる短距離無線通信技術の一つ。２.４５ＧＨｚ帯の電波を利用し、最高２４Ｍｂｐｓの速度で通信を行うことができる。 | E36: Ｂｌｕｅｔｏｏｔｈ
C37: 35 | D37: 主にパソコンの内蔵機器のパラレル転送する入出力インターフェース。 | E37: ＡＴＡ | F37: Advanced Technology Attachment
C38: 36 | D38: ＰＣホスト側からＵＳＢデバイスに電源を供給する。 | E38: バスパワー
C39: 37 | D39: コンピュータの電源を入れたままデバイスの抜き差しができる。 | E39: ホットプラグ
C40: 38 | D40: パソコンなどに接続されるメモリ、キーボード、ディスプレイ、ハードディスク装置、フロッピーディスク装置などの周辺機器を動作させるためのソフトウェア。 | E40: デバイスドライバ | F40: device driver *driver:操縦者
C41: 39 | D41: コンピュータに拡張カードを追加する際、ユーザが手動で設定作業をしなくても、ＯＳが自動的にカードを検出して最適な設定を行うシステム | E41: プラグアンドプレイ | F41: Plug and Play
B42: システム構成要素 | C42: 40 | D42: １つのホストコンピュータがすべての処理を行うシステム | E42: 集中処理システム
C43: 41 | D43: 複数のコンピュータを接続して、処理を分担させることによって全体として高性能のコンピュータシステムを構築する形態 | E43: 分散処理システム
C44: 42 | D44: データをまとめて処理をする方法。 | E44: バッチ処理
C45: 43 | D45: データが入力されるたびに処理をする方式 | E45: リアルタイム処理
C46: 44 | D46: ハードウェアやソフトウェアなどを集中管理するコンピュータと、サーバの管理する資源を利用するコンピュータが接続されたネットワークの形態。 | E46: クライアントサーバシステム | F46: Cloent Server System
C47: 45 | D47: データやファイルを複数のクライアントで共有するために設置されるサーバ。 | E47: ファイルサーバ | F47: file server
C48: 46 | D48: 各クライアントで共通に利用するデータベースを格納したサーバ。 | E48: データベースサーバ | F48: detabase server
C49: 47 | D49: プリンタを複数のクライアントで共有するために設置されるサーバ。 | E49: プリントサーバ | F49: print server
C50: 48 | D50: １台のコンピュータを複数の仮想的なサーバに分割し、動作させる技術 | E50: サーバの仮想化技術
C51: 49 | D51: データ層、ファンクション層、プレゼンテーション層で処理をする方法 | E51: ３層アーキテクチャ
C52: 50 | D52: インターネットに接続されているサーバ上のディスクスペースを，ファイル保管用に貸し出すサービスであり，自宅や外出先などから利用者がデータを読み書きできるものはどれか。 | E52: オンラインストレージ
C53: 51 | D53: ネットワークに接続する複数のコンピュータ(PCやサーバ)を結ぶことで、仮想的に高性能のコンピュータを構築すること。複数のコンピュータを使って並列処理を行うことで、個々の性能が低くても高性能なコンピュータを実現できる。 実現するサービスとしては、計算処理とデータの保存がある。一般的には計算処理を分散して行うことを指すことが多いが、実際に実現されているシステムとしてはデータの保存も併せて実現されている場合が多い。 | E53: グリッドコンピューティング | F53: grid computing
C54: 52 | D54: アプリケーションソフトウェアの実行やファイルなどの資源の管理は全てサーバ側で行う。サーバに依存する比重の高いクライアント・サーバシステム。クライアントは表示や入力のみを担当する。セキュリティを高めることができる。 | E54: シンクライアントシステム
C55: 53 | D55: 情報システムの信頼性を高める手法の一つで、システムを2系統用意して、常に同じ処理を行なわせる方式。結果を相互に照合・比較することにより高い信頼性を得ることができ、片方に障害が生じた際も、もう片方で処理を続行しながら復旧にあたることができる。 | E55: デュアルシステム | F55: dual System
C56: 54 | D56: 情報システムの信頼性を高める手法の一つで、システムを2系統用意して、普段は片方で処理を行い、もう片方は障害発生に備えて待機させておく方式。平常時に処理を行なうシステムを主系または本番系などと呼び、主系に障害が生じたとき肩代わりするシステムを従系または待機系、予備系などと呼ぶ。待機や切り替えの仕方により、ホットスタンバイ、ウォームスタンバイ、コールドスタンバイなどの種類がある。 | E56: デュプレックスシステム | F56: duplex System
C57: 55 | D57: コンピュータが単位時間内に処理することのできる情報量。 | E57: スループット | F57: throughput
C58: 56 | D58: コンピュータに処理実行の指示を出してから、最初の応答を得るまでの時間。 | E58: レスポンスタイム | F58: response time
C59: 57 | D59: コンピュータに処理実行の指示を出してから、すべての実行結果が得られるまでの時間。 | E59: ターンアラウンドタイム | F59: turn around time
C60: 58 | D60: 実際に使用するプロ不ラムを実行し、その稼働率などを計測して、処理効率を比較する方法 | E60: ベンチマークテスト
C61: 59 | D61: コンピュータシステムの信頼性を評価するときのチェック項目を示すもので、信頼性、可用性、保守性、保全性、機密性の5つの単語の頭文字を集めたもの。 | E61: ＲＡＳＩＳ | F61: Reliability Availability Serviceability Intergrity Security
C62: 60 | D62: システムが目標とする稼動時間に対し、正常に稼動した時間の割合。 | E62: 稼働率 | F62: availability
C63: 61 | D63: システムの故障と故障の間、すなわちシステムが正常に稼動している時間を平均で表したもの。 | E63: 平均故障間隔（MTBF) | F63: Mean Time Between Faliure
C64: 62 | D64: システムの障害発生時における修復時間の平均。この時間が短いほど保守性に優れている。 | E64: 平均修復時間（MTTR) | F64: Mean Time To Repair
C65: 63 | D65: コンピュータシステムの故障率の時間経過による変化をグラフ化したもの。初期故障期間、偶発故障期間、磨耗故障期間に分けることができる。 | E65: バスタブ曲線
C66: 64 | D66: システムが部分的に故障しても、システム全体としては必要な機能を維持する信頼性の高いシステム | E66: フォールトトレランス | F66: fault-tolerance
C67: 65 | D67: 故障や操作ミス、設計上の不具合などの障害が発生することをあらかじめ想定し、起きた際の被害を最小限にとどめるような工夫をしておくという設計思想。 例 壊れたら赤しかつかなくなる信号機 | E67: フェールセーフ | F67: failsafe
C68: 66 | D68: 障害が発生した場合に、システムの一部を停止しても重要な部分を停止させないようにして処理を継続する方法。 例 与圧はやめるがエンジンは最後まで回る飛行機 | E68: フェールソフト | F68: failsoft
C69: 67 | D69: 工業製品や生産設備、ソフトウェアなどで、利用者が誤った操作をしても危険にさらされることがないよう、設計の段階で安全対策を施しておくこと。 例 ドアが閉まらないと電車が発車しない。 | E69: フールプルーフ | F69: foolproof（意味：確実な）
C70: =C69+1 -> 68 | D70: システムの購入から運用、廃棄まで全部ひっくるめたコスト。 | E70: ＴＣＯ | F70: Total Cost of Ownership
C71: 69 | D71: 性能対価格比 | E71: コストパフォーマンス
B72: ソフトウェア | C72: 70 | D72: 主にコンピュータの機能や操作といった利用環境を向上させるためのソフト | E72: ユーティリティプログラム
C73: 71 | D73: スケジュールの共有やチーム内のコミュニケーションを行うことにより、組織としての業務効率を高めるソフトウェア | E73: グループウェア
C74: 72 | D74: ＯＳと応用ソフトウェアの中間に位置するソフトウェア。 | E74: ミドルウェア
C75: 73 | D75: マルチプログラミングで優先度の高いジョブに処理が切り替えられたときに、それまで実行されていたジョブは実行を中断されるが、それまで行った処理が無駄にならないように退避させる処理 | E75: スワッピング
C76: 74 | D76: ハードディスクをメインメモリの代用として利用するOSの機能。また、その機能を利用して確保された、実際のメモリ容量以上のメモリ領域。主記憶の容量よりも大きなメモリを必要とするプログラムも実行できるようにする。 | E76: 仮想記憶方式
C77: 75 | D77: 衝突、争い、論争などの意で、コンピュータ関連では、複数のタスクが同時に同じ資源を利用しようとして発生する競合状態を表す言葉。 | E77: コンフリクト | F77: conflict
C78: 76 | D78: プロセッサに比べて入出力装置の動作速度ははるかに遅いため、入出力装置による低速な処理をプロセッサから切り離す仕組み | E78: スプーリング
C79: 77 | D79: 通信プロトコルTCP/IPを初めとするインターネット標準の技術を用いて構築された企業内ネットワークのこと。 | E79: イントラネット
C80: 78 | D80: Adobe Systems社によって開発された、電子文書のためのフォーマット。レイアウトソフトなどで作成した文書を電子的に配布することができ、相手のコンピュータの機種や環境によらず、オリジナルのイメージをかなりの程度正確に再生することができる。 | E80: ＰＤＦ
C81: 79 | D81: authoring。文字や画像、音声、動画といったデータを編集して一本のコンテンツを作るソフトウェアのこと。 | E81: オーサリングソフト
C82: 80 | D82: Frame Per Secondの略で、動画の滑らかさを表す単位。1秒間に何枚の静止画を表示しているかを表す。 | E82: ｆｐｓ
C83: 81 | D83: アプリケーションソフトに追加機能を提供するための小さなプログラム。あるアプリケーションに特定の機能を追加するソフトウェアのことで、プラグイン単独では動作しない。アドイン(add-in)とも呼ばれている。 | E83: プラグイン
C84: 82 | D84: ワープロソフトやWebブラウザなどで採用されている文字列の入力補完機能のこと。ユーザが入力している文字を予測してくれる便利な機能だが、パスワードなどの自動補完はセキュリティ上問題となる場合もあるので注意が必要。 | E84: オートコンプリート
C85: 83 | D85: ソースコードを公開して、解析や派生ソフトウェアの作成を認めたソフトウェア。著作権は保持されている。 | E85: オープンソースソフトウェア
B86: ハードウェア | C86: 84 | D86: 日本で最も普及している商品識別コード。JANコードは市販されている多くの商品に付けられており、POSシステムなどに活用されている。標準タイプ13桁と短縮タイプ8桁の2種類がある。 | E86: ＪＡＮコード | F86: Japanese Article Number
C87: 85 | D87: 標準物流コードで、段ボールに印刷されているバーコードのこと。5本のバーで1文字を表す。5本のうち2本が太いので、2 of 5 という。 | E87: ＩＴＦ | F87: Interleaved Two of Five
C88: 86 | D88: プログラミング言語で書かれた命令を一つ一つ翻訳しながら実行するソフトウェア。実行時にいちいち翻訳するため実行速度は遅い。 | E88: インタプリタ
C89: 87 | D89: １インチ（約2.5cm）当たりのドット数 | E89: ｄｐｉ
C90: 88 | D90: Page Per Minuteの略で、ページプリンタの性能を表す単位。1分間に印刷できるページ数を表す。 | E90: ｐｐｍ
C91: 89 | D91: コンピュータの電源を切る時に直前の状態を補助記憶装置(HDD)に保存して、次に電源を入れたときに電源を切る直前の状態から作業を再開する機能。 | E91: ハイバネーション(休止状態) | F91: hibernation
C92: 90 | D92: コンピュータの動作を一時的に停止させ、節電状態で待機させる機能。電源をオフにするのとは異なり、停止前の状態から速やかに再開することができる。 | E92: スタンバイ | F92: standby
B93: ヒューマンインターフェース | C93: 91 | D93: 画面上のアイコンやボタンをマウスでクリックして操作する、コンピュータの入出力方式。 | E93: ＧＵＩ | F93: Graphical User Interface
C94: 92 | D94: キーボードでコマンドを入力することでコンピュータを操作し、処理結果を文字列で出力するユーザインターフェイス。GUI(Graphical User Interface)と対比して語られることもある。 | E94: CUI | F94: Character User Interface
C95: 93 | D95: 入力データが定められた書式に従っているかチェックする方法 | E95: フォーマットチェック
C96: 94 | D96: 数値項目に数値以外がのデータが入力されていないかをチェックする方法 | E96: ニューメリックチェック
C97: 95 | D97: 入力されたデータが定められている値に達しているか、または限度を超えていないかをチェックする方法 | E97: リミットチェック
C98: 96 | D98: 入力されたデータが定められた順番どおりに並んでいるかチェックする方法 | E98: シーケンスチェック
C99: 97 | D99: 符号の入力誤りなどを検出するために元の符号に付加される１桁の数字のこと。主にバーコードの読み取りなどにおける、入力値の確認に使われる。 | E99: チェックディジット | F99: check digit
C100: 98 | D100: ソフトウェアやWebサイトの「使いやすさ」のこと。様々な機能になるべく簡単な操作でアクセスできることや、使っていてストレスや戸惑いを感じないことなどが、優れているといわれている。 | E100: ユーザビリティ | F100: usability
C101: 99 | D101: 年齢や文化、障害の有無や能力の違いなどにかかわらず、誰でも快適に利用できるように工夫されたデザイン。 | E101: ユニバーサルデザイン
C102: 100 | D102: 情報を自己の目的に適合するように使用できる能力のこと。情報機器やネットワークにより、豊富な情報を容易に手に入れられるため、目的に合った情報を適切に収集、選択、判断、評価する能力が必要になっている。 | E102: 情報リテラシ | F102: information literacy
C103: 101 | D103: 高齢者や障がい者などを含めて、Webサイトが誰もが利用できるかどうかということ | E103: Webアクセシビリティ
B104: マルチメディア | C104: 102 | D104: データを保存する際に圧縮はするものの元に戻すときに完全に復元できる方式。圧縮率は低め。 | E104: 可逆圧縮方式 | G104: 1
C105: 103 | D105: 圧縮したときにデータの欠落が生じ、完全には元に戻せない方式。圧縮率が大きい。 | E105: 非可逆圧縮方式 | G105: 1
C106: 104 | D106: 静止画を保存するデータ形式で、高い圧縮率を持ち、ディジタルカメラに使われている。データを完全に復元できない非可逆圧縮方式。 フルカラーあるいはグレースケール画像を対象とした圧縮方式で、白黒２値の画像は対象としていない。圧縮率が高いわりに画質の低下が少ないのが特徴。圧縮率が変更できるので、圧縮での画質の低下の程度を変えることで、画像の品質とファイルサイズ、および処理時間の組み合わせの中から最適なものを選べる。 | E106: ＪＰＥＧ | F106: Joint Photographic Experts Group | G106: 2
C107: 105 | D107: 静止画を保存するデータ形式で、データは圧縮するが、元に戻せる可逆圧縮方式。色数が256色と限定されていて、データ量が小さいため、Webページのロゴに使われている。 | E107: ＧＩＦ | G107: 2
C108: 106 | D108: Windowsが標準でサポートしている画像形式。白黒(2値)の画像からフルカラー(1677万7216色)までの色数を指定できる。基本的には無圧縮で画像を保存するが、16色と256色の形式では、圧縮するオプションが選択できる。圧縮しないで画像をそのまま保存するため、データ量はとても大きくなる。 | E108: ＢＭＰ | F108: Windows bitmap image | G108: 2
C109: 107 | D109: 静止画を保存するデータ形式で、GIFの代替として開発された。色数はGIFと異なり、フルカラー。データを元に戻せる可逆圧縮方式。 | E109: ＰＮＧ | G109: 2
C110: 108 | D110: 音声を保存するデータ形式で、インターネットの音楽配信や、音楽プレーヤーに用いられている。音声データを約1/10に圧縮することができるが、データを完全に復元できない不可逆圧縮方式。MPEG1の音声を取り出した規格。 | E110: ＭＰ３ | G110: 3
C111: 109 | D111: 動画を保存するデータ形式で、データを完全に元に戻せない不可逆圧縮方式。ディジタルビデオカメラで使われている。 MPEG2･･･ハイビジョン高画質 MPEG4･･･携帯機器向け | E111: ＭＰＥＧ | G111: 3
C112: 110 | D112: Microsoft社が開発した、Windowsで音声付きの動画を扱うためのフォーマット。Windows上でマルチメディアデータを格納する際に用いられるRIFFというフォーマットを応用し、画像データと音声データを交互に折り混ぜた構造になっているところから、この名前が付けられている。 | E112: AVI | F112: Audio Video Interleaving
C113: 111 | D113: Ａｐｐｌｅ社が開発した動画圧縮方式。MPEG4にも採用されており、MPEG4のほとんどはQuickTimeベースのフォーマットになっている。動画ファイルの拡張子は「.mov」 | E113: QuickTime
C114: 112 | D114: アドビシステムズ社が提供する、主にベクターベースのオブジェクトやイメージからなるアニメーションやWebアプリケーションを表示するファイルフォーマット。Flashで使用される。 | E114: SWF
C115: 113 | D115: 3次元の物体に関する情報を記述するためのファイルフォーマット。WWW上で利用されることを前提に設計された。 | E115: VRML | F115: Virtual Reality Modeling Language
C116: 114 | D116: 電子楽器のデータを扱うファイル形式。データを圧縮しない。 | E116: ＭＩＤＩ
C117: 115 | D117: パソコンで外部から映像を取り込むための拡張カード | E117: キャプチャカード
C118: 116 | D118: サウンド編集ソフトのこと | E118: DTMソフト
C119: 117 | D119: 与えられたルールを基にして、自立的に自分自身の動作を決定できるようなソフトウェア | E119: エージェントソフトウェア | F119: agent
C120: 118 | D120: ビデオテープなどに記録された動画をいったんハードディスクなどの記憶装置にデジタルデータとして取り込み、それをパソコンなどで編集する手法。 | E120: ノンリニア編集 | F120: nonlinear editing
B121: データベース | C121: 119 | D121: データベースの代表的な形式。データを表の形に整理し、その表がいくつか集まったもの。 | E121: リレーショナルデータベース
C122: 120 | D122: データ（エンティティ）とその関連（リレーションシップ）を可視化して、業務活動をモデル化する方法。関連の種類には、１対１、１対多、多対多 がある。個々のデータ同士の間にどのような関係が成り立っているかを表す方法で、現実の世界のデータ（実体）とその関係を図に置き換え、一般化する。 | E122: Ｅ－Ｒ図 | F122: Entity-Relationship Chart
C123: 121 | D123: E-R図で使用される記号名で、一単位として扱われるデータのまとまりのこと。また、データベースとして表現すべき対象物のこと。 | E123: エンティティ（実体）
C124: 122 | D124: E-R図で使用される記号名で、エンティティが持つ値のこと。 | E124: アトリビュート（属性）
C125: 123 | D125: E-R図で使用される記号名で、エンティティとエンティティの相関関係のこと。 | E125: リレーションシップ（関係）
C126: 124 | D126: データベースの中から、ある一組のデータセット(レコード)を一意に識別するための情報。これに設定された項目は、複数のレコード間で重複することは許されない。一つの表において、複数の項目を組み合わせてもよい。 | E126: 主キー
C127: 125 | D127: 新しい行の入力や削除を行っても、表間のリレーションシップが維持されるようにするための規則。 | E127: 整合性制約（参照整合性）
C128: 126 | D128: あるユーザが処理を行っている間は他のユーザがデータベースを使えないようにロックし、トランザクションが終了した時点で他のユーザが処理を行えるようにすること。 | E128: 排他制御
C129: 127 | D129: 分散データベース環境において、使用するすべてのリソース(資源)をロックする第1フェーズと、操作の終了したリソースのロックを解除する第2フェーズからなる制御方式。この方式では、トランザクション中に一度でもロックの解除を行ったら、それ以降はロックを行わない。デッドロックを回避しながら排他制御を実現する手法。 | E129: ２相ロック | F129: Two-Phase Locking
C130: 128 | D130: ２つ以上の処理が、それぞれのロックのかかったデータにアクセスしようとして、ロックの開放ができず、待ち状態が無限に続くような状態のこと。 | E130: デッドロック
C131: 129 | D131: 複数のトランザクションを同時に実行する場合に，互いに影響しあわないように直列的な実行となるよう，トランザクション処理の順番を変更する手法。 | E131: トランザクションスケジューリング
C132: 130 | D132: 問い合わせ文の条件式部分に、別の問い合わせ文が埋め込まれたもの。問い合わせが入れ子になっている。 | E132: 副問合せ
C133: 131 | D133: ソフトウェアの開発工程で、実際に使われている帳票や帳簿類を参考にして、業務内容を分析し、どのようなデータが必要で、どれを管理対象とするのかを検討する作業。 | E133: 概念設計
C134: =C133+1 -> 132 | D134: 利用するデータベース管理システムに合わせて、データベースの論理的な構造として表と索引を設計する作業。 | E134: 論理設計
C135: 133 | D135: 論理設計の結果を用いて、利用するデータベース管理システムに応じた設計を行う作業。 | E135: 物理設計
C136: 134 | D136: データベースで使われる用語で、必要最低限のものに加えて、余分や重複がある状態のこと。 | E136: データの冗長性
C137: 135 | D137: 関係データベースを構築するときに、①データの冗長性（じょうちょうせい）の排除②データの一貫性の確保と効率的なアクセスの実現.③更新時に起きる異常や不整合の発生を防ぐために行うこと。 | E137: データの正規化
C138: 136 | D138: 正規化において、重複して繰り返し現れる項目が存在しない状態にすること。 | E138: 第１正規化
C139: 137 | D139: 正規化において、主キーと関連のある項目を別のテーブルに分割すること。 | E139: 第２正規化
C140: 138 | D140: 正規化において、主キーでない項目について関連のある項目を別のテーブルに分割すること。 | E140: 第３正規化
C141: 139 | D141: データベースのテーブルから必要な行だけを抜き出してくる演算のこと | E141: 選択
C142: 140 | D142: データベースのテーブルから必要な列だけを抜き出してくる演算のこと | E142: 射影
C143: 141 | D143: データベースの複数の表（テーブル）から1つの表にすること | E143: 結合
C144: 142 | D144: データベースの更新前ジャーナルを使って、データベースに障害が発生したときに、記録してあるチェックポイントにまでデータを巻き戻して、改めて処理を開始すること。バックアップ時のデータは再現されるが、それ以降に行った処理は失われる。主に、データベースの論理的障害に対して用いられる。 | E144: ロールバック | F144: rollback
C145: 143 | D145: データベースの更新後ジャーナルを使って、データベースに障害が発生したときに、記録してあるチェックポイントのデータを再現した上で、ログファイルに残っているチェックポイント後の処理を再現し、障害直前の状態にまで戻すこと。障害直前のデータが再現される。主に、ディスクの損傷などの物理的障害に対して用いられる。 | E145: ロールフォワード | F145: roll forward
C146: 144 | D146: 物流や販売などの部門ごとに散在していた、過去から現在までの全社のデータを統合して管理することによって、経営戦略の立案に役立てる仕組み。 | E146: データウェアハウス
C147: 145 | D147: データウェアハウスの特定の部分を取り出してデータベース化したもの | E147: データマート
C148: 146 | D148: データウェアハウスに蓄積されている大量の生データから、データの規則や因果関係を見つけ出す手法。 例 顧客に応じた商品の推薦 | E148: データマイニング
C149: 147 | D149: 容器、貯蔵庫、倉庫、集積所などの意味を持つ英単語。何らかのデータや情報、プログラムなどが体系だてて保管されている場所。アプリケーションやシステムの設定情報（メタデータ）がまとめて記録されているファイルやフォルダのことや、複数の開発者が参加するプログラミング環境においてソースコードや仕様に関する情報をまとめて保管してくれるシステムなどを指すことが多い。 | E149: リポジトリ
B150: ネットワーク | C150: 148 | D150: 「広域通信網」の略。電話回線や専用線を使って、本社－支社間など地理的に離れた地点にあるコンピュータ同士を接続し、データをやり取りすることを言う。 | E150: ＷＡＮ | F150: Wide Area Network | G150: 1
C151: 149 | D151: LANの代表的な接続形態。バス型、スター型、リング型がある。 | E151: トポロジ | G151: 1
C152: 150 | D152: LANに接続されているパソコンなどの端末やハブなどの一台一台のネットワーク機器を指す。 | E152: ノード | F152: node | G152: 1
C153: 151 | D153: LANで利用される通信方式の一つで、Ethernetがこれを採用している。データを送信したいノード(機器)はケーブルの通信状況を監視し(Carrier Sense)、ケーブルが空くと送信を開始する。このとき、もし複数のノードが同時に送信を開始するとケーブル内でデータが衝突して壊れるので(Collision Detection)、両者は送信を中止し、ランダムな時間だけ待って送信を再開する。 | E153: ＣＳＭＡ／ＣＤ方式 | G153: 1
C154: 152 | D154: 伝送媒体として光ファイバーケーブルを使用した１００Ｍｂｐｓの伝送速度を持つ高速ＬＡＮの規格 | E154: FDDI | G154: 1
C155: 153 | D155: 無線LANにおけるネットワークの識別子の一つで、最大32文字までの英数字を任意に設定できる。 | E155: ESSID(ESS-ID) | F155: Extended SS-ID
C156: 154 | D156: 2本のメタリックケーブルをより合わせて対にしたもの。 | E156: ツイストペアケーブル | G156: 1
C157: 155 | D157: スター型ネットワークで使われる集線装置のこと。各機器に接続されたケーブルはいったんここに接続され、これを介して相互に通信する。 | E157: ハブ | G157: 2
C158: 156 | D158: ネットワーク上を流れるデータを他のネットワークに中継する機器のこと。どの経路を通して転送すべきかを判断する経路選択機能を備えている。 | E158: ルータ | G158: 2
C159: 157 | D159: ハブ同士をケーブルでつなぎ、接続できる機器を増やす方法 | E159: カスケード接続 | G159: 2
C160: 158 | D160: LANの伝送距離を長くするための信号の増幅装置で、ＯＳＩ参照モデルの物理層（第1層）での中継を行う。 | E160: リピータ | G160: 2
C161: 159 | D161: データリンク層に属する通信機器。MACアドレスを使って通信を制御し、ネットワークのトラフィックを軽減したり、伝送媒体が異なるネットワーク間での相互接続を可能にする。 | E161: ブリッジ | G161: 2
C162: 160 | D162: 規格の異なったネットワーク同士を接続する場合に使われるハードウェア、ソフトウェアの総称。 双方のネットワーク間のプロトコルの違いなどを調整して接続をする。 | E162: ゲートウェイ | G162: 2
C163: 161 | D163: ＮＴＴのＢフレッツなど、光ファイバーによる家庭向けのデータ通信サービス。 | E163: ＦＴＴＨ | F163: Fiber To The Home | G163: 2
C164: 162 | D164: 電話線を使い高速なデータ通信を行なう技術。電話の音声を伝えるのには使わない高い周波数帯を使って通信を行なうxDSL技術の一種で、一般の加入電話に使われている1対の電話線を使って通信する。「非対称(asymmetric)」の名の通り、ユーザ側から見てダウンロードに相当する電話局→利用者方向(下り)の通信速度は1.5～約50Mbps、その逆のアップロードにあたる利用者→電話局方向(上り)の通信速度は0.5～約12Mbpsと、通信方向によって最高速度が違っている。 | E164: ＡＤＳＬ | G164: 2
C165: 163 | D165: 屋内の電力線を使ってLANを構築するときに，電力と通信用信号の重ね合わせや分離を行う機器。 | E165: PLCモデム
C166: 164 | D166: NIC（ネットワークフェースカード）につけられた４８ビットの固有の番号のこと。全世界のEthernetカードには1枚1枚固有の番号が割り当てられており、これを元にカード間のデータの送受信が行われる。 | E166: MACアドレス | G166: 3
C167: 165 | D167: 無線LANの通信規格であるIEEE 802.11a/IEEE 802.11bを利用した無線機器間の相互接続性が業界団体「Wi-Fi Alliance」に認証されたことを示す名称で、ノートパソコンのほかにもニンテンドーDSやPSPなどの携帯ゲーム機，音楽プレイヤー，ディジタルカメラなどの家電製品にも搭載されている。 | E167: Wi-Fi | F167: wireless fidelity
C168: 166 | D168: 現在最も普及しているインターネットの標準プロトコル。 | E168: TCP/IP | G168: 3
C169: 167 | D169: ネットワークにおいてデータを送受信する際の手順を定めた規約のこと。 | E169: プロトコル | G169: 3
C170: 168 | D170: ネットワークに接続される機器が持つ時計を同期させるためのプロトコル。 複数の装置で処理を行うシステムにおいて、装置毎の時間が合っていないと、クライアントサーバシステムのように複数台の装置で行った処理の記録(ログ)などの時刻にずれがあるため、検証のために処理の追跡を行うときや、障害発生時の原因の特定、データの復旧が困難になってしまうために同期させる。 | E170: NTP | F170: Network Time Protocol
C171: 169 | D171: WWWサーバのデータ（HTML文書）をブラウザに表示させるためのプロトコル。 | E171: HTTP | G171: 3
C172: 170 | D172: データの転送のやりとりをするためのプロトコル。 | E172: FTP | G172: 4
C173: 171 | D173: TCP/IPプロトコルを用いたネットワーク上で、コンピュータを識別するためのアドレス。 | E173: IPアドレス | G173: 4
C174: 172 | D174: 構内ネットワークに接続されたコンピュータやプリンタに割り当てられたＩＰアドレス。このアドレスでは直接インターネットに接続することはできない。 | E174: プライベートIPアドレス | G174: 4
C175: 173 | D175: インターネットで用いる世界唯一のＩＰアドレス。インターネットの中での住所にあたり、インターネット通信を行うために必ず必要。 | E175: グローバルIPアドレス | G175: 4
C176: 174 | D176: ネットワークをいくつかのネットワークに区切るために用いられるビット列。ＩＰアドレスはこの値をマスキングすることで、ネットワークアドレスを求められる。 | E176: サブネットマスク | G176: 4
C177: 175 | D177: ＩＰアドレス（ＩＰｖ４）を構成する３２ビットのビット列のうち、個々の組織が管理するネットワークを識別するのに使われるアドレス。 | E177: ネットワークアドレス | G177: 4
C178: 176 | D178: ＩＰアドレス（ＩＰｖ４）を構成する３２ビットのビット列のうち、個々の端末を識別するのに使われるアドレス。 | E178: ホストアドレス | G178: 4
C179: 177 | D179: インターネット上の資源を特定するための記号の並びで、WWWをはじめとするインターネットアプリケーションで使用される資源の場所を特定するためのもの。資源とは、Webページや、イメージ画像のパスや電子メールの宛先のこと。 | E179: URL | F179: Uniform Resource Locator
C180: 178 | D180: インターネット上でのコンピュータの名前にあたるドメイン名を、住所にあたるＩＰアドレスに変換するコンピュータのこと。 | E180: DNSサーバ | G180: 4
C181: 179 | D181: 電子メールを受信するためのサーバのこと。ユーザがメールを受信するときは、電子メールソフトを使ってこのサーバに接続し、自分宛のメールを取り出す。 | E181: POPサーバ | G181: 4
C182: 180 | D182: 電子メールを送信するためのサーバのこと。ユーザから送信されたメールを受け取り、送信先を探して、そこに送信する。 | E182: SMTPサーバ | G182: 4
C183: 181 | D183: インターネットに一時的に接続するコンピュータに、ＩＰアドレスなど必要な情報を自動的に割り当てるサーバ。 | E183: DHCPサーバ | G183: 4
C184: 182 | D184: 構内ネットワークとインターネットの境にあって、直接インターネットに接続できない内部ネットワークのコンピュータに代わってインターネットとの接続を行うサーバのこと。 | E184: プロキシサーバ | G184: 4
C185: 183 | D185: Webサーバの動作を記録したもので、アクセス元のIPアドレス、アクセス元のドメイン名、アクセスされた日付と時刻、アクセスされたファイル名、リンク元のページのURL、訪問者のWebブラウザ名やOS名、処理にかかった時間、受信バイト数、送信バイト数、サービス状態コードなどが記録されている。 | E185: アクセスログ | F185: access log
C186: 184 | D186: ネットワークのデータ伝送速度を表す単位。1秒間に転送できるビット数を表す。 | E186: ｂｐｓ | F186: Bits Per Second
C187: 185 | D187: 通信回線を効率よく利用するためにデータを分割して送受信を行うときのデータのまとまり。 | E187: パケット | G187: 4
C188: 186 | D188: ＩＰアドレスからＭＡＣアドレスを特定するプロトコル | E188: ＡＲＰ | G188: 4
C189: 187 | D189: プライベートＩＰアドレスとグローバルＩＰアドレスをルータ上で変換する機能で、ひとつのグローバルアドレスをひとつのプライベートアドレスに固定して変換する。 | E189: ＮＡＴ | F189: Network Address Translation | G189: 4
C190: 188 | D190: インターネットに接続された企業などで、一つのグローバルなIPアドレスを複数のコンピュータで共有する技術。組織内でのみ通用するIPアドレス(ローカルアドレス)と、インターネット上のアドレス(グローバルアドレス)を透過的に相互変換することにより実現される。NATと異なりTCP/UDPのポート番号まで動的に変換されるため、一つのグローバルアドレスで複数のマシンから同時に接続することが可能である。 | E190: ＩＰマスカレード | G190: 4
C191: 189 | D191: TCP/IPで通信する場合、送信するパケットにはIP層レベルで宛先アドレス(IPアドレス)が付与されているが、これを元にして順次パケットを目的のノードまで届けること。そのための装置をIPルーターと呼ぶ。 | E191: ＩＰルーティング | F191: IP routing | G191: 4
C192: 190 | D192: インターネットやイントラネットなどのTCP/IPネットワーク上でやりとりされる電子メールで、各国語や画像、音声、動画などを扱うための規格。 | E192: ＭＩＭＥ | F192: Multipurpose Internet Mail Extension | G192: 4
C193: 191 | D193: インターネットなどのネットワークを通じて映像や音声などのマルチメディアデータを視聴する際に、データを受信しながら同時に再生を行う方式。 | E193: ストリーミング | F193: streaming
C194: 192 | D194: インターネット通信で使われるIP(Internet Protocol、パケット通信プロトコル)の機能を利用した電話サービスのことです。音声をIPで転送するのでVoIP(Voice over IP)と呼ばれる。通話音声を短い時間に分割して、ディジタルデータに変換(音声符号化)して、IPパケットとして相手に送信する。従来の電話と違い回線を占有しないので、他の通信と同時に利用することができ、低コストの通信を実現できる。ただし、緊急番号(110番、119番)への発信などの課題がある。 | E194: IP電話、VoIP | F194: Voice over IP
B195: セキュリティ | C195: 193 | D195: コンピュータネットワークに繋がれたシステムに不正に侵入したり、コンピュータシステムを破壊・改竄（かいざん）などをしたり、悪用の目的でソフトウェアを改変等、コンピュータを不正に利用する行為のこと。 | E195: クラッキング | G195: 4
C196: 194 | D196: ネットワークの管理者や利用者などから、話術や盗み聞き、盗み見などの「社会的」な手段によって、パスワードなどのセキュリティ上重要な情報を入手すること。 | E196: ソーシャルエンジニアリング | G196: 1
C197: 195 | D197: ネットワークを通じた攻撃の一つで、相手のコンピュータやルータなどに不正なデータを送信して使用不能に陥らせたり、トラフィックを増大させて相手のネットワークを麻痺させる攻撃のこと。 | E197: Ｄoｓ攻撃 | G197: 1
C198: =C197+1 -> 196 | D198: メモリ領域に許容量を超えるデータを送り、システムを停止させる攻撃。 | E198: バッファオーバーフロー攻撃
C199: 197 | D199: ソフトウェアのセキュリティホールの一つで、Webサイトの訪問者の入力をそのまま画面に表示する掲示板などのプログラムが、悪意のあるコードを訪問者のブラウザに送ってしまう脆弱性のこと。 | E199: クロスサイトスクリプティング | G199: 1
C200: 198 | D200: サーバとクライアント間の正規のセッションに割り込んで，正規のクライアントに成りすますことで，サーバ内のデータを盗み出すこと。 | E200: セッションハイジャック
C201: 199 | D201: データベースに連携しているWebページのユーザ入力領域に悪意あるSQLコマンドを埋め込み，サーバ内のデータを盗み出すこと。 | E201: SQLインジェクション
... 336 more rows
